Local authority department which incurred the expenditure,Service Division,Cost Centre,Summary of the Purpose of Expenditure,Expense Type,Expense Code,Detailed Expense Type,Date of Transaction,Transaction Number,Beneficiary,Merchant Category Number,Merchant Category,Gross Amount,VAT,Net Amount
Children and Adult Services,Education,071801,Selby Cottage Childcare Centre,Supplies and Services,324117,Provisions,01-Aug-2016,5133647005,TESCO STORES 2278,5411,Catering costs - provisions,54.01,0.00,54.01
Children and Adult Services,Education,071733,Shildon Childcare,Supplies and Services,324117,Provisions,01-Aug-2016,5133647007,ASDA HOME SHOPPING,5411,Catering costs - provisions,35.28,0.00,35.28
Children and Adult Services,Education,071733,Shildon Childcare,Supplies and Services,304649,Equipment and Materials,01-Aug-2016,5133647009,ASDA HOME SHOPPING,5411,Toys,-1.99,0.00,-1.99
Children and Adult Services,Childrens Services,085953,Secure Residential Staff,Supplies and Services,384999,Miscellaneous Expenses,01-Aug-2016,5133647021,Amazon UK Marketplace,5942,Other expenses,10.80,0.00,10.80
Resources,Financial Services,065180,Collections,Income,720130,Fees and Charges,01-Aug-2016,5133647087,HMCOURTS-SERVICE.G,9222,Fees-legal,"5,184.00",0.00,5184.00
Neighbourhood Services,Direct Services,021242,Catering - County Hall,Supplies and Services,324117,Provisions,01-Aug-2016,5133647101,JR HOLLAND FOODSERVICE,5422,Catering costs - provisions,76.72,0.00,76.72
Neighbourhood Services,Direct Services,021242,Catering - County Hall,Supplies and Services,324117,Provisions,01-Aug-2016,5133647103,JR HOLLAND FOODSERVICE,5422,Catering costs - provisions,36.99,0.00,36.99
Neighbourhood Services,Direct Services,021242,Catering - County Hall,Supplies and Services,324117,Provisions,01-Aug-2016,5133647105,JR HOLLAND FOODSERVICE,5422,Catering costs - provisions,13.52,0.00,13.52
Neighbourhood Services,Direct Services,021242,Catering - County Hall,Supplies and Services,324117,Provisions,01-Aug-2016,5133647107,BRAKE BROS LTD,5811,Catering costs - provisions,211.31,0.00,211.31
Children and Adult Services,Childrens Services,074000,TTF-Attachment and Results,Supplies and Services,384700,Miscellaneous Expenses,01-Aug-2016,5133647109,TESCO - Childrens Room,5999,Miscellaneous grants,16.00,0.00,16.00
Children and Adult Services,Childrens Services,074000,TTF-Attachment and Results,Supplies and Services,384700,Miscellaneous Expenses,01-Aug-2016,5133647111,TESCO - Seller_IST_1_2,5999,Miscellaneous grants,119.99,0.00,119.99
Children and Adult Services,Childrens Services,074000,TTF-Attachment and Results,Supplies and Services,384700,Miscellaneous Expenses,01-Aug-2016,5133647113,TESCO DIRECT,5999,Miscellaneous grants,16.30,0.00,16.30
Resources,I.C.T. Services,065464,Domains,Supplies and Services,372009,Subscriptions,01-Aug-2016,5133647115,NOMINET UK,7379,Subscriptions,120.00,20.00,100.00
Neighbourhood Services,Culture & Sport,054819,Gala Theatre - Theatre,Supplies and Services,312011,Newspapers Books and Periodicals,01-Aug-2016,5133647155,Amazon EU,5969,Books-school library,249.95,0.00,249.95
Regeneration & Economic Development,Economic Development and Housing,031576,B& B - Temp Accom,Supplies and Services,364320,Grants to Voluntary Organisations,01-Aug-2016,5133647161,TRAVELODGE,3615,Accommodation assistance,49.00,8.17,40.83
Neighbourhood Services,Direct Services,010525,Catering - Green Lane,Supplies and Services,324117,Provisions,01-Aug-2016,5133647165,BRAKE BROS LTD,5811,Catering costs - provisions,58.91,0.00,58.91
Children and Adult Services,Childrens Services,085352,Tow Law CU,Supplies and Services,324117,Provisions,01-Aug-2016,5133647169,TESCO STORES 2371,5411,Catering costs - provisions,224.64,0.00,224.64
Children and Adult Services,Childrens Services,088073,Barnard Castle 0 - 5,Employees,040029,Recruitment Instruction and Training,01-Aug-2016,5133647171,ASDA STORES,5411,Interview expenses,9.65,0.00,9.65
Neighbourhood Services,Culture & Sport,054235,Bp Auckland Town Hall Cafe,Supplies and Services,324117,Provisions,01-Aug-2016,5133647187,BRAKE BROS LTD,5811,Catering costs - provisions,100.20,0.00,100.20
Neighbourhood Services,Direct Services,021235,Catering - Wharton Park,Supplies and Services,324117,Provisions,01-Aug-2016,5133647201,BRAKE BROS LTD,5811,Catering costs - provisions,48.48,8.08,40.40
Neighbourhood Services,Direct Services,021235,Catering - Wharton Park,Supplies and Services,324117,Provisions,01-Aug-2016,5133647201 - 1,BRAKE BROS LTD,5811,Catering costs - provisions,82.84,,82.84
Neighbourhood Services,Culture & Sport,010605,Woodhouse Close Leisure Complex,Supplies and Services,324117,Provisions,01-Aug-2016,5133647205,JR HOLLAND FOODSERVICE,5422,Catering costs - provisions,36.91,0.00,36.91
Neighbourhood Services,Culture & Sport,010605,Woodhouse Close Leisure Complex,Supplies and Services,324117,Provisions,01-Aug-2016,5133647207,BRAKE BROS LTD,5811,Catering costs - provisions,100.11,0.00,100.11
Neighbourhood Services,Culture & Sport,010605,Woodhouse Close Leisure Complex,Supplies and Services,324117,Provisions,01-Aug-2016,5133647209,BRAKE BROS LTD,5811,Catering costs - provisions,-10.08,-1.68,-8.40
Regeneration & Economic Development,Economic Development and Housing,030737,Durham Works Flexible Fund,Employees,040149,Recruitment Instruction and Training,01-Aug-2016,5133647215,CITB,8220,Training-all costs,30.00,0.00,30.00
Neighbourhood Services,Culture & Sport,054819,Gala Theatre - Theatre,Supplies and Services,304403,Equipment and Materials,01-Aug-2016,5136544805,AMAZON UK RETAIL AMAZO,5999,Other consumables,99.95,0.00,99.95
Neighbourhood Services,Culture & Sport,011060,Hardwick Park Catering,Supplies and Services,324117,Provisions,01-Aug-2016,5154961819,BRAKE BROS LTD,5811,Catering costs - provisions,447.18,74.53,372.65
Neighbourhood Services,Culture & Sport,011060,Hardwick Park Catering,Supplies and Services,324117,Provisions,01-Aug-2016,5154961819 - 1,BRAKE BROS LTD,5811,Catering costs - provisions,44.42,,44.42
Neighbourhood Services,Culture & Sport,011060,Hardwick Park Catering,Supplies and Services,324117,Provisions,01-Aug-2016,5157663375,BRAKE BROS LTD,5811,Catering costs - provisions,344.22,57.37,286.85
Neighbourhood Services,Culture & Sport,011060,Hardwick Park Catering,Supplies and Services,324117,Provisions,01-Aug-2016,5157663375 - 1,BRAKE BROS LTD,5811,Catering costs - provisions,261.33,,261.33
Children and Adult Services,Education,071733,Shildon Childcare,Supplies and Services,304649,Equipment and Materials,02-Aug-2016,5136544657,Amazon UK Marketplace,5942,Toys,11.49,0.00,11.49
Children and Adult Services,Education,071733,Shildon Childcare,Supplies and Services,304649,Equipment and Materials,02-Aug-2016,5136544659,Amazon UK Marketplace,5942,Toys,2.40,0.00,2.40
Children and Adult Services,Education,071733,Shildon Childcare,Supplies and Services,324117,Provisions,02-Aug-2016,5136544661,TESCO STORES 2916,5411,Catering costs - provisions,1.50,0.00,1.50
Children and Adult Services,Education,071903,EYDCP-Sustainability EDS,Supplies and Services,332047,Printing Stationery and Gen Off Exps,02-Aug-2016,5136544663,Amazon EU,5969,Stationery,22.12,0.00,22.12
Children and Adult Services,Childrens Services,085953,Secure Residential Staff,Supplies and Services,384999,Miscellaneous Expenses,02-Aug-2016,5136544671,Amazon UK Marketplace,5942,Other expenses,7.98,0.00,7.98
Children and Adult Services,Childrens Services,085953,Secure Residential Staff,Supplies and Services,384999,Miscellaneous Expenses,02-Aug-2016,5136544673,Amazon UK Marketplace,5942,Other expenses,9.77,0.00,9.77
Children and Adult Services,Childrens Services,085957,Secure Management,Supplies and Services,328041,Clothing Uniforms and Laundry,02-Aug-2016,5136544675,WWW.FOOTASYLUM.COM,5941,Clothing uniforms and laundry,64.99,0.00,64.99
Children and Adult Services,Childrens Services,085957,Secure Management,Supplies and Services,328041,Clothing Uniforms and Laundry,02-Aug-2016,5136544677,WWW.FOOTASYLUM.COM,5941,Clothing uniforms and laundry,28.94,0.00,28.94
Children and Adult Services,Childrens Services,085957,Secure Management,Supplies and Services,328041,Clothing Uniforms and Laundry,02-Aug-2016,5136544679,WWW.FOOTASYLUM.COM,5941,Clothing uniforms and laundry,64.99,0.00,64.99
Children and Adult Services,Childrens Services,085957,Secure Management,Supplies and Services,304259,Equipment and Materials,02-Aug-2016,5136544681,WWW.FOOTASYLUM.COM,5941,Equipment-purchase and rental,84.99,0.00,84.99
Children and Adult Services,Childrens Services,085957,Secure Management,Supplies and Services,328041,Clothing Uniforms and Laundry,02-Aug-2016,5136544683,MAINLINE MENSWEAR,5611,Clothing uniforms and laundry,94.95,0.00,94.95
Children and Adult Services,Childrens Services,085957,Secure Management,Supplies and Services,328041,Clothing Uniforms and Laundry,02-Aug-2016,5136544685,VERY.CO.UK,5964,Clothing uniforms and laundry,105.00,0.00,105.00
Children and Adult Services,Childrens Services,085957,Secure Management,Supplies and Services,328041,Clothing Uniforms and Laundry,02-Aug-2016,5136544687,VERY.CO.UK,5964,Clothing uniforms and laundry,35.00,0.00,35.00
Children and Adult Services,Childrens Services,085957,Secure Management,Supplies and Services,328041,Clothing Uniforms and Laundry,02-Aug-2016,5136544689,VERY.CO.UK,5964,Clothing uniforms and laundry,25.00,0.00,25.00
Children and Adult Services,Childrens Services,085957,Secure Management,Supplies and Services,328041,Clothing Uniforms and Laundry,02-Aug-2016,5136544691,VERY.CO.UK,5964,Clothing uniforms and laundry,15.00,0.00,15.00
Children and Adult Services,Childrens Services,085957,Secure Management,Supplies and Services,328041,Clothing Uniforms and Laundry,02-Aug-2016,5136544693,VERY.CO.UK,5964,Clothing uniforms and laundry,3.99,0.00,3.99
Children and Adult Services,Childrens Services,085957,Secure Management,Supplies and Services,328041,Clothing Uniforms and Laundry,02-Aug-2016,5136544695,VERY.CO.UK,5964,Clothing uniforms and laundry,3.99,0.00,3.99
Regeneration & Economic Development,Economic Development and Housing,030699,Business Growth and Innovation General,Supplies and Services,304403,Equipment and Materials,02-Aug-2016,5136544703,ADOBE CREATIVE CLOUD,5734,Other consumables,45.73,0.00,45.73
Regeneration & Economic Development,Economic Development and Housing,030699,Business Growth and Innovation General,Supplies and Services,312011,Newspapers Books and Periodicals,02-Aug-2016,5136544705,FASTHOSTS INTERNET,4816,Books-school library,59.99,0.00,59.99
Resources,Financial Services,052865,SF-Financial Services Team,Supplies and Services,308011,Furniture,02-Aug-2016,5136544721,MAGUIRE TA LTD,5713,Furniture repair and replacement,157.00,0.00,157.00
Neighbourhood Services,Projects and Business services,022902,Waste Strategy,Supplies and Services,384999,Miscellaneous Expenses,02-Aug-2016,5136544725,SAINSBURYS 0776,5411,Other expenses,50.00,0.00,50.00
Neighbourhood Services,Direct Services,021242,Catering - County Hall,Supplies and Services,324117,Provisions,02-Aug-2016,5136544737,BRAMBLES FOODS LTD,5499,Catering costs - provisions,398.02,0.00,398.02
Neighbourhood Services,Direct Services,021242,Catering - County Hall,Supplies and Services,324117,Provisions,02-Aug-2016,5136544739,BRAMBLES FOODS LTD,5499,Catering costs - provisions,607.47,0.00,607.47
Neighbourhood Services,Direct Services,021242,Catering - County Hall,Supplies and Services,324117,Provisions,02-Aug-2016,5136544741,JR HOLLAND FOODSERVICE,5422,Catering costs - provisions,46.31,0.00,46.31
Neighbourhood Services,Direct Services,021242,Catering - County Hall,Supplies and Services,324117,Provisions,02-Aug-2016,5136544743,JR HOLLAND FOODSERVICE,5422,Catering costs - provisions,2.67,0.00,2.67
Neighbourhood Services,Direct Services,021242,Catering - County Hall,Supplies and Services,324117,Provisions,02-Aug-2016,5136544745,BRAKE BROS LTD,5811,Catering costs - provisions,-5.58,0.00,-5.58
Resources,I.C.T. Services,065464,Domains,Supplies and Services,372009,Subscriptions,02-Aug-2016,5136544747,WEB NETWORKSOLUTIONS,5968,Subscriptions,1.79,0.00,1.79
Neighbourhood Services,Culture & Sport,054812,Gala Theatre - Catering etc,Supplies and Services,324117,Provisions,02-Aug-2016,5136544751,JR HOLLAND FOODSERVICE,5422,Catering costs - provisions,41.42,0.00,41.42
Neighbourhood Services,Culture & Sport,054812,Gala Theatre - Catering etc,Supplies and Services,324117,Provisions,02-Aug-2016,5136544753,BRAKE BROS LTD,5811,Catering costs - provisions,23.46,3.91,19.55
Neighbourhood Services,Culture & Sport,054812,Gala Theatre - Catering etc,Supplies and Services,324117,Provisions,02-Aug-2016,5136544753 - 1,BRAKE BROS LTD,5811,Catering costs - provisions,102.14,,102.14
Neighbourhood Services,Culture & Sport,054812,Gala Theatre - Catering etc,Supplies and Services,324117,Provisions,02-Aug-2016,5136544755,BRAKE BROS LTD,5811,Catering costs - provisions,43.53,0.00,43.53
Children and Adult Services,Childrens Services,085351,Framwellgate Moor CU,Supplies and Services,324117,Provisions,02-Aug-2016,5136544765,ASDA HOME SHOPPING,5411,Catering costs - provisions,144.31,0.00,144.31
Children and Adult Services,Childrens Services,085351,Framwellgate Moor CU,Supplies and Services,324117,Provisions,02-Aug-2016,5136544767,ASDA HOME SHOPPING,5411,Catering costs - provisions,-2.71,0.00,-2.71
Children and Adult Services,Childrens Services,071370,Peterlee and Seaham Locality,Supplies and Services,324117,Provisions,02-Aug-2016,5136544769,CO-OP GROUP 010488,5411,Catering costs - provisions,2.37,0.00,2.37
Neighbourhood Services,Culture & Sport,011060,Hardwick Park Catering,Supplies and Services,324117,Provisions,02-Aug-2016,5136544803,JR HOLLAND FOODSERVICE,5422,Catering costs - provisions,8.36,0.00,8.36
Regeneration & Economic Development,Economic Development and Housing,030762,Organisational Training & Development,Employees,040149,Recruitment Instruction and Training,02-Aug-2016,5136544807,CITB,8220,Training-all costs,30.00,5.00,25.00
Neighbourhood Services,Direct Services,010525,Catering - Green Lane,Supplies and Services,324117,Provisions,02-Aug-2016,5136544809,BRAMBLES FOODS LTD,5499,Catering costs - provisions,83.62,0.00,83.62
Neighbourhood Services,Direct Services,010525,Catering - Green Lane,Supplies and Services,324117,Provisions,02-Aug-2016,5136544811,BRAMBLES FOODS LTD,5499,Catering costs - provisions,83.62,0.00,83.62
Neighbourhood Services,Direct Services,010525,Catering - Green Lane,Supplies and Services,324117,Provisions,02-Aug-2016,5136544813,BRAKE BROS LTD,5811,Catering costs - provisions,90.22,0.00,90.22
Children and Adult Services,Childrens Services,088063,Bishop Auckland 0 - 5,Supplies and Services,340001,Postages,02-Aug-2016,5136544821,DAINTY SUPPLIES LT,5949,Postages,6.99,0.00,6.99
Children and Adult Services,Childrens Services,088073,Barnard Castle 0 - 5,Supplies and Services,324117,Provisions,02-Aug-2016,5136544823,LIDL UK,5411,Catering costs - provisions,12.87,0.00,12.87
Neighbourhood Services,Culture & Sport,054235,Bp Auckland Town Hall Cafe,Supplies and Services,324117,Provisions,02-Aug-2016,5136544853,JR HOLLAND FOODSERVICE,5422,Catering costs - provisions,8.56,0.00,8.56
Neighbourhood Services,Direct Services,021324,Catering - Meadowfield,Supplies and Services,324117,Provisions,02-Aug-2016,5136544855,BRAMBLES FOODS LTD,5499,Catering costs - provisions,121.48,0.00,121.48
Neighbourhood Services,Direct Services,021324,Catering - Meadowfield,Supplies and Services,324117,Provisions,02-Aug-2016,5136544857,BRAMBLES FOODS LTD,5499,Catering costs - provisions,80.40,0.00,80.40
Neighbourhood Services,Direct Services,021324,Catering - Meadowfield,Supplies and Services,324117,Provisions,02-Aug-2016,5136544859,BRAKE BROS LTD,5811,Catering costs - provisions,52.23,0.00,52.23
Neighbourhood Services,Technical Services,010984,Training and Development,Supplies and Services,304259,Equipment and Materials,02-Aug-2016,5136544863,HSE BOOKS (MAIL ORDER),9399,Equipment-purchase and rental,40.00,0.00,40.00
Neighbourhood Services,Culture & Sport,011191,Wellbeing4Life,Supplies and Services,324117,Provisions,02-Aug-2016,5136544871,ASDA SUPERSTORE 4987,5411,Catering costs - provisions,9.13,0.00,9.13
Neighbourhood Services,Culture & Sport,011191,Wellbeing4Life,Supplies and Services,324117,Provisions,02-Aug-2016,5136544873,ASDA SUPERSTORE 4987,5411,Catering costs - provisions,3.72,0.00,3.72
Regeneration & Economic Development,Economic Development and Housing,030737,Durham Works Flexible Fund,Supplies and Services,324117,Provisions,02-Aug-2016,5136544875,ASDA SUPERSTORE,5411,Catering costs - provisions,61.06,0.00,61.06
Neighbourhood Services,Direct Services,021235,Catering - Wharton Park,Supplies and Services,324117,Provisions,02-Aug-2016,5136544883,JR HOLLAND FOODSERVICE,5422,Catering costs - provisions,33.77,0.00,33.77
Children and Adult Services,Childrens Services,088037,One Point YEI,Supplies and Services,384237,Miscellaneous Expenses,02-Aug-2016,5136544911,ESCAPE,7999,Recreational exps outings parties,-66.00,0.00,-66.00
Children and Adult Services,Childrens Services,085957,Secure Management,Supplies and Services,328041,Clothing Uniforms and Laundry,02-Aug-2016,5140217097,REPUBLIC.COM RETAI,5941,Clothing uniforms and laundry,27.99,0.00,27.99
Children and Adult Services,Childrens Services,085957,Secure Management,Supplies and Services,328041,Clothing Uniforms and Laundry,02-Aug-2016,5140217099,REPUBLIC.COM RETAI,5941,Clothing uniforms and laundry,45.98,0.00,45.98
Children and Adult Services,Childrens Services,085957,Secure Management,Supplies and Services,328041,Clothing Uniforms and Laundry,02-Aug-2016,5140217101,SPORTSDIRECT.COM,5941,Clothing uniforms and laundry,44.98,0.00,44.98
Children and Adult Services,Childrens Services,085351,Framwellgate Moor CU,Supplies and Services,338099,Services,02-Aug-2016,5140217149,HAVEN HOLIDAYS,7033,Other services,351.00,0.00,351.00
Neighbourhood Services,Direct Services,021234,Catering - Locomotion,Supplies and Services,324117,Provisions,02-Aug-2016,5154961833,BRAKE BROS LTD,5811,Catering costs - provisions,224.70,37.45,187.25
Neighbourhood Services,Direct Services,021234,Catering - Locomotion,Supplies and Services,324117,Provisions,02-Aug-2016,5154961833 - 1,BRAKE BROS LTD,5811,Catering costs - provisions,101.01,,101.01
Neighbourhood Services,Direct Services,021234,Catering - Locomotion,Supplies and Services,324117,Provisions,02-Aug-2016,5154961837,BRAKE BROS LTD,5811,Catering costs - provisions,256.87,0.00,256.87
Neighbourhood Services,Direct Services,021235,Catering - Wharton Park,Supplies and Services,324117,Provisions,02-Aug-2016,5154961969,BRAKE BROS LTD,5811,Catering costs - provisions,244.98,40.83,204.15
Neighbourhood Services,Direct Services,021235,Catering - Wharton Park,Supplies and Services,324117,Provisions,02-Aug-2016,5154961969 - 1,BRAKE BROS LTD,5811,Catering costs - provisions,17.75,,17.75
Neighbourhood Services,Culture & Sport,011060,Hardwick Park Catering,Supplies and Services,324117,Provisions,02-Aug-2016,5157663381,BRAKE BROS LTD,5811,Catering costs - provisions,588.42,98.07,490.35
Neighbourhood Services,Culture & Sport,011060,Hardwick Park Catering,Supplies and Services,324117,Provisions,02-Aug-2016,5157663381 - 1,BRAKE BROS LTD,5811,Catering costs - provisions,8.29,,8.29
Resources,I.C.T. Services,065464,Domains,Supplies and Services,372009,Subscriptions,03-Aug-2016,5136544749,WEB NETWORKSOLUTIONS,5968,Subscriptions,0.05,0.00,0.05
Children and Adult Services,Education,071801,Selby Cottage Childcare Centre,Supplies and Services,328041,Clothing Uniforms and Laundry,03-Aug-2016,5140217077,B&M RETAIL LTD,5310,Clothing uniforms and laundry,46.54,0.00,46.54
Children and Adult Services,Education,071801,Selby Cottage Childcare Centre,Supplies and Services,324117,Provisions,03-Aug-2016,5140217079,ASDA HOME SHOPPING,5411,Catering costs - provisions,81.60,0.00,81.60
Children and Adult Services,Education,071733,Shildon Childcare,Supplies and Services,304649,Equipment and Materials,03-Aug-2016,5140217081,Amazon UK Marketplace,5942,Toys,11.59,0.00,11.59
Children and Adult Services,Education,071733,Shildon Childcare,Supplies and Services,304649,Equipment and Materials,03-Aug-2016,5140217083,Amazon UK Marketplace,5942,Toys,15.70,0.00,15.70
Dedicated Schools Grant,Dedicated Schools Grant,079052,Part Sighted-Belmont Comp,Supplies and Services,304999,Equipment and Materials,03-Aug-2016,5140217085,Audible Ltd,5968,Misc equipment tools and materials,7.99,0.00,7.99
Children and Adult Services,Education,071903,EYDCP-Sustainability EDS,Supplies and Services,332047,Printing Stationery and Gen Off Exps,03-Aug-2016,5140217087,Amazon EU,5969,Stationery,22.12,0.00,22.12
Neighbourhood Services,Direct Services,010383,C&G - South Street Cleansing,Supplies and Services,312011,Newspapers Books and Periodicals,03-Aug-2016,5140217091,C.L.A.S.S,5251,Books-school library,24.00,0.00,24.00
Children and Adult Services,Childrens Services,085957,Secure Management,Supplies and Services,384999,Miscellaneous Expenses,03-Aug-2016,5140217095,Amazon UK Marketplace,5942,Other expenses,7.98,0.00,7.98
Children and Adult Services,Childrens Services,085957,Secure Management,Supplies and Services,324117,Provisions,03-Aug-2016,5140217103,TESCO STORES 6329,5411,Catering costs - provisions,78.50,0.00,78.50
Neighbourhood Services,Direct Services,021242,Catering - County Hall,Supplies and Services,324117,Provisions,03-Aug-2016,5140217137,JR HOLLAND FOODSERVICE,5422,Catering costs - provisions,94.55,0.00,94.55
Neighbourhood Services,Direct Services,021242,Catering - County Hall,Supplies and Services,324117,Provisions,03-Aug-2016,5140217139,JR HOLLAND FOODSERVICE,5422,Catering costs - provisions,24.77,0.00,24.77
Neighbourhood Services,Direct Services,021242,Catering - County Hall,Supplies and Services,324117,Provisions,03-Aug-2016,5140217141,BRAKE BROS LTD,5811,Catering costs - provisions,146.10,24.35,121.75
Neighbourhood Services,Direct Services,021242,Catering - County Hall,Supplies and Services,324117,Provisions,03-Aug-2016,5140217141 - 1,BRAKE BROS LTD,5811,Catering costs - provisions,201.66,,201.66
Neighbourhood Services,Direct Services,021242,Catering - County Hall,Supplies and Services,324117,Provisions,03-Aug-2016,5140217143,BRAKE BROS LTD,5811,Catering costs - provisions,189.66,0.00,189.66
Children and Adult Services,Childrens Services,071370,Peterlee and Seaham Locality,Supplies and Services,324117,Provisions,03-Aug-2016,5140217151,CO-OP GROUP 010488,5411,Catering costs - provisions,2.37,0.00,2.37
Children and Adult Services,Childrens Services,085958,Support Services,Supplies and Services,312011,Newspapers Books and Periodicals,03-Aug-2016,5140217163,Amazon UK Marketplace,5942,Books-school library,3.29,0.00,3.29
Children and Adult Services,Childrens Services,085958,Support Services,Supplies and Services,312011,Newspapers Books and Periodicals,03-Aug-2016,5140217165,Amazon UK Marketplace,5942,Books-school library,6.26,0.00,6.26
Children and Adult Services,Childrens Services,085958,Support Services,Supplies and Services,312011,Newspapers Books and Periodicals,03-Aug-2016,5140217167,Amazon UK Marketplace,5942,Books-school library,4.72,0.00,4.72
Children and Adult Services,Childrens Services,085958,Support Services,Supplies and Services,312011,Newspapers Books and Periodicals,03-Aug-2016,5140217169,Amazon UK Marketplace,5942,Books-school library,17.96,0.00,17.96
Children and Adult Services,Childrens Services,085958,Support Services,Supplies and Services,312011,Newspapers Books and Periodicals,03-Aug-2016,5140217171,Amazon UK Marketplace,5942,Books-school library,2.81,0.00,2.81
Children and Adult Services,Childrens Services,085958,Support Services,Supplies and Services,312011,Newspapers Books and Periodicals,03-Aug-2016,5140217173,Amazon UK Marketplace,5942,Books-school library,6.26,0.00,6.26
Children and Adult Services,Childrens Services,085958,Support Services,Supplies and Services,342033,Computers and Communications,03-Aug-2016,5140217175,VERY.CO.UK,5964,Computer hardware,68.00,0.00,68.00
Children and Adult Services,Childrens Services,085958,Support Services,Supplies and Services,342033,Computers and Communications,03-Aug-2016,5140217177,VERY.CO.UK,5964,Computer hardware,3.99,0.00,3.99
Children and Adult Services,Childrens Services,071350,Durham and Chester Le Street Locality,Supplies and Services,304999,Equipment and Materials,03-Aug-2016,5140217181,GO APE,7032,Misc equipment tools and materials,175.95,0.00,175.95
Neighbourhood Services,Culture & Sport,011060,Hardwick Park Catering,Supplies and Services,324117,Provisions,03-Aug-2016,5140217183,JR HOLLAND FOODSERVICE,5422,Catering costs - provisions,52.82,0.00,52.82
Neighbourhood Services,Culture & Sport,011060,Hardwick Park Catering,Supplies and Services,324117,Provisions,03-Aug-2016,5140217185,JR HOLLAND FOODSERVICE,5422,Catering costs - provisions,29.12,0.00,29.12
Neighbourhood Services,Culture & Sport,011060,Hardwick Park Catering,Supplies and Services,324117,Provisions,03-Aug-2016,5140217187,BRAKE BROS LTD,5811,Catering costs - provisions,198.72,33.12,165.60
Neighbourhood Services,Culture & Sport,011060,Hardwick Park Catering,Supplies and Services,324117,Provisions,03-Aug-2016,5140217187 - 1,BRAKE BROS LTD,5811,Catering costs - provisions,193.84,,193.84
Neighbourhood Services,Culture & Sport,011060,Hardwick Park Catering,Supplies and Services,324117,Provisions,03-Aug-2016,5140217189,BRAKE BROS LTD,5811,Catering costs - provisions,95.16,15.86,79.30
Neighbourhood Services,Culture & Sport,011060,Hardwick Park Catering,Supplies and Services,324117,Provisions,03-Aug-2016,5140217189 - 1,BRAKE BROS LTD,5811,Catering costs - provisions,70.25,,70.25
Neighbourhood Services,Culture & Sport,011060,Hardwick Park Catering,Supplies and Services,324117,Provisions,03-Aug-2016,5140217191,BRAKE BROS LTD,5811,Catering costs - provisions,-24.61,-4.10,-20.51
Regeneration & Economic Development,Economic Development and Housing,030762,Organisational Training & Development,Employees,040149,Recruitment Instruction and Training,03-Aug-2016,5140217195,CITB,8220,Training-all costs,30.00,5.00,25.00
Neighbourhood Services,Direct Services,010525,Catering - Green Lane,Supplies and Services,324117,Provisions,03-Aug-2016,5140217197,JR HOLLAND FOODSERVICE,5422,Catering costs - provisions,33.97,0.00,33.97
Children and Adult Services,Childrens Services,085361,LAC & Permanence Team 1 Aycliffe,Supplies and Services,338045,Services,03-Aug-2016,5140217201,HM PASSPORT OFFICE,9399,Legal expenses,19.50,0.00,19.50
Neighbourhood Services,Direct Services,020073,Bldg Serv - R&M Div 73 - Gas Servicing,Supplies and Services,372009,Subscriptions,03-Aug-2016,5140217205,CAPITA GAS REG,9399,Subscriptions,14.64,0.00,14.64
Resources,Legal & Democratic Services,067953,Coroner County Durham & Darlington,Supplies and Services,332047,Printing Stationery and Gen Off Exps,03-Aug-2016,5140217211,AMAZON UK RETAIL AMAZO,5999,Stationery,22.74,0.00,22.74
Children and Adult Services,Childrens Services,071370,Peterlee and Seaham Locality,Supplies and Services,304403,Equipment and Materials,03-Aug-2016,5140217221,TESCO - EDPA,5999,Other consumables,69.84,0.00,69.84
Children and Adult Services,Childrens Services,071370,Peterlee and Seaham Locality,Supplies and Services,304403,Equipment and Materials,03-Aug-2016,5140217223,TESCO - PLO,5999,Other consumables,8.90,0.00,8.90
Children and Adult Services,Childrens Services,071370,Peterlee and Seaham Locality,Supplies and Services,304403,Equipment and Materials,03-Aug-2016,5140217225,TESCO DIRECT,5999,Other consumables,67.86,0.00,67.86
Neighbourhood Services,Culture & Sport,054235,Bp Auckland Town Hall Cafe,Supplies and Services,324117,Provisions,03-Aug-2016,5140217227,JR HOLLAND FOODSERVICE,5422,Catering costs - provisions,34.36,0.00,34.36
Neighbourhood Services,Direct Services,021324,Catering - Meadowfield,Supplies and Services,324117,Provisions,03-Aug-2016,5140217229,JR HOLLAND FOODSERVICE,5422,Catering costs - provisions,43.78,0.00,43.78
Neighbourhood Services,Direct Services,021324,Catering - Meadowfield,Supplies and Services,324117,Provisions,03-Aug-2016,5140217231,JR HOLLAND FOODSERVICE,5422,Catering costs - provisions,13.45,0.00,13.45
Neighbourhood Services,Direct Services,021324,Catering - Meadowfield,Supplies and Services,324117,Provisions,03-Aug-2016,5140217233,BRAKE BROS LTD,5811,Catering costs - provisions,91.80,15.30,76.50
Neighbourhood Services,Direct Services,021324,Catering - Meadowfield,Supplies and Services,324117,Provisions,03-Aug-2016,5140217233 - 1,BRAKE BROS LTD,5811,Catering costs - provisions,65.09,,65.09
Neighbourhood Services,Culture & Sport,011086,Positive Futures,Supplies and Services,324117,Provisions,03-Aug-2016,5140217239,W M MORRISONS,5411,Catering costs - provisions,19.53,0.00,19.53
Neighbourhood Services,Culture & Sport,011191,Wellbeing4Life,Supplies and Services,304259,Equipment and Materials,03-Aug-2016,5140217247,WILKO DURHAM 426,5722,Equipment-purchase and rental,13.90,0.00,13.90
Children and Adult Services,Childrens Services,085331,New Lea Childrens Home,Supplies and Services,324117,Provisions,03-Aug-2016,5140217249,ASDA HOME SHOPPING,5411,Catering costs - provisions,188.93,0.00,188.93
Children and Adult Services,Childrens Services,085331,New Lea Childrens Home,Supplies and Services,324117,Provisions,03-Aug-2016,5140217253,ASDA HOME SHOPPING,5411,Catering costs - provisions,-3.70,0.00,-3.70
Children and Adult Services,Childrens Services,088083,Ferryhill 0 - 5,Supplies and Services,312011,Newspapers Books and Periodicals,03-Aug-2016,5140217255,Amazon UK Marketplace,5942,Books-school library,11.36,0.00,11.36
Children and Adult Services,Childrens Services,071404,Laurel Avenue Childrens Centre,Supplies and Services,312011,Newspapers Books and Periodicals,03-Aug-2016,5140217259,HOME BARGAINS,5251,Books-school library,6.62,0.00,6.62
Children and Adult Services,Childrens Services,071404,Laurel Avenue Childrens Centre,Supplies and Services,324117,Provisions,03-Aug-2016,5140217261,ICELAND,5411,Catering costs - provisions,6.00,0.00,6.00
Neighbourhood Services,Direct Services,021235,Catering - Wharton Park,Supplies and Services,324117,Provisions,03-Aug-2016,5140217263,BRAKE BROS LTD,5811,Catering costs - provisions,220.44,36.74,183.70
Neighbourhood Services,Direct Services,021235,Catering - Wharton Park,Supplies and Services,324117,Provisions,03-Aug-2016,5140217263 - 1,BRAKE BROS LTD,5811,Catering costs - provisions,68.70,,68.70
Neighbourhood Services,Culture & Sport,010605,Woodhouse Close Leisure Complex,Supplies and Services,324117,Provisions,03-Aug-2016,5140217271,JR HOLLAND FOODSERVICE,5422,Catering costs - provisions,39.16,0.00,39.16
Children and Adult Services,Education,078100,Curric and Professional Development,Supplies and Services,312009,Newspapers Books and Periodicals,03-Aug-2016,5140217273,PEARSON EDUCATION LTD,5192,Newspapers books and periodicals,43.00,0.00,43.00
Neighbourhood Services,Culture & Sport,011225,Locality 2 Team Management,Supplies and Services,328041,Clothing Uniforms and Laundry,03-Aug-2016,5140217277,ARGOS LTD,5310,Clothing uniforms and laundry,24.99,0.00,24.99
Regeneration & Economic Development,Economic Development and Housing,030737,Durham Works Flexible Fund,Supplies and Services,340001,Postages,03-Aug-2016,5140217279,POST OFFICE COUNTER,9402,Postages,330.00,0.00,330.00
Neighbourhood Services,Culture & Sport,054819,Gala Theatre - Theatre,Supplies and Services,384956,Miscellaneous Expenses,03-Aug-2016,5140217283,PAYPAL WEBHOSTUK,4816,Licences,13.19,2.20,10.99
Children and Adult Services,Childrens Services,088093,Newton Aycliffe 0 - 5,Supplies and Services,304245,Equipment and Materials,04-Aug-2016,5144386337,ARGOS RETAIL GROUP,5310,Materials,13.82,0.00,13.82
Children and Adult Services,Education,071903,EYDCP-Sustainability EDS,Supplies and Services,332047,Printing Stationery and Gen Off Exps,04-Aug-2016,5144386339,Amazon EU,5969,Stationery,29.29,0.00,29.29
Children and Adult Services,Education,071903,EYDCP-Sustainability EDS,Supplies and Services,332047,Printing Stationery and Gen Off Exps,04-Aug-2016,5144386343,Amazon EU,5969,Stationery,29.30,0.00,29.30
Children and Adult Services,Education,071903,EYDCP-Sustainability EDS,Supplies and Services,338057,Services,04-Aug-2016,5144386345,Amazon EU,5969,Medical fees,29.29,0.00,29.29
Children and Adult Services,Education,071903,EYDCP-Sustainability EDS,Supplies and Services,332047,Printing Stationery and Gen Off Exps,04-Aug-2016,5144386347,AMAZON UK RETAIL AMAZO,5999,Stationery,29.30,0.00,29.30
Children and Adult Services,Education,071903,EYDCP-Sustainability EDS,Supplies and Services,332047,Printing Stationery and Gen Off Exps,04-Aug-2016,5144386349,AMAZON UK RETAIL AMAZO,5999,Stationery,30.21,0.00,30.21
Neighbourhood Services,Direct Services,010383,C&G - South Street Cleansing,Supplies and Services,304259,Equipment and Materials,04-Aug-2016,5144386359,JEWSON LTD,5211,Equipment-purchase and rental,198.31,33.06,165.25
Children and Adult Services,Childrens Services,085957,Secure Management,Supplies and Services,304245,Equipment and Materials,04-Aug-2016,5144386361,SCREWFIX DIRECT,5211,Materials,31.72,5.29,26.43
Children and Adult Services,Childrens Services,085957,Secure Management,Supplies and Services,324117,Provisions,04-Aug-2016,5144386363,TESCO STORES 6329,5411,Catering costs - provisions,79.40,0.00,79.40
Children and Adult Services,Childrens Services,085342,9 Cedar Drive Aycliffe,Supplies and Services,324117,Provisions,04-Aug-2016,5144386365,SAINSBURYS (2303),5411,Catering costs - provisions,75.39,0.00,75.39
Children and Adult Services,Childrens Services,085342,9 Cedar Drive Aycliffe,Supplies and Services,324117,Provisions,04-Aug-2016,5144386367,SAINSBURYS (2303),5411,Catering costs - provisions,22.50,0.00,22.50
Children and Adult Services,Childrens Services,085342,9 Cedar Drive Aycliffe,Supplies and Services,324117,Provisions,04-Aug-2016,5144386369,SAINSBURYS (2303),5411,Catering costs - provisions,10.50,0.00,10.50
Children and Adult Services,Childrens Services,085342,9 Cedar Drive Aycliffe,Supplies and Services,324117,Provisions,04-Aug-2016,5144386371,SAINSBURYS (2303),5411,Catering costs - provisions,6.50,0.00,6.50
Children and Adult Services,Childrens Services,085342,9 Cedar Drive Aycliffe,Supplies and Services,324117,Provisions,04-Aug-2016,5144386373,G BOLAM FOODS,5499,Catering costs - provisions,50.53,0.00,50.53
Regeneration & Economic Development,Economic Development and Housing,030699,Business Growth and Innovation General,Supplies and Services,304403,Equipment and Materials,04-Aug-2016,5144386375,MEETEDGAR.COM STARTER,5734,Other consumables,36.74,0.00,36.74
Neighbourhood Services,Direct Services,021242,Catering - County Hall,Supplies and Services,324117,Provisions,04-Aug-2016,5144386397,BRAKE BROS LTD,5811,Catering costs - provisions,-4.10,0.00,-4.10
Children and Adult Services,Childrens Services,088063,Bishop Auckland 0 - 5,Supplies and Services,324117,Provisions,04-Aug-2016,5144386403,SAINSBURYS SACAT 2199,5411,Catering costs - provisions,6.00,0.00,6.00
Children and Adult Services,Childrens Services,088063,Bishop Auckland 0 - 5,Supplies and Services,328041,Clothing Uniforms and Laundry,04-Aug-2016,5144386405,POUNDLAND LTD 1554,5310,Clothing uniforms and laundry,13.00,0.00,13.00
Children and Adult Services,Childrens Services,088063,Bishop Auckland 0 - 5,Supplies and Services,312011,Newspapers Books and Periodicals,04-Aug-2016,5144386407,HOME BARGAINS,5251,Books-school library,20.04,3.34,16.70
Regeneration & Economic Development,Economic Development and Housing,030737,Durham Works Flexible Fund,Supplies and Services,304259,Equipment and Materials,04-Aug-2016,5144386423,SPORTSDIRECT 178,5941,Equipment-purchase and rental,20.99,0.00,20.99
Children and Adult Services,Childrens Services,085332,Middlestone Moor CU,Supplies and Services,312011,Newspapers Books and Periodicals,04-Aug-2016,5144386425,Amazon EU,5969,Books-school library,45.99,0.00,45.99
Children and Adult Services,Childrens Services,085332,Middlestone Moor CU,Supplies and Services,304403,Equipment and Materials,04-Aug-2016,5144386427,AMAZON UK RETAIL AMAZO,5999,Other consumables,16.47,0.00,16.47
Regeneration & Economic Development,Economic Development and Housing,030737,Durham Works Flexible Fund,Transport,235005,Public Transport,04-Aug-2016,5144386437,ARRIVA PASSENGER S,7538,Contract tickets,17.20,0.00,17.20
Children and Adult Services,Childrens Services,085958,Support Services,Supplies and Services,312011,Newspapers Books and Periodicals,04-Aug-2016,5144386439,"Amazon Svcs Europe,SAR",5942,Books-school library,5.40,0.00,5.40
Children and Adult Services,Childrens Services,085958,Support Services,Supplies and Services,312011,Newspapers Books and Periodicals,04-Aug-2016,5144386441,Amazon UK Marketplace,5942,Books-school library,6.94,0.00,6.94
Children and Adult Services,Childrens Services,085958,Support Services,Supplies and Services,312011,Newspapers Books and Periodicals,04-Aug-2016,5144386443,Amazon UK Marketplace,5942,Books-school library,2.81,0.00,2.81
Children and Adult Services,Childrens Services,085958,Support Services,Supplies and Services,312011,Newspapers Books and Periodicals,04-Aug-2016,5144386445,Amazon UK Marketplace,5942,Books-school library,4.30,0.00,4.30
Children and Adult Services,Childrens Services,085958,Support Services,Supplies and Services,312011,Newspapers Books and Periodicals,04-Aug-2016,5144386447,Amazon UK Marketplace,5942,Books-school library,4.84,0.00,4.84
Children and Adult Services,Childrens Services,085958,Support Services,Supplies and Services,312011,Newspapers Books and Periodicals,04-Aug-2016,5144386449,Amazon UK Marketplace,5942,Books-school library,3.79,0.00,3.79
Children and Adult Services,Childrens Services,085958,Support Services,Supplies and Services,312011,Newspapers Books and Periodicals,04-Aug-2016,5144386451,Amazon UK Marketplace,5942,Books-school library,2.81,0.00,2.81
Children and Adult Services,Childrens Services,085958,Support Services,Supplies and Services,312011,Newspapers Books and Periodicals,04-Aug-2016,5144386453,Amazon UK Marketplace,5942,Books-school library,6.27,0.00,6.27
Children and Adult Services,Childrens Services,085958,Support Services,Supplies and Services,312011,Newspapers Books and Periodicals,04-Aug-2016,5144386455,Amazon UK Marketplace,5942,Books-school library,5.06,0.00,5.06
Children and Adult Services,Childrens Services,085958,Support Services,Supplies and Services,312011,Newspapers Books and Periodicals,04-Aug-2016,5144386457,Amazon UK Marketplace,5942,Books-school library,2.81,0.00,2.81
Children and Adult Services,Childrens Services,085958,Support Services,Supplies and Services,312011,Newspapers Books and Periodicals,04-Aug-2016,5144386459,Amazon UK Marketplace,5942,Books-school library,20.00,0.00,20.00
Children and Adult Services,Childrens Services,085958,Support Services,Supplies and Services,312011,Newspapers Books and Periodicals,04-Aug-2016,5144386461,Amazon UK Marketplace,5942,Books-school library,55.11,0.00,55.11
Children and Adult Services,Childrens Services,085958,Support Services,Supplies and Services,312011,Newspapers Books and Periodicals,04-Aug-2016,5144386463,Amazon UK Marketplace,5942,Books-school library,28.93,0.00,28.93
Children and Adult Services,Childrens Services,085958,Support Services,Supplies and Services,312011,Newspapers Books and Periodicals,04-Aug-2016,5144386465,Amazon UK Marketplace,5942,Books-school library,65.00,0.00,65.00
Neighbourhood Services,Direct Services,010301,C&G - North Grounds Maintenance,Supplies and Services,304259,Equipment and Materials,04-Aug-2016,5144386479,HARELAW SAWMILL,5211,Equipment-purchase and rental,100.80,0.00,100.80
Neighbourhood Services,Culture & Sport,011210,Parks & Countryside,Supplies and Services,384999,Miscellaneous Expenses,04-Aug-2016,5144386481,WWW.RISUSWHOLESALE,5945,Other expenses,44.39,0.00,44.39
Regeneration & Economic Development,Economic Development and Housing,031576,B& B - Temp Accom,Supplies and Services,364320,Grants to Voluntary Organisations,04-Aug-2016,5144386483,AYCLIFFE BIZ,7011,Accommodation assistance,35.00,0.00,35.00
Regeneration & Economic Development,Economic Development and Housing,031576,B& B - Temp Accom,Supplies and Services,364320,Grants to Voluntary Organisations,04-Aug-2016,5144386485,AYCLIFFE BIZ,7011,Accommodation assistance,261.50,0.00,261.50
Children and Adult Services,Childrens Services,088063,Bishop Auckland 0 - 5,Supplies and Services,324117,Provisions,04-Aug-2016,5144386489,WM MORRISON 040,5411,Catering costs - provisions,2.00,0.00,2.00
Neighbourhood Services,Direct Services,010367,C&G - South Grounds Maintenance,Supplies and Services,324117,Provisions,04-Aug-2016,5144386493,J M RAINE,5399,Catering costs - provisions,175.33,0.00,175.33
Neighbourhood Services,Direct Services,010367,C&G - South Grounds Maintenance,Supplies and Services,328041,Clothing Uniforms and Laundry,04-Aug-2016,5144386495,ARGOS LTD,5310,Clothing uniforms and laundry,35.98,0.00,35.98
Children and Adult Services,Childrens Services,071360,Consett and Stanley Locality,Supplies and Services,312011,Newspapers Books and Periodicals,04-Aug-2016,5144386497,Amazon UK Marketplace,5942,Books-school library,7.64,0.00,7.64
Children and Adult Services,Head of Adults,051575,Reablement South,Supplies and Services,340001,Postages,04-Aug-2016,5144386501,WWW.ROYALMAIL.COM,9402,Postages,32.17,0.00,32.17
Children and Adult Services,Childrens Services,085333,Coxhoe Satelite Home,Supplies and Services,324117,Provisions,04-Aug-2016,5144386511,ALDI,5411,Catering costs - provisions,70.20,0.00,70.20
Children and Adult Services,Childrens Services,085333,Coxhoe Satelite Home,Supplies and Services,328041,Clothing Uniforms and Laundry,04-Aug-2016,5144386513,B & M RETAIL,5310,Clothing uniforms and laundry,7.97,0.00,7.97
Children and Adult Services,Childrens Services,088073,Barnard Castle 0 - 5,Supplies and Services,384199,Miscellaneous Expenses,04-Aug-2016,5144386517,Amazon UK Marketplace,5999,Other hired and contracted services,-20.45,0.00,-20.45
Neighbourhood Services,Culture & Sport,011191,Wellbeing4Life,Supplies and Services,324117,Provisions,04-Aug-2016,5144386529,ALDI,5411,Catering costs - provisions,24.86,0.00,24.86
Neighbourhood Services,Culture & Sport,011191,Wellbeing4Life,Supplies and Services,324117,Provisions,04-Aug-2016,5144386531,ASDA SUPERSTORE 4987,5411,Catering costs - provisions,43.81,0.00,43.81
Neighbourhood Services,Culture & Sport,011191,Wellbeing4Life,Supplies and Services,324117,Provisions,04-Aug-2016,5144386533,ASDA SUPERSTORE 4987,5411,Catering costs - provisions,5.50,0.00,5.50
Neighbourhood Services,Culture & Sport,011191,Wellbeing4Life,Supplies and Services,324117,Provisions,04-Aug-2016,5144386535,LIDL UK,5411,Catering costs - provisions,0.75,0.00,0.75
Neighbourhood Services,Culture & Sport,010605,Woodhouse Close Leisure Complex,Supplies and Services,324117,Provisions,04-Aug-2016,5144386547,BRAKE BROS LTD,5811,Catering costs - provisions,129.54,21.59,107.95
Neighbourhood Services,Culture & Sport,010605,Woodhouse Close Leisure Complex,Supplies and Services,324117,Provisions,04-Aug-2016,5144386547 - 1,BRAKE BROS LTD,5811,Catering costs - provisions,131.38,,131.38
Children and Adult Services,Education,078100,Curric and Professional Development,Supplies and Services,312009,Newspapers Books and Periodicals,04-Aug-2016,5144386551,WWW.CAMBRIDGEASSES,8220,Newspapers books and periodicals,49.75,0.00,49.75
Regeneration & Economic Development,Economic Development and Housing,030554,International Relations,Transport,235057,Public Transport,04-Aug-2016,5144386563,BATEAU PARISIEN,4789,Staff travelling,209.66,0.00,209.66
Neighbourhood Services,Direct Services,021242,Catering - County Hall,Supplies and Services,324117,Provisions,04-Aug-2016,5148961047,JR HOLLAND FOODSERVICE,5422,Catering costs - provisions,103.87,0.00,103.87
Neighbourhood Services,Direct Services,021242,Catering - County Hall,Supplies and Services,324117,Provisions,04-Aug-2016,5148961049,JR HOLLAND FOODSERVICE,5422,Catering costs - provisions,23.45,0.00,23.45
Neighbourhood Services,Direct Services,021242,Catering - County Hall,Supplies and Services,324117,Provisions,04-Aug-2016,5148961051,JR HOLLAND FOODSERVICE,5422,Catering costs - provisions,13.16,0.00,13.16
Neighbourhood Services,Culture & Sport,054812,Gala Theatre - Catering etc,Supplies and Services,324117,Provisions,04-Aug-2016,5148961069,JR HOLLAND FOODSERVICE,5422,Catering costs - provisions,50.39,0.00,50.39
Children and Adult Services,Childrens Services,085957,Secure Management,Supplies and Services,340001,Postages,04-Aug-2016,5148961095,POST OFFICE SHOP,9402,Postages,18.35,0.00,18.35
Neighbourhood Services,Culture & Sport,011060,Hardwick Park Catering,Supplies and Services,324117,Provisions,04-Aug-2016,5148961119,JR HOLLAND FOODSERVICE,5422,Catering costs - provisions,51.90,0.00,51.90
Neighbourhood Services,Direct Services,010525,Catering - Green Lane,Supplies and Services,324117,Provisions,04-Aug-2016,5148961141,JR HOLLAND FOODSERVICE,5422,Catering costs - provisions,-2.97,0.00,-2.97
Neighbourhood Services,Direct Services,021235,Catering - Wharton Park,Supplies and Services,324117,Provisions,04-Aug-2016,5148961207,JR HOLLAND FOODSERVICE,5422,Catering costs - provisions,22.91,0.00,22.91
Neighbourhood Services,Culture & Sport,011198,Culture & Sport Management,Supplies and Services,342033,Computers and Communications,04-Aug-2016,5148961229,pickplugi,7299,Computer hardware,14.37,0.00,14.37
Regeneration & Economic Development,Economic Development and Housing,030699,Business Growth and Innovation General,Supplies and Services,304403,Equipment and Materials,05-Aug-2016,5144386377,MEETEDGAR.COM STARTER,5734,Other consumables,1.01,0.00,1.01
Children and Adult Services,Childrens Services,085958,Support Services,Supplies and Services,312011,Newspapers Books and Periodicals,05-Aug-2016,5144386467,"Amazon Svcs Europe,SAR",5942,Books-school library,16.85,0.00,16.85
Regeneration & Economic Development,Economic Development and Housing,030554,International Relations,Transport,235057,Public Transport,05-Aug-2016,5144386565,BATEAU PARISIEN,4789,Staff travelling,5.77,0.00,5.77
Neighbourhood Services,Direct Services,010383,C&G - South Street Cleansing,Supplies and Services,324117,Provisions,05-Aug-2016,5148961011,J M RAINE,5399,Catering costs - provisions,39.48,6.58,32.90
Neighbourhood Services,Direct Services,010383,C&G - South Street Cleansing,Supplies and Services,324117,Provisions,05-Aug-2016,5148961011 - 1,J M RAINE,5399,Catering costs - provisions,30.00,,30.00
Children and Adult Services,Childrens Services,085957,Secure Management,Supplies and Services,384999,Miscellaneous Expenses,05-Aug-2016,5148961021,Amazon UK Marketplace,5942,Other expenses,11.21,0.00,11.21
Children and Adult Services,Childrens Services,085957,Secure Management,Supplies and Services,384999,Miscellaneous Expenses,05-Aug-2016,5148961023,Amazon UK Marketplace,5942,Other expenses,7.84,0.00,7.84
Neighbourhood Services,Direct Services,021242,Catering - County Hall,Supplies and Services,324117,Provisions,05-Aug-2016,5148961053,BRAKE BROS LTD,5811,Catering costs - provisions,200.10,0.00,200.10
Children and Adult Services,Education,070169,Durham SSP,Supplies and Services,384199,Miscellaneous Expenses,05-Aug-2016,5148961059,Amazon UK Marketplace,5942,Other hired and contracted services,25.40,0.00,25.40
Children and Adult Services,Education,070169,Durham SSP,Supplies and Services,384199,Miscellaneous Expenses,05-Aug-2016,5148961061,Amazon UK Marketplace,5942,Other hired and contracted services,21.66,0.00,21.66
Resources,I.C.T. Services,065464,Domains,Supplies and Services,372009,Subscriptions,05-Aug-2016,5148961065,WEB NETWORKSOLUTIONS,5968,Subscriptions,80.16,0.00,80.16
Children and Adult Services,Childrens Services,085332,Middlestone Moor CU,Supplies and Services,312011,Newspapers Books and Periodicals,05-Aug-2016,5148961089,Amazon UK Marketplace,5942,Books-school library,58.98,0.00,58.98
Children and Adult Services,Childrens Services,085958,Support Services,Supplies and Services,312011,Newspapers Books and Periodicals,05-Aug-2016,5148961097,"Amazon Svcs Europe,SAR",5942,Books-school library,6.47,0.00,6.47
Children and Adult Services,Childrens Services,085958,Support Services,Supplies and Services,312011,Newspapers Books and Periodicals,05-Aug-2016,5148961099,Amazon UK Marketplace,5942,Books-school library,16.54,0.00,16.54
Children and Adult Services,Childrens Services,085958,Support Services,Supplies and Services,312011,Newspapers Books and Periodicals,05-Aug-2016,5148961101,Amazon UK Marketplace,5942,Books-school library,7.17,0.00,7.17
Children and Adult Services,Childrens Services,085958,Support Services,Supplies and Services,312011,Newspapers Books and Periodicals,05-Aug-2016,5148961103,Amazon UK Marketplace,5942,Books-school library,6.99,0.00,6.99
Children and Adult Services,Childrens Services,085958,Support Services,Supplies and Services,312011,Newspapers Books and Periodicals,05-Aug-2016,5148961105,Amazon UK Marketplace,5942,Books-school library,132.93,0.00,132.93
Children and Adult Services,Childrens Services,085958,Support Services,Supplies and Services,312011,Newspapers Books and Periodicals,05-Aug-2016,5148961109,Amazon EU,5969,Books-school library,28.47,0.00,28.47
Children and Adult Services,Childrens Services,085958,Support Services,Supplies and Services,324117,Provisions,05-Aug-2016,5148961111,TESCO STORES 6329,5411,Catering costs - provisions,54.88,0.00,54.88
Neighbourhood Services,Culture & Sport,011060,Hardwick Park Catering,Supplies and Services,324117,Provisions,05-Aug-2016,5148961123,BRAKE BROS LTD,5811,Catering costs - provisions,976.02,162.67,813.35
Neighbourhood Services,Culture & Sport,011060,Hardwick Park Catering,Supplies and Services,324117,Provisions,05-Aug-2016,5148961123 - 1,BRAKE BROS LTD,5811,Catering costs - provisions,151.51,,151.51
Neighbourhood Services,Culture & Sport,011060,Hardwick Park Catering,Supplies and Services,324117,Provisions,05-Aug-2016,5148961125,BRAKE BROS LTD,5811,Catering costs - provisions,353.82,58.97,294.85
Neighbourhood Services,Culture & Sport,011060,Hardwick Park Catering,Supplies and Services,324117,Provisions,05-Aug-2016,5148961125 - 1,BRAKE BROS LTD,5811,Catering costs - provisions,371.47,,371.47
Regeneration & Economic Development,Economic Development and Housing,030762,Organisational Training & Development,Employees,040149,Recruitment Instruction and Training,05-Aug-2016,5148961135,CITB,8220,Training-all costs,30.00,5.00,25.00
Regeneration & Economic Development,Economic Development and Housing,030762,Organisational Training & Development,Employees,040149,Recruitment Instruction and Training,05-Aug-2016,5148961137,CITB,8220,Training-all costs,30.00,5.00,25.00
Regeneration & Economic Development,Economic Development and Housing,030762,Organisational Training & Development,Employees,040149,Recruitment Instruction and Training,05-Aug-2016,5148961139,CITB,8220,Training-all costs,30.00,5.00,25.00
Resources,I.C.T. Services,069010,Administration,Supplies and Services,340001,Postages,05-Aug-2016,5148961165,WWW.ROYALMAIL.COM,9402,Postages,8.05,0.00,8.05
Children and Adult Services,Planning & Service Strategy,052956,PSS - QRT Quality and Improvement,Supplies and Services,338064,Services,05-Aug-2016,5148961167,DISCLOSURE SCOT,9399,Disclosure & Barring (DBS) Fees,25.00,0.00,25.00
Children and Adult Services,Childrens Services,071370,Peterlee and Seaham Locality,Supplies and Services,304259,Equipment and Materials,05-Aug-2016,5148961177,HARTLEPOOL BC CNP,9399,Equipment-purchase and rental,10.18,0.00,10.18
Regeneration & Economic Development,Transport and Contracted Services,031701,Care Connect All Localities,Supplies and Services,344033,Telephones,05-Aug-2016,5148961179,BT BILL PAYMENT 2,4812,Telephones general-all costs,30.73,5.12,25.61
Children and Adult Services,Childrens Services,071370,Peterlee and Seaham Locality,Supplies and Services,384237,Miscellaneous Expenses,05-Aug-2016,5148961191,ADVENTURE VALLEY,7999,Recreational exps outings parties,165.75,27.63,138.12
Neighbourhood Services,Culture & Sport,010605,Woodhouse Close Leisure Complex,Supplies and Services,324117,Provisions,05-Aug-2016,5148961225,BRAKE BROS LTD,5811,Catering costs - provisions,77.75,0.00,77.75
Regeneration & Economic Development,Economic Development and Housing,030737,Durham Works Flexible Fund,Supplies and Services,312011,Newspapers Books and Periodicals,05-Aug-2016,5148961245,Amazon UK Marketplace,5942,Books-school library,2.34,0.00,2.34
Regeneration & Economic Development,Spatial Policy Planning Assets & Environment,031200,North Pennines Core,Supplies and Services,304259,Equipment and Materials,05-Aug-2016,5148961251,NORTHUMBERLAND CC,9399,Equipment-purchase and rental,50.00,0.00,50.00
Children and Adult Services,Childrens Services,085957,Secure Management,Supplies and Services,384999,Miscellaneous Expenses,06-Aug-2016,5148961025,Amazon UK Marketplace,5942,Other expenses,9.10,0.00,9.10
Children and Adult Services,Childrens Services,085957,Secure Management,Supplies and Services,328041,Clothing Uniforms and Laundry,06-Aug-2016,5148961027,TRADEINN,5964,Clothing uniforms and laundry,21.40,3.57,17.83
Children and Adult Services,Childrens Services,085957,Secure Management,Supplies and Services,324117,Provisions,06-Aug-2016,5148961029,TESCO STORES 6329,5411,Catering costs - provisions,111.32,0.00,111.32
Children and Adult Services,Childrens Services,085958,Support Services,Supplies and Services,312011,Newspapers Books and Periodicals,06-Aug-2016,5148961113,Amazon EU,5969,Books-school library,9.49,0.00,9.49
Children and Adult Services,Childrens Services,088083,Ferryhill 0 - 5,Supplies and Services,312011,Newspapers Books and Periodicals,06-Aug-2016,5148961193,Amazon EU,5969,Books-school library,58.29,0.00,58.29
Neighbourhood Services,Direct Services,021235,Catering - Wharton Park,Supplies and Services,324117,Provisions,06-Aug-2016,5148961209,BRAKE BROS LTD,5811,Catering costs - provisions,357.06,59.51,297.55
Neighbourhood Services,Direct Services,021235,Catering - Wharton Park,Supplies and Services,324117,Provisions,06-Aug-2016,5148961209 - 1,BRAKE BROS LTD,5811,Catering costs - provisions,47.89,,47.89
Neighbourhood Services,Direct Services,021235,Catering - Wharton Park,Supplies and Services,324117,Provisions,06-Aug-2016,5148961217,BRAKE BROS LTD,5811,Catering costs - provisions,317.76,52.96,264.80
Neighbourhood Services,Direct Services,021235,Catering - Wharton Park,Supplies and Services,324117,Provisions,06-Aug-2016,5148961217 - 1,BRAKE BROS LTD,5811,Catering costs - provisions,5.39,,5.39
Children and Adult Services,Childrens Services,085341,High Etherley Satelite Home,Supplies and Services,324117,Provisions,07-Aug-2016,5148961087,TESCO STORES 6329,5411,Catering costs - provisions,14.77,0.00,14.77
Children and Adult Services,Childrens Services,085332,Middlestone Moor CU,Supplies and Services,328041,Clothing Uniforms and Laundry,07-Aug-2016,5148961091,ARGOS RETAIL GROUP,5310,Clothing uniforms and laundry,49.99,0.00,49.99
Children and Adult Services,Childrens Services,085332,Middlestone Moor CU,Supplies and Services,304259,Equipment and Materials,07-Aug-2016,5148961093,CURRYS ONLINE,5732,Equipment-purchase and rental,204.99,0.00,204.99
Regeneration & Economic Development,Economic Development and Housing,030737,Durham Works Flexible Fund,Supplies and Services,312011,Newspapers Books and Periodicals,07-Aug-2016,5148961247,Amazon UK Marketplace,5942,Books-school library,30.11,0.00,30.11
Resources,I.C.T. Services,065464,Domains,Supplies and Services,372009,Subscriptions,08-Aug-2016,5148961067,WEB NETWORKSOLUTIONS,5968,Subscriptions,2.20,0.00,2.20
Children and Adult Services,Education,071801,Selby Cottage Childcare Centre,Supplies and Services,324117,Provisions,08-Aug-2016,5154961641,TESCO STORES 2278,5411,Catering costs - provisions,27.12,0.00,27.12
Regeneration & Economic Development,Spatial Policy Planning Assets & Environment,036305,High Street Spennymoor / Church Street Shildon,Income,720130,Fees and Charges,08-Aug-2016,5154961655,WWW.MONEYCLAIM.GOV,9399,Fees-legal,105.00,0.00,105.00
Children and Adult Services,Education,071733,Shildon Childcare,Supplies and Services,304649,Equipment and Materials,08-Aug-2016,5154961657,POUNDLAND LTD 1554,5310,Toys,6.00,0.00,6.00
Children and Adult Services,Education,071733,Shildon Childcare,Supplies and Services,324117,Provisions,08-Aug-2016,5154961659,ASDA HOME SHOPPING,5411,Catering costs - provisions,30.68,0.00,30.68
Children and Adult Services,Education,071733,Shildon Childcare,Supplies and Services,304649,Equipment and Materials,08-Aug-2016,5154961663,HOME BARGAINS,5251,Toys,5.28,0.00,5.28
Children and Adult Services,Education,071733,Shildon Childcare,Supplies and Services,304649,Equipment and Materials,08-Aug-2016,5154961665,B & M RETAIL,5310,Toys,40.42,0.00,40.42
Neighbourhood Services,Direct Services,010383,C&G - South Street Cleansing,Supplies and Services,304403,Equipment and Materials,08-Aug-2016,5154961671,W E & J ROWLE,5947,Other consumables,27.98,0.00,27.98
Children and Adult Services,Childrens Services,085957,Secure Management,Supplies and Services,304245,Equipment and Materials,08-Aug-2016,5154961673,Amazon UK Marketplace,5942,Materials,35.89,0.00,35.89
Children and Adult Services,Childrens Services,085342,9 Cedar Drive Aycliffe,Supplies and Services,332047,Printing Stationery and Gen Off Exps,08-Aug-2016,5154961679,ODEON/BOOKIT,7832,Stationery,14.00,0.00,14.00
Children and Adult Services,Childrens Services,085342,9 Cedar Drive Aycliffe,Supplies and Services,332047,Printing Stationery and Gen Off Exps,08-Aug-2016,5154961681,ODEON,7832,Stationery,-14.00,0.00,-14.00
Neighbourhood Services,Direct Services,010367,C&G - South Grounds Maintenance,Supplies and Services,304259,Equipment and Materials,08-Aug-2016,5154961685,SCREWFIX,5211,Equipment-purchase and rental,29.82,4.97,24.85
Children and Adult Services,Education,071903,EYDCP-Sustainability EDS,Supplies and Services,332047,Printing Stationery and Gen Off Exps,08-Aug-2016,5154961697,Amazon UK Marketplace,5942,Stationery,28.37,0.00,28.37
Children and Adult Services,Education,071903,EYDCP-Sustainability EDS,Supplies and Services,332047,Printing Stationery and Gen Off Exps,08-Aug-2016,5154961701,Amazon UK Marketplace,5942,Stationery,28.36,0.00,28.36
Neighbourhood Services,Direct Services,021242,Catering - County Hall,Supplies and Services,324117,Provisions,08-Aug-2016,5154961703,JR HOLLAND FOODSERVICE,5422,Catering costs - provisions,108.95,0.00,108.95
Neighbourhood Services,Direct Services,021242,Catering - County Hall,Supplies and Services,324117,Provisions,08-Aug-2016,5154961705,JR HOLLAND FOODSERVICE,5422,Catering costs - provisions,13.16,0.00,13.16
Neighbourhood Services,Direct Services,021242,Catering - County Hall,Supplies and Services,324117,Provisions,08-Aug-2016,5154961707,JR HOLLAND FOODSERVICE,5422,Catering costs - provisions,6.94,0.00,6.94
Neighbourhood Services,Direct Services,021242,Catering - County Hall,Supplies and Services,324117,Provisions,08-Aug-2016,5154961709,BRAKE BROS LTD,5811,Catering costs - provisions,189.03,0.00,189.03
Regeneration & Economic Development,Economic Development and Housing,030698,Netpark NET,Supplies and Services,372009,Subscriptions,08-Aug-2016,5154961713,NOMINET UK,7379,Subscriptions,27.00,4.50,22.50
Regeneration & Economic Development,Spatial Policy Planning Assets & Environment,031200,North Pennines Core,Supplies and Services,312011,Newspapers Books and Periodicals,08-Aug-2016,5154961737,Amazon UK Marketplace,5942,Books-school library,9.05,0.00,9.05
Children and Adult Services,Childrens Services,088063,Bishop Auckland 0 - 5,Supplies and Services,324117,Provisions,08-Aug-2016,5154961743,SAINSBURYS 2199,5411,Catering costs - provisions,49.95,0.00,49.95
Regeneration & Economic Development,Economic Development and Housing,030552,ATLAS Regional Network,Transport,235057,Public Transport,08-Aug-2016,5154961747,VIRGINTRAINSEC SERVCS,4112,Staff travelling,180.50,0.00,180.50
Children and Adult Services,Childrens Services,085958,Support Services,Supplies and Services,312011,Newspapers Books and Periodicals,08-Aug-2016,5154961759,Amazon UK Marketplace,5942,Books-school library,6.77,0.00,6.77
Children and Adult Services,Childrens Services,085958,Support Services,Supplies and Services,312011,Newspapers Books and Periodicals,08-Aug-2016,5154961761,Amazon UK Marketplace,5942,Books-school library,23.88,0.00,23.88
Children and Adult Services,Childrens Services,085958,Support Services,Supplies and Services,312011,Newspapers Books and Periodicals,08-Aug-2016,5154961763,Amazon UK Marketplace,5942,Books-school library,27.92,0.00,27.92
Children and Adult Services,Childrens Services,085958,Support Services,Supplies and Services,312011,Newspapers Books and Periodicals,08-Aug-2016,5154961765,Amazon UK Marketplace,5942,Books-school library,6.23,0.00,6.23
Children and Adult Services,Childrens Services,085958,Support Services,Supplies and Services,312011,Newspapers Books and Periodicals,08-Aug-2016,5154961769,Amazon UK Marketplace,5942,Books-school library,8.66,0.00,8.66
Neighbourhood Services,Direct Services,010367,C&G - South Grounds Maintenance,Supplies and Services,304259,Equipment and Materials,08-Aug-2016,5154961771,SCREWFIX,5211,Equipment-purchase and rental,46.80,7.80,39.00
Neighbourhood Services,Culture & Sport,011060,Hardwick Park Catering,Supplies and Services,324117,Provisions,08-Aug-2016,5154961785,JR HOLLAND FOODSERVICE,5422,Catering costs - provisions,52.08,0.00,52.08
Neighbourhood Services,Culture & Sport,011060,Hardwick Park Catering,Supplies and Services,324117,Provisions,08-Aug-2016,5154961787,JR HOLLAND FOODSERVICE,5422,Catering costs - provisions,30.15,0.00,30.15
Neighbourhood Services,Culture & Sport,011060,Hardwick Park Catering,Supplies and Services,324117,Provisions,08-Aug-2016,5154961791,JR HOLLAND FOODSERVICE,5422,Catering costs - provisions,16.37,0.00,16.37
Neighbourhood Services,Culture & Sport,011060,Hardwick Park Catering,Supplies and Services,324117,Provisions,08-Aug-2016,5154961805,BRAKE BROS LTD,5811,Catering costs - provisions,451.50,75.25,376.25
Neighbourhood Services,Culture & Sport,011060,Hardwick Park Catering,Supplies and Services,324117,Provisions,08-Aug-2016,5154961805 - 1,BRAKE BROS LTD,5811,Catering costs - provisions,320.70,,320.70
Neighbourhood Services,Culture & Sport,011060,Hardwick Park Catering,Supplies and Services,324117,Provisions,08-Aug-2016,5154961815,BRAKE BROS LTD,5811,Catering costs - provisions,622.08,103.68,518.40
Neighbourhood Services,Culture & Sport,011060,Hardwick Park Catering,Supplies and Services,324117,Provisions,08-Aug-2016,5154961815 - 1,BRAKE BROS LTD,5811,Catering costs - provisions,114.47,,114.47
Neighbourhood Services,Direct Services,010525,Catering - Green Lane,Supplies and Services,324117,Provisions,08-Aug-2016,5154961845,JR HOLLAND FOODSERVICE,5422,Catering costs - provisions,29.79,0.00,29.79
Neighbourhood Services,Direct Services,010525,Catering - Green Lane,Supplies and Services,324117,Provisions,08-Aug-2016,5154961847,BRAKE BROS LTD,5811,Catering costs - provisions,50.62,0.00,50.62
Neighbourhood Services,Direct Services,010525,Catering - Green Lane,Supplies and Services,324117,Provisions,08-Aug-2016,5154961851,JR HOLLAND FOODSERVICE,5422,Catering costs - provisions,-1.98,0.00,-1.98
Children and Adult Services,Childrens Services,085352,Tow Law CU,Supplies and Services,324117,Provisions,08-Aug-2016,5154961857,TESCO STORES 2371,5411,Catering costs - provisions,213.03,0.00,213.03
Children and Adult Services,Childrens Services,088074,Barnard Castle 5 - 19,Supplies and Services,304403,Equipment and Materials,08-Aug-2016,5154961867,W BOYES & CO LTD BISHO,5310,Other consumables,30.50,0.00,30.50
Children and Adult Services,Childrens Services,088064,Bishop Auckland 5 - 19,Supplies and Services,324117,Provisions,08-Aug-2016,5154961869,POUNDWORLD RETAIL,5310,Catering costs - provisions,18.00,3.00,15.00
Children and Adult Services,Childrens Services,088064,Bishop Auckland 5 - 19,Supplies and Services,304403,Equipment and Materials,08-Aug-2016,5154961871,WILKO RETAIL LIMIT,5722,Other consumables,4.00,0.00,4.00
Children and Adult Services,Childrens Services,088066,Bishop Auckland Teenage Parent Programme,Supplies and Services,324117,Provisions,08-Aug-2016,5154961875,ASDA STORES,5411,Catering costs - provisions,18.98,0.00,18.98
Children and Adult Services,Childrens Services,071360,Consett and Stanley Locality,Supplies and Services,324117,Provisions,08-Aug-2016,5154961885,CO-OP GROUP 310021,5411,Catering costs - provisions,19.70,0.00,19.70
Resources,I.C.T. Services,065482,Data Centres,Supplies and Services,332047,Printing Stationery and Gen Off Exps,08-Aug-2016,5154961887,Amazon UK Marketplace,5942,Stationery,20.00,0.00,20.00
Neighbourhood Services,Culture & Sport,054399,Local Delivery-Libraries,Supplies and Services,312011,Newspapers Books and Periodicals,08-Aug-2016,5154961895,Amazon EU,5969,Books-school library,13.99,0.00,13.99
Neighbourhood Services,Culture & Sport,054399,Local Delivery-Libraries,Supplies and Services,312011,Newspapers Books and Periodicals,08-Aug-2016,5154961899,Amazon EU,5969,Books-school library,12.01,0.00,12.01
Neighbourhood Services,Culture & Sport,054399,Local Delivery-Libraries,Supplies and Services,312011,Newspapers Books and Periodicals,08-Aug-2016,5154961901,Amazon EU,5969,Books-school library,18.68,0.00,18.68
Neighbourhood Services,Culture & Sport,054399,Local Delivery-Libraries,Supplies and Services,312011,Newspapers Books and Periodicals,08-Aug-2016,5154961903,Amazon EU,5969,Books-school library,12.99,0.00,12.99
Children and Adult Services,Childrens Services,071370,Peterlee and Seaham Locality,Supplies and Services,304403,Equipment and Materials,08-Aug-2016,5154961923,TESCO DIRECT,5999,Other consumables,-35.13,0.00,-35.13
Neighbourhood Services,Culture & Sport,054235,Bp Auckland Town Hall Cafe,Supplies and Services,324117,Provisions,08-Aug-2016,5154961927,JR HOLLAND FOODSERVICE,5422,Catering costs - provisions,24.29,0.00,24.29
Neighbourhood Services,Culture & Sport,054235,Bp Auckland Town Hall Cafe,Supplies and Services,324117,Provisions,08-Aug-2016,5154961931,JR HOLLAND FOODSERVICE,5422,Catering costs - provisions,15.53,0.00,15.53
Neighbourhood Services,Direct Services,021324,Catering - Meadowfield,Supplies and Services,324117,Provisions,08-Aug-2016,5154961933,JR HOLLAND FOODSERVICE,5422,Catering costs - provisions,29.04,0.00,29.04
Neighbourhood Services,Direct Services,021324,Catering - Meadowfield,Supplies and Services,324117,Provisions,08-Aug-2016,5154961937,JR HOLLAND FOODSERVICE,5422,Catering costs - provisions,9.87,0.00,9.87
Children and Adult Services,Childrens Services,085333,Coxhoe Satelite Home,Supplies and Services,312011,Newspapers Books and Periodicals,08-Aug-2016,5154961949,Amazon EU,5969,Books-school library,8.41,0.00,8.41
Neighbourhood Services,Culture & Sport,011086,Positive Futures,Supplies and Services,324117,Provisions,08-Aug-2016,5154961955,ASDA STORES LTD,5411,Catering costs - provisions,15.90,0.00,15.90
Neighbourhood Services,Culture & Sport,011191,Wellbeing4Life,Supplies and Services,324117,Provisions,08-Aug-2016,5154961959,SAINSBURYS 0776,5411,Catering costs - provisions,75.85,0.00,75.85
Neighbourhood Services,Direct Services,021235,Catering - Wharton Park,Supplies and Services,324117,Provisions,08-Aug-2016,5154961975,BRAKE BROS LTD,5811,Catering costs - provisions,64.20,10.70,53.50
Neighbourhood Services,Direct Services,021235,Catering - Wharton Park,Supplies and Services,324117,Provisions,08-Aug-2016,5154961975 - 1,BRAKE BROS LTD,5811,Catering costs - provisions,61.43,,61.43
Neighbourhood Services,Culture & Sport,010605,Woodhouse Close Leisure Complex,Supplies and Services,324117,Provisions,08-Aug-2016,5154961981,JR HOLLAND FOODSERVICE,5422,Catering costs - provisions,38.34,0.00,38.34
Neighbourhood Services,Culture & Sport,010605,Woodhouse Close Leisure Complex,Supplies and Services,324117,Provisions,08-Aug-2016,5154961983,BRAKE BROS LTD,5811,Catering costs - provisions,68.40,0.00,68.40
Neighbourhood Services,Culture & Sport,010605,Woodhouse Close Leisure Complex,Supplies and Services,324117,Provisions,08-Aug-2016,5154961987,BRAKE BROS LTD,5811,Catering costs - provisions,-7.98,0.00,-7.98
Neighbourhood Services,Culture & Sport,011225,Locality 2 Team Management,Supplies and Services,312011,Newspapers Books and Periodicals,08-Aug-2016,5154961989,CHARLES DICKENS (SPENN,5251,Books-school library,18.95,0.00,18.95
Neighbourhood Services,Culture & Sport,011225,Locality 2 Team Management,Supplies and Services,328041,Clothing Uniforms and Laundry,08-Aug-2016,5154961993,ARGOS LTD,5310,Clothing uniforms and laundry,12.99,0.00,12.99
Regeneration & Economic Development,Economic Development and Housing,030554,International Relations,Transport,235073,Public Transport,08-Aug-2016,5154961997,P & O FERRIES LTD,4411,Travel-clients/students/children,678.00,0.00,678.00
Children and Adult Services,Childrens Services,085300,Looked After & Permanence Strategic Manager,Supplies and Services,384999,Miscellaneous Expenses,08-Aug-2016,5154961999,WWW.HARRISONCAMERAS.CO,5946,Other expenses,10.94,1.82,9.12
Children and Adult Services,Education,054640,Durham Learning Resources,Supplies and Services,332047,Printing Stationery and Gen Off Exps,09-Aug-2016,5157663233,DEMCO EUROPE,5021,Stationery,259.80,0.00,259.80
Resources,Financial Services,065180,Collections,Income,720130,Fees and Charges,09-Aug-2016,5157663237,COUNTY COURT,9222,Fees-legal,10.00,0.00,10.00
Neighbourhood Services,Direct Services,010383,C&G - South Street Cleansing,Supplies and Services,304221,Equipment and Materials,09-Aug-2016,5157663247,AZTEC CHEMICALS LTD,5169,Direct materials,404.64,67.44,337.20
Children and Adult Services,Childrens Services,085342,9 Cedar Drive Aycliffe,Supplies and Services,324117,Provisions,09-Aug-2016,5157663249,TESCO STORES 2916,5411,Catering costs - provisions,150.61,0.00,150.61
Children and Adult Services,Childrens Services,085342,9 Cedar Drive Aycliffe,Supplies and Services,324117,Provisions,09-Aug-2016,5157663253,TESCO STORES 2916,5411,Catering costs - provisions,17.05,0.00,17.05
Resources,Financial Services,052865,SF-Financial Services Team,Supplies and Services,304259,Equipment and Materials,09-Aug-2016,5157663255,WILKO.COM,5722,Equipment-purchase and rental,118.95,0.00,118.95
Neighbourhood Services,Direct Services,021242,Catering - County Hall,Supplies and Services,324117,Provisions,09-Aug-2016,5157663275,FREEMAN CATERING BUTCH,5422,Catering costs - provisions,108.95,0.00,108.95
Neighbourhood Services,Direct Services,021242,Catering - County Hall,Supplies and Services,324117,Provisions,09-Aug-2016,5157663277,FREEMAN CATERING BUTCH,5422,Catering costs - provisions,38.14,0.00,38.14
Neighbourhood Services,Direct Services,021242,Catering - County Hall,Supplies and Services,324117,Provisions,09-Aug-2016,5157663279,JR HOLLAND FOODSERVICE,5422,Catering costs - provisions,6.58,0.00,6.58
Neighbourhood Services,Culture & Sport,054812,Gala Theatre - Catering etc,Supplies and Services,324117,Provisions,09-Aug-2016,5157663283,FREEMAN CATERING BUTCH,5422,Catering costs - provisions,14.70,0.00,14.70
Neighbourhood Services,Culture & Sport,054812,Gala Theatre - Catering etc,Supplies and Services,324117,Provisions,09-Aug-2016,5157663285,JR HOLLAND FOODSERVICE,5422,Catering costs - provisions,43.43,0.00,43.43
Neighbourhood Services,Culture & Sport,054812,Gala Theatre - Catering etc,Supplies and Services,324117,Provisions,09-Aug-2016,5157663289,BRAKE BROS LTD,5811,Catering costs - provisions,72.78,12.13,60.65
Neighbourhood Services,Culture & Sport,054812,Gala Theatre - Catering etc,Supplies and Services,324117,Provisions,09-Aug-2016,5157663289 - 1,BRAKE BROS LTD,5811,Catering costs - provisions,76.23,,76.23
Neighbourhood Services,Culture & Sport,054812,Gala Theatre - Catering etc,Supplies and Services,324117,Provisions,09-Aug-2016,5157663297,BRAKE BROS LTD,5811,Catering costs - provisions,35.45,0.00,35.45
Children and Adult Services,Childrens Services,085351,Framwellgate Moor CU,Supplies and Services,324117,Provisions,09-Aug-2016,5157663301,ASDA HOME SHOPPING,5411,Catering costs - provisions,182.38,0.00,182.38
Children and Adult Services,Childrens Services,085351,Framwellgate Moor CU,Supplies and Services,324117,Provisions,09-Aug-2016,5157663303,ASDA HOME SHOPPING,5411,Catering costs - provisions,-0.45,0.00,-0.45
Children and Adult Services,Childrens Services,071390,Ferryhill and Newton Aycliffe Locality,Supplies and Services,324117,Provisions,09-Aug-2016,5157663307,ALDI,5411,Catering costs - provisions,10.32,1.72,8.60
Children and Adult Services,Childrens Services,071390,Ferryhill and Newton Aycliffe Locality,Supplies and Services,324117,Provisions,09-Aug-2016,5157663307 - 1,ALDI,5411,Catering costs - provisions,10.54,,10.54
Children and Adult Services,Childrens Services,071370,Peterlee and Seaham Locality,Supplies and Services,324117,Provisions,09-Aug-2016,5157663309,ASDA STORES LTD,5411,Catering costs - provisions,14.09,0.00,14.09
Children and Adult Services,Childrens Services,088063,Bishop Auckland 0 - 5,Supplies and Services,324117,Provisions,09-Aug-2016,5157663313,SAINSBURYS 2199,5411,Catering costs - provisions,11.45,0.00,11.45
Children and Adult Services,Childrens Services,088063,Bishop Auckland 0 - 5,Supplies and Services,324117,Provisions,09-Aug-2016,5157663315,SAINSBURYS 2199,5411,Catering costs - provisions,10.00,0.00,10.00
Children and Adult Services,Childrens Services,085958,Support Services,Supplies and Services,312011,Newspapers Books and Periodicals,09-Aug-2016,5157663321,Amazon UK Marketplace,5942,Books-school library,12.77,0.00,12.77
Children and Adult Services,Childrens Services,085958,Support Services,Supplies and Services,312011,Newspapers Books and Periodicals,09-Aug-2016,5157663325,Amazon UK Marketplace,5942,Books-school library,12.46,0.00,12.46
Children and Adult Services,Childrens Services,085958,Support Services,Supplies and Services,312011,Newspapers Books and Periodicals,09-Aug-2016,5157663327,Amazon UK Marketplace,5942,Books-school library,15.49,0.00,15.49
Children and Adult Services,Childrens Services,085958,Support Services,Supplies and Services,312011,Newspapers Books and Periodicals,09-Aug-2016,5157663329,Amazon UK Marketplace,5942,Books-school library,8.99,0.00,8.99
Children and Adult Services,Childrens Services,085958,Support Services,Supplies and Services,304259,Equipment and Materials,09-Aug-2016,5157663331,WWW.TESSUTI.CO.UK,5941,Equipment-purchase and rental,64.99,0.00,64.99
Children and Adult Services,Childrens Services,085958,Support Services,Supplies and Services,328041,Clothing Uniforms and Laundry,09-Aug-2016,5157663335,MAINLINE MENSWEAR,5611,Clothing uniforms and laundry,89.95,0.00,89.95
Children and Adult Services,Childrens Services,085958,Support Services,Supplies and Services,328041,Clothing Uniforms and Laundry,09-Aug-2016,5157663337,WWW.TOPSHOP.COM,5691,Clothing uniforms and laundry,38.00,0.00,38.00
Children and Adult Services,Childrens Services,085958,Support Services,Supplies and Services,342033,Computers and Communications,09-Aug-2016,5157663339,VERY.CO.UK,5964,Computer hardware,92.00,0.00,92.00
Children and Adult Services,Childrens Services,085958,Support Services,Supplies and Services,342033,Computers and Communications,09-Aug-2016,5157663341,VERY.CO.UK,5964,Computer hardware,30.00,0.00,30.00
Children and Adult Services,Childrens Services,085958,Support Services,Supplies and Services,342033,Computers and Communications,09-Aug-2016,5157663345,VERY.CO.UK,5964,Computer hardware,3.99,0.00,3.99
Neighbourhood Services,Culture & Sport,011060,Hardwick Park Catering,Supplies and Services,324117,Provisions,09-Aug-2016,5157663347,FREEMAN CATERING BUTCH,5422,Catering costs - provisions,39.20,0.00,39.20
Neighbourhood Services,Culture & Sport,011060,Hardwick Park Catering,Supplies and Services,324117,Provisions,09-Aug-2016,5157663349,FREEMAN CATERING BUTCH,5422,Catering costs - provisions,38.35,0.00,38.35
Neighbourhood Services,Culture & Sport,011060,Hardwick Park Catering,Supplies and Services,324117,Provisions,09-Aug-2016,5157663351,FREEMAN CATERING BUTCH,5422,Catering costs - provisions,37.20,0.00,37.20
Neighbourhood Services,Culture & Sport,011060,Hardwick Park Catering,Supplies and Services,324117,Provisions,09-Aug-2016,5157663355,FREEMAN CATERING BUTCH,5422,Catering costs - provisions,34.24,0.00,34.24
Neighbourhood Services,Culture & Sport,011060,Hardwick Park Catering,Supplies and Services,324117,Provisions,09-Aug-2016,5157663357,JR HOLLAND FOODSERVICE,5422,Catering costs - provisions,128.25,0.00,128.25
Neighbourhood Services,Culture & Sport,011060,Hardwick Park Catering,Supplies and Services,324117,Provisions,09-Aug-2016,5157663361,JR HOLLAND FOODSERVICE,5422,Catering costs - provisions,97.87,0.00,97.87
Neighbourhood Services,Culture & Sport,011060,Hardwick Park Catering,Supplies and Services,324117,Provisions,09-Aug-2016,5157663363,JR HOLLAND FOODSERVICE,5422,Catering costs - provisions,48.13,0.00,48.13
Neighbourhood Services,Culture & Sport,011060,Hardwick Park Catering,Supplies and Services,324117,Provisions,09-Aug-2016,5157663365,JR HOLLAND FOODSERVICE,5422,Catering costs - provisions,44.96,0.00,44.96
Neighbourhood Services,Culture & Sport,011060,Hardwick Park Catering,Supplies and Services,324117,Provisions,09-Aug-2016,5157663369,JR HOLLAND FOODSERVICE,5422,Catering costs - provisions,37.68,0.00,37.68
Neighbourhood Services,Culture & Sport,011060,Hardwick Park Catering,Supplies and Services,324117,Provisions,09-Aug-2016,5157663371,JR HOLLAND FOODSERVICE,5422,Catering costs - provisions,27.28,0.00,27.28
Neighbourhood Services,Direct Services,021234,Catering - Locomotion,Supplies and Services,324117,Provisions,09-Aug-2016,5157663391,BRAKE BROS LTD,5811,Catering costs - provisions,273.90,45.65,228.25
Neighbourhood Services,Direct Services,021234,Catering - Locomotion,Supplies and Services,324117,Provisions,09-Aug-2016,5157663391 - 1,BRAKE BROS LTD,5811,Catering costs - provisions,41.46,,41.46
Neighbourhood Services,Direct Services,010525,Catering - Green Lane,Supplies and Services,324117,Provisions,09-Aug-2016,5157663397,FREEMAN CATERING BUTCH,5422,Catering costs - provisions,65.67,0.00,65.67
Neighbourhood Services,Direct Services,010525,Catering - Green Lane,Supplies and Services,324117,Provisions,09-Aug-2016,5157663399,FREEMAN CATERING BUTCH,5422,Catering costs - provisions,55.56,0.00,55.56
Neighbourhood Services,Direct Services,010525,Catering - Green Lane,Supplies and Services,324117,Provisions,09-Aug-2016,5157663401,FREEMAN CATERING BUTCH,5422,Catering costs - provisions,46.83,0.00,46.83
Neighbourhood Services,Direct Services,010525,Catering - Green Lane,Supplies and Services,324117,Provisions,09-Aug-2016,5157663405,BRAKE BROS LTD,5811,Catering costs - provisions,39.06,6.51,32.55
Neighbourhood Services,Direct Services,010525,Catering - Green Lane,Supplies and Services,324117,Provisions,09-Aug-2016,5157663405 - 1,BRAKE BROS LTD,5811,Catering costs - provisions,160.58,,160.58
Children and Adult Services,Childrens Services,071441,Bishop Auckland One Point Hub,Supplies and Services,304403,Equipment and Materials,09-Aug-2016,5157663423,HOME BARGAINS,5251,Other consumables,2.58,0.43,2.15
Children and Adult Services,Childrens Services,088063,Bishop Auckland 0 - 5,Supplies and Services,324117,Provisions,09-Aug-2016,5157663427,LIDL UK,5411,Catering costs - provisions,2.85,0.00,2.85
Neighbourhood Services,Direct Services,010367,C&G - South Grounds Maintenance,Supplies and Services,324117,Provisions,09-Aug-2016,5157663435,J M RAINE,5399,Catering costs - provisions,295.68,49.28,246.40
Neighbourhood Services,Direct Services,010367,C&G - South Grounds Maintenance,Supplies and Services,304259,Equipment and Materials,09-Aug-2016,5157663439,B & Q 1120,5211,Equipment-purchase and rental,87.33,0.00,87.33
Neighbourhood Services,Direct Services,010367,C&G - South Grounds Maintenance,Transport,215995,Running Costs of Vehicles,09-Aug-2016,5157663441,SNOWBALLS (RAILWAY,5533,Vehicle running expenses,15.00,2.50,12.50
Regeneration & Economic Development,Spatial Policy Planning Assets & Environment,031200,North Pennines Core,Supplies and Services,340001,Postages,09-Aug-2016,5157663443,THE POST OFFICE,9402,Postages,10.26,0.00,10.26
Regeneration & Economic Development,Spatial Policy Planning Assets & Environment,036000,Asset Management,Employees,040149,Recruitment Instruction and Training,09-Aug-2016,5157663447,RICS SUBS UK CYBS,8699,Training-all costs,275.00,0.00,275.00
Assistant Chief Executive,Planning & Performance Division,060125,Information Management,Supplies and Services,372009,Subscriptions,09-Aug-2016,5157663449,WWW.ICO.GOV.UK,9399,Subscriptions,500.00,0.00,500.00
Neighbourhood Services,Culture & Sport,054399,Local Delivery-Libraries,Supplies and Services,312011,Newspapers Books and Periodicals,09-Aug-2016,5157663451,Amazon EU,5969,Books-school library,12.01,0.00,12.01
Children and Adult Services,Childrens Services,071370,Peterlee and Seaham Locality,Supplies and Services,304403,Equipment and Materials,09-Aug-2016,5157663465,TESCO - Seller_IST_1_2,5999,Other consumables,119.99,0.00,119.99
Children and Adult Services,Childrens Services,085801,CDYOS - Support,Supplies and Services,312011,Newspapers Books and Periodicals,09-Aug-2016,5157663469,Amazon UK Marketplace,5942,Books-school library,71.25,0.00,71.25
Children and Adult Services,Childrens Services,085801,CDYOS - Support,Supplies and Services,304259,Equipment and Materials,09-Aug-2016,5157663471,B&Q DIRECT,5211,Equipment-purchase and rental,38.00,6.33,31.67
Children and Adult Services,Childrens Services,085801,CDYOS - Support,Supplies and Services,304403,Equipment and Materials,09-Aug-2016,5157663475,AMAZON UK RETAIL AMAZO,5999,Other consumables,51.33,0.00,51.33
Neighbourhood Services,Culture & Sport,054235,Bp Auckland Town Hall Cafe,Supplies and Services,324117,Provisions,09-Aug-2016,5157663477,JR HOLLAND FOODSERVICE,5422,Catering costs - provisions,4.41,0.00,4.41
Neighbourhood Services,Direct Services,021324,Catering - Meadowfield,Supplies and Services,324117,Provisions,09-Aug-2016,5157663481,FREEMAN CATERING BUTCH,5422,Catering costs - provisions,54.44,0.00,54.44
Neighbourhood Services,Direct Services,021324,Catering - Meadowfield,Supplies and Services,324117,Provisions,09-Aug-2016,5157663483,FREEMAN CATERING BUTCH,5422,Catering costs - provisions,51.84,0.00,51.84
Neighbourhood Services,Direct Services,021324,Catering - Meadowfield,Supplies and Services,324117,Provisions,09-Aug-2016,5157663485,FREEMAN CATERING BUTCH,5422,Catering costs - provisions,51.33,0.00,51.33
Neighbourhood Services,Direct Services,021324,Catering - Meadowfield,Supplies and Services,324117,Provisions,09-Aug-2016,5157663489,FREEMAN CATERING BUTCH,5422,Catering costs - provisions,43.48,0.00,43.48
Neighbourhood Services,Direct Services,021324,Catering - Meadowfield,Supplies and Services,324117,Provisions,09-Aug-2016,5157663491,BRAKE BROS LTD,5811,Catering costs - provisions,43.30,0.00,43.30
Children and Adult Services,Childrens Services,088073,Barnard Castle 0 - 5,Supplies and Services,324117,Provisions,09-Aug-2016,5157663497,ASDA STORES,5411,Catering costs - provisions,30.66,0.00,30.66
Children and Adult Services,Childrens Services,088083,Ferryhill 0 - 5,Supplies and Services,324117,Provisions,09-Aug-2016,5157663499,ASDA SUPERSTORE 4987,5411,Catering costs - provisions,27.00,0.00,27.00
Children and Adult Services,Childrens Services,088083,Ferryhill 0 - 5,Supplies and Services,324117,Provisions,09-Aug-2016,5157663503,ASDA SUPERSTORE 4987,5411,Catering costs - provisions,21.86,0.00,21.86
Neighbourhood Services,Culture & Sport,011191,Wellbeing4Life,Supplies and Services,324117,Provisions,09-Aug-2016,5157663505,SAINSBURYS LOC (4320),5411,Catering costs - provisions,6.40,0.00,6.40
Children and Adult Services,Childrens Services,085331,New Lea Childrens Home,Transport,235057,Public Transport,09-Aug-2016,5157663509,TRAINLINE,4112,Staff travelling,57.78,0.00,57.78
Neighbourhood Services,Direct Services,021235,Catering - Wharton Park,Supplies and Services,324117,Provisions,09-Aug-2016,5157663511,JR HOLLAND FOODSERVICE,5422,Catering costs - provisions,15.69,0.00,15.69
Neighbourhood Services,Direct Services,021235,Catering - Wharton Park,Supplies and Services,324117,Provisions,09-Aug-2016,5157663515,BRAKE BROS LTD,5811,Catering costs - provisions,318.42,53.07,265.35
Neighbourhood Services,Direct Services,021235,Catering - Wharton Park,Supplies and Services,324117,Provisions,09-Aug-2016,5157663515 - 1,BRAKE BROS LTD,5811,Catering costs - provisions,84.79,,84.79
Neighbourhood Services,Culture & Sport,010605,Woodhouse Close Leisure Complex,Supplies and Services,324117,Provisions,09-Aug-2016,5157663519,FREEMAN CATERING BUTCH,5422,Catering costs - provisions,43.80,0.00,43.80
Neighbourhood Services,Culture & Sport,010605,Woodhouse Close Leisure Complex,Supplies and Services,324117,Provisions,09-Aug-2016,5157663521,FREEMAN CATERING BUTCH,5422,Catering costs - provisions,43.80,0.00,43.80
Children and Adult Services,Head of Adults,051611,OP/PD Sedgefield,Supplies and Services,384999,Miscellaneous Expenses,09-Aug-2016,5157663523,WWW.GOV.UK,8999,Other expenses,20.00,0.00,20.00
Neighbourhood Services,Direct Services,011185,Nei. Prot - Unauthorised Encampments,Supplies and Services,338048,Services,09-Aug-2016,5157663527,HMCOURTS-SERVICE.G,9222,Court Costs,"1,356.00",0.00,1356.00
Children and Adult Services,Childrens Services,074000,TTF-Attachment and Results,Supplies and Services,308011,Furniture,09-Aug-2016,5157663543,J DODDS CARPETS LTD,5713,Furniture repair and replacement,150.00,0.00,150.00
Children and Adult Services,Childrens Services,088037,One Point YEI,Supplies and Services,352001,Conference Expenses,09-Aug-2016,5157663545,BEAMISH-HALL.CO.UK,7011,Conferencesseminars fees etc,125.00,20.83,104.17
Children and Adult Services,Childrens Services,085958,Support Services,Supplies and Services,304259,Equipment and Materials,09-Aug-2016,5161475113,REPUBLIC.COM RETAI,5941,Equipment-purchase and rental,30.99,5.17,25.82
Children and Adult Services,Childrens Services,085958,Support Services,Supplies and Services,328041,Clothing Uniforms and Laundry,09-Aug-2016,5161475117,NEW LOOK INTERNET,5621,Clothing uniforms and laundry,12.98,0.00,12.98
Resources,I.C.T. Services,065431,Applications and Development,Supplies and Services,342033,Computers and Communications,09-Aug-2016,5161475215,DRI No Limit Software,7372,Computer hardware,468.66,78.11,390.55
Neighbourhood Services,Culture & Sport,054399,Local Delivery-Libraries,Supplies and Services,304403,Equipment and Materials,09-Aug-2016,5161475221,AMAZON UK RETAIL AMAZO,5999,Other consumables,15.98,0.00,15.98
Children and Adult Services,Childrens Services,085331,New Lea Childrens Home,Supplies and Services,304259,Equipment and Materials,09-Aug-2016,5165507303,HALFORDS ON LINE,5940,Equipment-purchase and rental,69.99,0.00,69.99
Regeneration & Economic Development,Economic Development and Housing,039490,South Moor Regeneration Programme,Income,720130,Fees and Charges,10-Aug-2016,5161475051,WWW.MONEYCLAIM.GOV,9399,Fees-legal,60.00,0.00,60.00
Children and Adult Services,Education,071733,Shildon Childcare,Supplies and Services,304649,Equipment and Materials,10-Aug-2016,5161475053,POUNDWORLD,5310,Toys,5.00,0.00,5.00
Children and Adult Services,Education,071733,Shildon Childcare,Supplies and Services,304649,Equipment and Materials,10-Aug-2016,5161475055,WILKO RETAIL LIMIT,5722,Toys,47.47,0.00,47.47
Children and Adult Services,Education,071733,Shildon Childcare,Supplies and Services,308011,Furniture,10-Aug-2016,5161475057,IKEA,5719,Furniture repair and replacement,132.30,0.00,132.30
Resources,Financial Services,052865,SF-Financial Services Team,Supplies and Services,308011,Furniture,10-Aug-2016,5161475071,EDS BEDS LTD,5712,Furniture repair and replacement,35.00,0.00,35.00
Resources,Financial Services,052865,SF-Financial Services Team,Supplies and Services,308011,Furniture,10-Aug-2016,5161475073,MAGUIRE TA LTD,5713,Furniture repair and replacement,204.00,0.00,204.00
Resources,Financial Services,052865,SF-Financial Services Team,Supplies and Services,324117,Provisions,10-Aug-2016,5161475075,ASDA 4387,5411,Catering costs - provisions,103.50,0.00,103.50
Neighbourhood Services,Direct Services,021242,Catering - County Hall,Supplies and Services,324117,Provisions,10-Aug-2016,5161475085,JR HOLLAND FOODSERVICE,5422,Catering costs - provisions,31.35,0.00,31.35
Neighbourhood Services,Direct Services,021242,Catering - County Hall,Supplies and Services,324117,Provisions,10-Aug-2016,5161475087,BRAKE BROS LTD,5811,Catering costs - provisions,156.40,0.00,156.40
Children and Adult Services,Childrens Services,088096,Newton Aycliffe Teenage Parent Programme,Supplies and Services,304403,Equipment and Materials,10-Aug-2016,5161475095,W W T (TRADING) LTD,5947,Other consumables,101.45,16.91,84.54
Children and Adult Services,Childrens Services,088096,Newton Aycliffe Teenage Parent Programme,Supplies and Services,304403,Equipment and Materials,10-Aug-2016,5161475097,W W T (TRADING) LTD,5947,Other consumables,79.62,13.27,66.35
Children and Adult Services,Childrens Services,088096,Newton Aycliffe Teenage Parent Programme,Supplies and Services,304403,Equipment and Materials,10-Aug-2016,5161475097 - 1,W W T (TRADING) LTD,5947,Other consumables,4.98,,4.98
Children and Adult Services,Childrens Services,085341,High Etherley Satelite Home,Supplies and Services,324117,Provisions,10-Aug-2016,5161475103,TESCO STORES 6329,5411,Catering costs - provisions,252.71,0.00,252.71
Children and Adult Services,Childrens Services,085958,Support Services,Supplies and Services,312011,Newspapers Books and Periodicals,10-Aug-2016,5161475105,Amazon UK Marketplace,5942,Books-school library,23.28,0.00,23.28
Children and Adult Services,Childrens Services,085958,Support Services,Supplies and Services,312011,Newspapers Books and Periodicals,10-Aug-2016,5161475107,Amazon UK Marketplace,5942,Books-school library,30.52,0.00,30.52
Children and Adult Services,Childrens Services,085958,Support Services,Supplies and Services,312011,Newspapers Books and Periodicals,10-Aug-2016,5161475109,Amazon UK Marketplace,5942,Books-school library,11.97,0.00,11.97
Children and Adult Services,Childrens Services,085958,Support Services,Supplies and Services,328041,Clothing Uniforms and Laundry,10-Aug-2016,5161475111,WWW.JOHNLEWIS.COM,5311,Clothing uniforms and laundry,51.50,0.00,51.50
Children and Adult Services,Childrens Services,085958,Support Services,Supplies and Services,304259,Equipment and Materials,10-Aug-2016,5161475115,WWW.FOOTASYLUM.COM,5941,Equipment-purchase and rental,84.99,0.00,84.99
Children and Adult Services,Childrens Services,085958,Support Services,Supplies and Services,324117,Provisions,10-Aug-2016,5161475119,TESCO STORES 6329,5411,Catering costs - provisions,86.34,0.00,86.34
Children and Adult Services,Childrens Services,085958,Support Services,Supplies and Services,304403,Equipment and Materials,10-Aug-2016,5161475121,AMAZON UK RETAIL AMAZO,5999,Other consumables,58.82,0.00,58.82
Neighbourhood Services,Direct Services,010367,C&G - South Grounds Maintenance,Supplies and Services,304259,Equipment and Materials,10-Aug-2016,5161475123,SCREWFIX,5211,Equipment-purchase and rental,41.45,6.91,34.54
Neighbourhood Services,Direct Services,010301,C&G - North Grounds Maintenance,Supplies and Services,304259,Equipment and Materials,10-Aug-2016,5161475125,HARELAW SAWMILL,5211,Equipment-purchase and rental,29.53,0.00,29.53
Neighbourhood Services,Culture & Sport,011060,Hardwick Park Catering,Supplies and Services,324117,Provisions,10-Aug-2016,5161475127,JR HOLLAND FOODSERVICE,5422,Catering costs - provisions,100.74,0.00,100.74
Neighbourhood Services,Culture & Sport,011060,Hardwick Park Catering,Supplies and Services,324117,Provisions,10-Aug-2016,5161475129,BRAKE BROS LTD,5811,Catering costs - provisions,250.14,41.69,208.45
Neighbourhood Services,Culture & Sport,011060,Hardwick Park Catering,Supplies and Services,324117,Provisions,10-Aug-2016,5161475129 - 1,BRAKE BROS LTD,5811,Catering costs - provisions,145.40,,145.40
Neighbourhood Services,Culture & Sport,011060,Hardwick Park Catering,Supplies and Services,324117,Provisions,10-Aug-2016,5161475131,BRAKE BROS LTD,5811,Catering costs - provisions,-2.18,-0.36,-1.82
Neighbourhood Services,Culture & Sport,011060,Hardwick Park Catering,Supplies and Services,324117,Provisions,10-Aug-2016,5161475133,BRAKE BROS LTD,5811,Catering costs - provisions,-2.18,-0.36,-1.82
Neighbourhood Services,Culture & Sport,011060,Hardwick Park Catering,Supplies and Services,324117,Provisions,10-Aug-2016,5161475135,BRAKE BROS LTD,5811,Catering costs - provisions,-2.18,-0.36,-1.82
Neighbourhood Services,Culture & Sport,011060,Hardwick Park Catering,Supplies and Services,324117,Provisions,10-Aug-2016,5161475137,BRAKE BROS LTD,5811,Catering costs - provisions,-2.18,-0.36,-1.82
Neighbourhood Services,Culture & Sport,011060,Hardwick Park Catering,Supplies and Services,324117,Provisions,10-Aug-2016,5161475139,BRAKE BROS LTD,5811,Catering costs - provisions,-2.18,-0.36,-1.82
Neighbourhood Services,Culture & Sport,011060,Hardwick Park Catering,Supplies and Services,324117,Provisions,10-Aug-2016,5161475141,BRAKE BROS LTD,5811,Catering costs - provisions,-2.18,-0.36,-1.82
Neighbourhood Services,Culture & Sport,011060,Hardwick Park Catering,Supplies and Services,324117,Provisions,10-Aug-2016,5161475143,BRAKE BROS LTD,5811,Catering costs - provisions,-2.18,-0.36,-1.82
Neighbourhood Services,Culture & Sport,011060,Hardwick Park Catering,Supplies and Services,324117,Provisions,10-Aug-2016,5161475145,BRAKE BROS LTD,5811,Catering costs - provisions,-2.18,-0.36,-1.82
Neighbourhood Services,Culture & Sport,011060,Hardwick Park Catering,Supplies and Services,324117,Provisions,10-Aug-2016,5161475147,BRAKE BROS LTD,5811,Catering costs - provisions,-2.18,-0.36,-1.82
Neighbourhood Services,Culture & Sport,011060,Hardwick Park Catering,Supplies and Services,324117,Provisions,10-Aug-2016,5161475149,BRAKE BROS LTD,5811,Catering costs - provisions,-2.66,0.00,-2.66
Neighbourhood Services,Culture & Sport,011060,Hardwick Park Catering,Supplies and Services,324117,Provisions,10-Aug-2016,5161475151,BRAKE BROS LTD,5811,Catering costs - provisions,-4.37,-0.73,-3.64
Neighbourhood Services,Culture & Sport,011060,Hardwick Park Catering,Supplies and Services,324117,Provisions,10-Aug-2016,5161475153,BRAKE BROS LTD,5811,Catering costs - provisions,-4.37,-0.73,-3.64
Neighbourhood Services,Culture & Sport,011060,Hardwick Park Catering,Supplies and Services,324117,Provisions,10-Aug-2016,5161475155,BRAKE BROS LTD,5811,Catering costs - provisions,-4.37,-0.73,-3.64
Neighbourhood Services,Culture & Sport,011060,Hardwick Park Catering,Supplies and Services,324117,Provisions,10-Aug-2016,5161475157,BRAKE BROS LTD,5811,Catering costs - provisions,-4.37,-0.73,-3.64
Neighbourhood Services,Culture & Sport,011060,Hardwick Park Catering,Supplies and Services,324117,Provisions,10-Aug-2016,5161475159,BRAKE BROS LTD,5811,Catering costs - provisions,-4.37,-0.73,-3.64
Neighbourhood Services,Culture & Sport,011060,Hardwick Park Catering,Supplies and Services,324117,Provisions,10-Aug-2016,5161475161,BRAKE BROS LTD,5811,Catering costs - provisions,-4.37,-0.73,-3.64
Neighbourhood Services,Culture & Sport,011060,Hardwick Park Catering,Supplies and Services,324117,Provisions,10-Aug-2016,5161475163,BRAKE BROS LTD,5811,Catering costs - provisions,-4.37,-0.73,-3.64
Neighbourhood Services,Culture & Sport,011060,Hardwick Park Catering,Supplies and Services,324117,Provisions,10-Aug-2016,5161475165,BRAKE BROS LTD,5811,Catering costs - provisions,-4.37,-0.73,-3.64
Neighbourhood Services,Culture & Sport,011060,Hardwick Park Catering,Supplies and Services,324117,Provisions,10-Aug-2016,5161475167,BRAKE BROS LTD,5811,Catering costs - provisions,-6.55,-1.09,-5.46
Neighbourhood Services,Culture & Sport,011060,Hardwick Park Catering,Supplies and Services,324117,Provisions,10-Aug-2016,5161475169,BRAKE BROS LTD,5811,Catering costs - provisions,-8.74,-1.46,-7.28
Regeneration & Economic Development,Economic Development and Housing,030762,Organisational Training & Development,Employees,040149,Recruitment Instruction and Training,10-Aug-2016,5161475173,CITB,8220,Training-all costs,30.00,5.00,25.00
Regeneration & Economic Development,Economic Development and Housing,030762,Organisational Training & Development,Employees,040149,Recruitment Instruction and Training,10-Aug-2016,5161475175,CITB,8220,Training-all costs,30.00,5.00,25.00
Neighbourhood Services,Direct Services,021234,Catering - Locomotion,Supplies and Services,324117,Provisions,10-Aug-2016,5161475177,BRAKE BROS LTD,5811,Catering costs - provisions,317.82,0.00,317.82
Resources,I.C.T. Services,065461,Business Support,Supplies and Services,304259,Equipment and Materials,10-Aug-2016,5161475179,DVLA VEHICLE TAX,9399,Equipment-purchase and rental,232.50,0.00,232.50
Resources,I.C.T. Services,065461,Business Support,Supplies and Services,304259,Equipment and Materials,10-Aug-2016,5161475181,DVLA VEHICLE TAX,9399,Equipment-purchase and rental,232.50,0.00,232.50
Neighbourhood Services,Direct Services,010525,Catering - Green Lane,Supplies and Services,324117,Provisions,10-Aug-2016,5161475183,JR HOLLAND FOODSERVICE,5422,Catering costs - provisions,45.17,0.00,45.17
Children and Adult Services,Childrens Services,085556,Child Protection Team Stanley,Supplies and Services,338045,Services,10-Aug-2016,5161475185,HM PASSPORT,9399,Legal expenses,90.00,0.00,90.00
Children and Adult Services,Childrens Services,085556,Child Protection Team Stanley,Supplies and Services,338048,Services,10-Aug-2016,5161475187,WWW.EASTSUSSEXCC.GOV.U,7996,Court Costs,27.00,0.00,27.00
Children and Adult Services,Childrens Services,085556,Child Protection Team Stanley,Supplies and Services,338045,Services,10-Aug-2016,5161475189,GRO HM PASSPORT OFFICE,9399,Legal expenses,23.40,0.00,23.40
Children and Adult Services,Childrens Services,085556,Child Protection Team Stanley,Supplies and Services,338045,Services,10-Aug-2016,5161475191,TUNBRIDGE WELLS REG OF,9399,Legal expenses,38.00,0.00,38.00
Children and Adult Services,Head of Adults,052754,LD/MH - Supported Living Service Charge,Supplies and Services,384985,Miscellaneous Expenses,10-Aug-2016,5161475193,TESCO DIRECT,5999,Miscellaneous-special facilities,161.95,0.00,161.95
Children and Adult Services,Childrens Services,074000,TTF-Attachment and Results,Supplies and Services,324117,Provisions,10-Aug-2016,5161475207,ASDA 4387,5411,Catering costs - provisions,144.45,0.00,144.45
Assistant Chief Executive,Policy & Communications Division,060270,Corporate News,Supplies and Services,372009,Subscriptions,10-Aug-2016,5161475209,ADOBE CAPTIVATE SUBS,5734,Subscriptions,22.86,0.00,22.86
Resources,I.C.T. Services,065230,IT Renewals Fund,Supplies and Services,332047,Printing Stationery and Gen Off Exps,10-Aug-2016,5161475211,"Amazon Svcs Europe,SAR",5942,Stationery,15.99,0.00,15.99
Assistant Chief Executive,Planning & Performance Division,060120,Research,Supplies and Services,372009,Subscriptions,10-Aug-2016,5161475213,SurveyMonkey,7372,Subscriptions,299.00,0.00,299.00
Children and Adult Services,Childrens Services,071370,Peterlee and Seaham Locality,Supplies and Services,304403,Equipment and Materials,10-Aug-2016,5161475239,TESCO - Tescopay,5999,Other consumables,12.90,0.00,12.90
Children and Adult Services,Childrens Services,071370,Peterlee and Seaham Locality,Supplies and Services,304403,Equipment and Materials,10-Aug-2016,5161475241,TESCO DIRECT,5999,Other consumables,96.95,0.00,96.95
Children and Adult Services,Childrens Services,085801,CDYOS - Support,Supplies and Services,312011,Newspapers Books and Periodicals,10-Aug-2016,5161475243,Amazon EU,5969,Books-school library,33.41,0.00,33.41
Neighbourhood Services,Culture & Sport,054235,Bp Auckland Town Hall Cafe,Supplies and Services,324117,Provisions,10-Aug-2016,5161475245,JR HOLLAND FOODSERVICE,5422,Catering costs - provisions,35.28,0.00,35.28
Neighbourhood Services,Direct Services,021324,Catering - Meadowfield,Supplies and Services,324117,Provisions,10-Aug-2016,5161475247,JR HOLLAND FOODSERVICE,5422,Catering costs - provisions,26.22,0.00,26.22
Neighbourhood Services,Direct Services,021324,Catering - Meadowfield,Supplies and Services,324117,Provisions,10-Aug-2016,5161475249,JR HOLLAND FOODSERVICE,5422,Catering costs - provisions,11.83,0.00,11.83
Neighbourhood Services,Direct Services,021324,Catering - Meadowfield,Supplies and Services,324117,Provisions,10-Aug-2016,5161475251,BRAKE BROS LTD,5811,Catering costs - provisions,51.72,8.62,43.10
Neighbourhood Services,Direct Services,021324,Catering - Meadowfield,Supplies and Services,324117,Provisions,10-Aug-2016,5161475251 - 1,BRAKE BROS LTD,5811,Catering costs - provisions,61.11,,61.11
Children and Adult Services,Childrens Services,085333,Coxhoe Satelite Home,Supplies and Services,308011,Furniture,10-Aug-2016,5161475253,IKEA,5719,Furniture repair and replacement,9.45,1.58,7.87
Children and Adult Services,Childrens Services,085380,Operations Manager Adoption & Fostering,Employees,040149,Recruitment Instruction and Training,10-Aug-2016,5161475263,BRITISH RED CROSS,8398,Training-all costs,90.00,15.00,75.00
Neighbourhood Services,Direct Services,021235,Catering - Wharton Park,Supplies and Services,324117,Provisions,10-Aug-2016,5161475275,BRAKE BROS LTD,5811,Catering costs - provisions,233.22,38.87,194.35
Neighbourhood Services,Direct Services,021235,Catering - Wharton Park,Supplies and Services,324117,Provisions,10-Aug-2016,5161475275 - 1,BRAKE BROS LTD,5811,Catering costs - provisions,13.23,,13.23
Neighbourhood Services,Direct Services,021235,Catering - Wharton Park,Supplies and Services,324117,Provisions,10-Aug-2016,5161475277,BRAKE BROS LTD,5811,Catering costs - provisions,-2.18,-0.36,-1.82
Neighbourhood Services,Direct Services,021235,Catering - Wharton Park,Supplies and Services,324117,Provisions,10-Aug-2016,5161475279,BRAKE BROS LTD,5811,Catering costs - provisions,-2.18,-0.36,-1.82
Neighbourhood Services,Direct Services,021235,Catering - Wharton Park,Supplies and Services,324117,Provisions,10-Aug-2016,5161475281,BRAKE BROS LTD,5811,Catering costs - provisions,-4.37,-0.73,-3.64
Neighbourhood Services,Culture & Sport,010605,Woodhouse Close Leisure Complex,Supplies and Services,324117,Provisions,10-Aug-2016,5161475289,JR HOLLAND FOODSERVICE,5422,Catering costs - provisions,31.53,0.00,31.53
Regeneration & Economic Development,Economic Development and Housing,030737,Durham Works Flexible Fund,Supplies and Services,312011,Newspapers Books and Periodicals,10-Aug-2016,5161475299,Amazon UK Marketplace,5942,Books-school library,77.97,0.00,77.97
Regeneration & Economic Development,Spatial Policy Planning Assets & Environment,031200,North Pennines Core,Supplies and Services,324117,Provisions,10-Aug-2016,5161475301,STANHOPE PAPER SHOP,5399,Catering costs - provisions,6.20,0.00,6.20
Regeneration & Economic Development,Spatial Policy Planning Assets & Environment,031200,North Pennines Core,Supplies and Services,372009,Subscriptions,10-Aug-2016,5161475303,NEWSQUEST MEDIA,2741,Subscriptions,144.00,24.00,120.00
Children and Adult Services,Childrens Services,085957,Secure Management,Supplies and Services,328041,Clothing Uniforms and Laundry,10-Aug-2016,5165507095,AMAZON UK RETAIL AMAZO,5999,Clothing uniforms and laundry,25.98,0.00,25.98
Children and Adult Services,Childrens Services,085958,Support Services,Supplies and Services,304403,Equipment and Materials,10-Aug-2016,5165507223,AMAZON UK RETAIL AMAZO,5999,Other consumables,4.79,0.00,4.79
Neighbourhood Services,Culture & Sport,011060,Hardwick Park Catering,Supplies and Services,324117,Provisions,10-Aug-2016,5170140853,BRAKE BROS LTD,5811,Catering costs - provisions,374.70,62.45,312.25
Neighbourhood Services,Culture & Sport,011060,Hardwick Park Catering,Supplies and Services,324117,Provisions,10-Aug-2016,5170140853 - 1,BRAKE BROS LTD,5811,Catering costs - provisions,32.55,,32.55
Children and Adult Services,Education,071801,Selby Cottage Childcare Centre,Supplies and Services,324117,Provisions,11-Aug-2016,5165507081,TESCO STORES 2278,5411,Catering costs - provisions,55.89,0.00,55.89
Children and Adult Services,Childrens Services,085957,Secure Management,Supplies and Services,328041,Clothing Uniforms and Laundry,11-Aug-2016,5165507093,Amazon UK Marketplace,5942,Clothing uniforms and laundry,18.17,0.00,18.17
Resources,Financial Services,065180,Collections,Income,720130,Fees and Charges,11-Aug-2016,5165507103,WWW.MONEYCLAIM.GOV,9399,Fees-legal,185.00,0.00,185.00
Neighbourhood Services,Direct Services,021242,Catering - County Hall,Supplies and Services,324117,Provisions,11-Aug-2016,5165507119,JR HOLLAND FOODSERVICE,5422,Catering costs - provisions,36.39,0.00,36.39
Neighbourhood Services,Direct Services,021242,Catering - County Hall,Supplies and Services,324117,Provisions,11-Aug-2016,5165507121,JR HOLLAND FOODSERVICE,5422,Catering costs - provisions,13.16,0.00,13.16
Neighbourhood Services,Culture & Sport,054233,Bp Auckland Town Hall Library,Supplies and Services,304403,Equipment and Materials,11-Aug-2016,5165507123,AMAZON UK RETAIL AMAZO,5999,Other consumables,24.98,0.00,24.98
Neighbourhood Services,Direct Services,010367,C&G - South Grounds Maintenance,Supplies and Services,304259,Equipment and Materials,11-Aug-2016,5165507125,JEWSON LTD,5211,Equipment-purchase and rental,20.16,3.36,16.80
Neighbourhood Services,Culture & Sport,054812,Gala Theatre - Catering etc,Supplies and Services,324117,Provisions,11-Aug-2016,5165507127,JR HOLLAND FOODSERVICE,5422,Catering costs - provisions,68.93,0.00,68.93
Children and Adult Services,Childrens Services,088093,Newton Aycliffe 0 - 5,Supplies and Services,304403,Equipment and Materials,11-Aug-2016,5165507129,TESCO STORES 2916,5411,Other consumables,46.28,0.00,46.28
Children and Adult Services,Childrens Services,088093,Newton Aycliffe 0 - 5,Supplies and Services,304403,Equipment and Materials,11-Aug-2016,5165507131,TESCO STORES 2916,5411,Other consumables,5.92,0.00,5.92
Neighbourhood Services,Direct Services,010864,Fleet - Hackworth Road Fleet,Transport,215013,Running Costs of Vehicles,11-Aug-2016,5165507133,DVLA VEHICLE TAX,9399,Vehicle Excise Duty (VED),167.50,0.00,167.50
Neighbourhood Services,Direct Services,010551,Fleet - Chilton Fleet,Transport,215013,Running Costs of Vehicles,11-Aug-2016,5165507135,DVLA VEHICLE TAX,9399,Vehicle Excise Duty (VED),187.50,0.00,187.50
Neighbourhood Services,Direct Services,010561,Fleet - Morrison Busty Fleet,Transport,215013,Running Costs of Vehicles,11-Aug-2016,5165507137,DVLA VEHICLE TAX,9399,Vehicle Excise Duty (VED),147.50,0.00,147.50
Neighbourhood Services,Direct Services,010864,Fleet - Hackworth Road Fleet,Transport,215013,Running Costs of Vehicles,11-Aug-2016,5165507139,DVLA VEHICLE TAX,9399,Vehicle Excise Duty (VED),212.50,0.00,212.50
Neighbourhood Services,Direct Services,010551,Fleet - Chilton Fleet,Transport,215013,Running Costs of Vehicles,11-Aug-2016,5165507141,DVLA VEHICLE TAX,9399,Vehicle Excise Duty (VED),232.50,0.00,232.50
Neighbourhood Services,Direct Services,010900,Fleet - Meadowfield Fleet,Transport,215013,Running Costs of Vehicles,11-Aug-2016,5165507143,DVLA VEHICLE TAX,9399,Vehicle Excise Duty (VED),167.50,0.00,167.50
Neighbourhood Services,Direct Services,010900,Fleet - Meadowfield Fleet,Transport,215013,Running Costs of Vehicles,11-Aug-2016,5165507145,DVLA VEHICLE TAX,9399,Vehicle Excise Duty (VED),147.50,0.00,147.50
Neighbourhood Services,Direct Services,010900,Fleet - Meadowfield Fleet,Transport,215013,Running Costs of Vehicles,11-Aug-2016,5165507147,DVLA VEHICLE TAX,9399,Vehicle Excise Duty (VED),167.50,0.00,167.50
Neighbourhood Services,Direct Services,010900,Fleet - Meadowfield Fleet,Transport,215013,Running Costs of Vehicles,11-Aug-2016,5165507149,DVLA VEHICLE TAX,9399,Vehicle Excise Duty (VED),232.50,0.00,232.50
Neighbourhood Services,Direct Services,010900,Fleet - Meadowfield Fleet,Transport,215013,Running Costs of Vehicles,11-Aug-2016,5165507151,DVLA VEHICLE TAX,9399,Vehicle Excise Duty (VED),232.50,0.00,232.50
Neighbourhood Services,Direct Services,010900,Fleet - Meadowfield Fleet,Transport,215013,Running Costs of Vehicles,11-Aug-2016,5165507153,DVLA VEHICLE TAX,9399,Vehicle Excise Duty (VED),232.50,0.00,232.50
Neighbourhood Services,Direct Services,010561,Fleet - Morrison Busty Fleet,Transport,215013,Running Costs of Vehicles,11-Aug-2016,5165507155,DVLA VEHICLE TAX,9399,Vehicle Excise Duty (VED),232.50,0.00,232.50
Neighbourhood Services,Direct Services,010900,Fleet - Meadowfield Fleet,Transport,215013,Running Costs of Vehicles,11-Aug-2016,5165507157,DVLA VEHICLE TAX,9399,Vehicle Excise Duty (VED),232.50,0.00,232.50
Neighbourhood Services,Direct Services,010551,Fleet - Chilton Fleet,Transport,215013,Running Costs of Vehicles,11-Aug-2016,5165507159,DVLA VEHICLE TAX,9399,Vehicle Excise Duty (VED),232.50,0.00,232.50
Neighbourhood Services,Direct Services,010900,Fleet - Meadowfield Fleet,Transport,215013,Running Costs of Vehicles,11-Aug-2016,5165507161,DVLA VEHICLE TAX,9399,Vehicle Excise Duty (VED),232.50,0.00,232.50
Neighbourhood Services,Direct Services,010900,Fleet - Meadowfield Fleet,Transport,215013,Running Costs of Vehicles,11-Aug-2016,5165507163,DVLA VEHICLE TAX,9399,Vehicle Excise Duty (VED),232.50,0.00,232.50
Neighbourhood Services,Direct Services,010900,Fleet - Meadowfield Fleet,Transport,215013,Running Costs of Vehicles,11-Aug-2016,5165507165,DVLA VEHICLE TAX,9399,Vehicle Excise Duty (VED),232.50,0.00,232.50
Neighbourhood Services,Direct Services,010900,Fleet - Meadowfield Fleet,Transport,215013,Running Costs of Vehicles,11-Aug-2016,5165507167,DVLA VEHICLE TAX,9399,Vehicle Excise Duty (VED),232.50,0.00,232.50
Neighbourhood Services,Direct Services,010900,Fleet - Meadowfield Fleet,Transport,215013,Running Costs of Vehicles,11-Aug-2016,5165507169,DVLA VEHICLE TAX,9399,Vehicle Excise Duty (VED),232.50,0.00,232.50
Neighbourhood Services,Direct Services,010900,Fleet - Meadowfield Fleet,Transport,215013,Running Costs of Vehicles,11-Aug-2016,5165507171,DVLA VEHICLE TAX,9399,Vehicle Excise Duty (VED),232.50,0.00,232.50
Neighbourhood Services,Direct Services,010900,Fleet - Meadowfield Fleet,Transport,215013,Running Costs of Vehicles,11-Aug-2016,5165507173,DVLA VEHICLE TAX,9399,Vehicle Excise Duty (VED),232.50,0.00,232.50
Neighbourhood Services,Direct Services,010561,Fleet - Morrison Busty Fleet,Transport,215013,Running Costs of Vehicles,11-Aug-2016,5165507175,DVLA VEHICLE TAX,9399,Vehicle Excise Duty (VED),232.50,0.00,232.50
Neighbourhood Services,Direct Services,010900,Fleet - Meadowfield Fleet,Transport,215013,Running Costs of Vehicles,11-Aug-2016,5165507177,DVLA VEHICLE TAX,9399,Vehicle Excise Duty (VED),232.50,0.00,232.50
Neighbourhood Services,Direct Services,010864,Fleet - Hackworth Road Fleet,Transport,215013,Running Costs of Vehicles,11-Aug-2016,5165507179,DVLA VEHICLE TAX,9399,Vehicle Excise Duty (VED),232.50,0.00,232.50
Neighbourhood Services,Direct Services,010551,Fleet - Chilton Fleet,Transport,215013,Running Costs of Vehicles,11-Aug-2016,5165507181,DVLA VEHICLE TAX,9399,Vehicle Excise Duty (VED),652.50,0.00,652.50
Neighbourhood Services,Direct Services,010864,Fleet - Hackworth Road Fleet,Transport,215013,Running Costs of Vehicles,11-Aug-2016,5165507183,DVLA VEHICLE TAX,9399,Vehicle Excise Duty (VED),187.50,0.00,187.50
Neighbourhood Services,Direct Services,010900,Fleet - Meadowfield Fleet,Transport,215013,Running Costs of Vehicles,11-Aug-2016,5165507185,DVLA VEHICLE TAX,9399,Vehicle Excise Duty (VED),232.50,0.00,232.50
Neighbourhood Services,Direct Services,010900,Fleet - Meadowfield Fleet,Transport,215013,Running Costs of Vehicles,11-Aug-2016,5165507187,DVLA VEHICLE TAX,9399,Vehicle Excise Duty (VED),232.50,0.00,232.50
Neighbourhood Services,Direct Services,010900,Fleet - Meadowfield Fleet,Transport,215013,Running Costs of Vehicles,11-Aug-2016,5165507189,DVLA VEHICLE TAX,9399,Vehicle Excise Duty (VED),232.50,0.00,232.50
Neighbourhood Services,Direct Services,010900,Fleet - Meadowfield Fleet,Transport,215013,Running Costs of Vehicles,11-Aug-2016,5165507191,DVLA VEHICLE TAX,9399,Vehicle Excise Duty (VED),232.50,0.00,232.50
Neighbourhood Services,Direct Services,010561,Fleet - Morrison Busty Fleet,Transport,215013,Running Costs of Vehicles,11-Aug-2016,5165507193,DVLA VEHICLE TAX,9399,Vehicle Excise Duty (VED),232.50,0.00,232.50
Neighbourhood Services,Direct Services,010900,Fleet - Meadowfield Fleet,Transport,215013,Running Costs of Vehicles,11-Aug-2016,5165507195,DVLA VEHICLE TAX,9399,Vehicle Excise Duty (VED),232.50,0.00,232.50
Neighbourhood Services,Direct Services,010900,Fleet - Meadowfield Fleet,Transport,215013,Running Costs of Vehicles,11-Aug-2016,5165507197,DVLA VEHICLE TAX,9399,Vehicle Excise Duty (VED),232.50,0.00,232.50
Neighbourhood Services,Direct Services,010900,Fleet - Meadowfield Fleet,Transport,215013,Running Costs of Vehicles,11-Aug-2016,5165507199,DVLA VEHICLE TAX,9399,Vehicle Excise Duty (VED),232.50,0.00,232.50
Neighbourhood Services,Direct Services,010900,Fleet - Meadowfield Fleet,Transport,215013,Running Costs of Vehicles,11-Aug-2016,5165507201,DVLA VEHICLE TAX,9399,Vehicle Excise Duty (VED),232.50,0.00,232.50
Neighbourhood Services,Direct Services,010900,Fleet - Meadowfield Fleet,Transport,215013,Running Costs of Vehicles,11-Aug-2016,5165507203,DVLA VEHICLE TAX,9399,Vehicle Excise Duty (VED),232.50,0.00,232.50
Neighbourhood Services,Direct Services,010900,Fleet - Meadowfield Fleet,Transport,215013,Running Costs of Vehicles,11-Aug-2016,5165507205,DVLA VEHICLE TAX,9399,Vehicle Excise Duty (VED),232.50,0.00,232.50
Neighbourhood Services,Direct Services,010561,Fleet - Morrison Busty Fleet,Transport,215013,Running Costs of Vehicles,11-Aug-2016,5165507207,DVLA VEHICLE TAX,9399,Vehicle Excise Duty (VED),232.50,0.00,232.50
Children and Adult Services,Childrens Services,085958,Support Services,Supplies and Services,312011,Newspapers Books and Periodicals,11-Aug-2016,5165507219,Amazon UK Marketplace,5942,Books-school library,11.36,0.00,11.36
Children and Adult Services,Childrens Services,085958,Support Services,Supplies and Services,324117,Provisions,11-Aug-2016,5165507221,TESCO STORES 6329,5411,Catering costs - provisions,209.04,0.00,209.04
Neighbourhood Services,Direct Services,010367,C&G - South Grounds Maintenance,Supplies and Services,304259,Equipment and Materials,11-Aug-2016,5165507225,MKM PETERLEE,5211,Equipment-purchase and rental,131.74,21.96,109.78
Neighbourhood Services,Culture & Sport,011060,Hardwick Park Catering,Supplies and Services,324117,Provisions,11-Aug-2016,5165507231,BRAKE BROS LTD,5811,Catering costs - provisions,238.38,39.73,198.65
Neighbourhood Services,Culture & Sport,011060,Hardwick Park Catering,Supplies and Services,324117,Provisions,11-Aug-2016,5165507231 - 1,BRAKE BROS LTD,5811,Catering costs - provisions,45.60,,45.60
Children and Adult Services,Childrens Services,085557,Child Protection Team Spennymoor,Supplies and Services,338045,Services,11-Aug-2016,5165507239,HM PASSPORT,9399,Legal expenses,90.00,0.00,90.00
Children and Adult Services,Education,071903,EYDCP-Sustainability EDS,Supplies and Services,332047,Printing Stationery and Gen Off Exps,11-Aug-2016,5165507241,AMAZON UK RETAIL AMAZO,5999,Stationery,30.19,0.00,30.19
Children and Adult Services,Education,071903,EYDCP-Sustainability EDS,Supplies and Services,332047,Printing Stationery and Gen Off Exps,11-Aug-2016,5165507243,AMAZON UK RETAIL AMAZO,5999,Stationery,30.19,0.00,30.19
Children and Adult Services,Childrens Services,088063,Bishop Auckland 0 - 5,Supplies and Services,324117,Provisions,11-Aug-2016,5165507253,WM MORRISON 040,5411,Catering costs - provisions,29.08,0.00,29.08
Children and Adult Services,Childrens Services,085334,West Rainton Satelite Home,Supplies and Services,332047,Printing Stationery and Gen Off Exps,11-Aug-2016,5165507261,stonehill.co.uK,5943,Stationery,115.20,19.20,96.00
Neighbourhood Services,Direct Services,021234,Catering - Locomotion,Supplies and Services,304221,Equipment and Materials,11-Aug-2016,5165507263,Amazon UK Marketplace,5942,Direct materials,55.95,0.00,55.95
Neighbourhood Services,Direct Services,020041,Bldg Serv - Business Development - General,Supplies and Services,372009,Subscriptions,11-Aug-2016,5165507265,MILLSTREAM ASSOCIATES,7392,Subscriptions,118.80,19.80,99.00
Resources,Resources Management,069000,Resources Management,Supplies and Services,324117,Provisions,11-Aug-2016,5165507267,CO-OP GROUP 010830,5411,Catering costs - provisions,2.00,0.00,2.00
Children and Adult Services,Childrens Services,074000,TTF-Attachment and Results,Supplies and Services,308011,Furniture,11-Aug-2016,5165507271,FRANKS THE FLOORING ST,5713,Furniture repair and replacement,150.00,0.00,150.00
Regeneration & Economic Development,Spatial Policy Planning Assets & Environment,031072,Archaeology,Supplies and Services,352001,Conference Expenses,11-Aug-2016,5165507273,EB WORKSHOP ON CIFA S,7399,Conferencesseminars fees etc,300.00,0.00,300.00
Children and Adult Services,Childrens Services,085333,Coxhoe Satelite Home,Supplies and Services,312011,Newspapers Books and Periodicals,11-Aug-2016,5165507295,Amazon UK Marketplace,5942,Books-school library,7.27,0.00,7.27
Children and Adult Services,Childrens Services,085333,Coxhoe Satelite Home,Supplies and Services,324117,Provisions,11-Aug-2016,5165507297,ALDI,5411,Catering costs - provisions,2.04,0.34,1.70
Children and Adult Services,Childrens Services,085333,Coxhoe Satelite Home,Supplies and Services,324117,Provisions,11-Aug-2016,5165507297 - 1,ALDI,5411,Catering costs - provisions,30.83,,30.83
Children and Adult Services,Childrens Services,085380,Operations Manager Adoption & Fostering,Supplies and Services,312011,Newspapers Books and Periodicals,11-Aug-2016,5165507299,Amazon EU,5969,Books-school library,23.92,0.00,23.92
Children and Adult Services,Childrens Services,085331,New Lea Childrens Home,Supplies and Services,338048,Services,11-Aug-2016,5165507301,HMCOURTS-SERVICE.G,9222,Court Costs,15.00,0.00,15.00
Regeneration & Economic Development,Economic Development and Housing,030737,Durham Works Flexible Fund,Supplies and Services,324001,Provisions,11-Aug-2016,5165507305,WINE CELLAR,5921,Bar supplies,92.00,0.00,92.00
Regeneration & Economic Development,Economic Development and Housing,030737,Durham Works Flexible Fund,Supplies and Services,324117,Provisions,11-Aug-2016,5165507307,TESCO STORES 2916,5411,Catering costs - provisions,19.05,0.00,19.05
Neighbourhood Services,Direct Services,021235,Catering - Wharton Park,Supplies and Services,324117,Provisions,11-Aug-2016,5165507315,JR HOLLAND FOODSERVICE,5422,Catering costs - provisions,24.85,0.00,24.85
Neighbourhood Services,Culture & Sport,010605,Woodhouse Close Leisure Complex,Supplies and Services,324117,Provisions,11-Aug-2016,5165507319,BRAKE BROS LTD,5811,Catering costs - provisions,26.82,4.47,22.35
Neighbourhood Services,Culture & Sport,010605,Woodhouse Close Leisure Complex,Supplies and Services,324117,Provisions,11-Aug-2016,5165507319 - 1,BRAKE BROS LTD,5811,Catering costs - provisions,134.65,,134.65
Children and Adult Services,Childrens Services,088011,Seaham Locality,Supplies and Services,304259,Equipment and Materials,11-Aug-2016,5165507333,WILKO.COM,5722,Equipment-purchase and rental,42.00,0.00,42.00
Children and Adult Services,Education,079580,Mental Health Counselling,Supplies and Services,304403,Equipment and Materials,11-Aug-2016,5170140797,AMAZON UK RETAIL AMAZO,5999,Other consumables,33.31,0.00,33.31
Children and Adult Services,Education,079580,Mental Health Counselling,Supplies and Services,304403,Equipment and Materials,11-Aug-2016,5170140799,AMAZON UK RETAIL AMAZO,5999,Other consumables,49.92,0.00,49.92
Children and Adult Services,Head of Adults,051625,Intermediate Care Plus - South,Supplies and Services,340001,Postages,11-Aug-2016,5186784717,POST OFFICE SHOP,9402,Postages,57.99,0.00,57.99
Children and Adult Services,Childrens Services,085957,Secure Management,Supplies and Services,384999,Miscellaneous Expenses,12-Aug-2016,5170140767,Amazon EU,5969,Other expenses,3.00,0.00,3.00
Neighbourhood Services,Direct Services,021242,Catering - County Hall,Supplies and Services,324117,Provisions,12-Aug-2016,5170140789,BRAMBLES FOODS LTD,5499,Catering costs - provisions,419.19,0.00,419.19
Neighbourhood Services,Direct Services,021242,Catering - County Hall,Supplies and Services,324117,Provisions,12-Aug-2016,5170140791,JR HOLLAND FOODSERVICE,5422,Catering costs - provisions,72.45,0.00,72.45
Neighbourhood Services,Direct Services,021242,Catering - County Hall,Supplies and Services,324117,Provisions,12-Aug-2016,5170140793,JR HOLLAND FOODSERVICE,5422,Catering costs - provisions,13.16,0.00,13.16
Neighbourhood Services,Direct Services,021242,Catering - County Hall,Supplies and Services,324117,Provisions,12-Aug-2016,5170140795,BRAKE BROS LTD,5811,Catering costs - provisions,379.32,63.22,316.10
Neighbourhood Services,Direct Services,021242,Catering - County Hall,Supplies and Services,324117,Provisions,12-Aug-2016,5170140795 - 1,BRAKE BROS LTD,5811,Catering costs - provisions,233.82,,233.82
Children and Adult Services,Childrens Services,088093,Newton Aycliffe 0 - 5,Supplies and Services,304403,Equipment and Materials,12-Aug-2016,5170140801,TESCO STORES 2916,5411,Other consumables,24.80,0.00,24.80
Neighbourhood Services,Direct Services,010900,Fleet - Meadowfield Fleet,Transport,215013,Running Costs of Vehicles,12-Aug-2016,5170140803,DVLA VEHICLE TAX,9399,Vehicle Excise Duty (VED),232.50,0.00,232.50
Children and Adult Services,Childrens Services,088063,Bishop Auckland 0 - 5,Supplies and Services,324117,Provisions,12-Aug-2016,5170140805,SAINSBURYS 2199,5411,Catering costs - provisions,22.75,0.00,22.75
Regeneration & Economic Development,Economic Development and Housing,030552,ATLAS Regional Network,Transport,235057,Public Transport,12-Aug-2016,5170140813,INTERNATIONAL CENT,7523,Staff travelling,13.00,0.00,13.00
Children and Adult Services,Childrens Services,085958,Support Services,Supplies and Services,312011,Newspapers Books and Periodicals,12-Aug-2016,5170140825,Amazon UK Marketplace,5942,Books-school library,29.98,0.00,29.98
Children and Adult Services,Childrens Services,085958,Support Services,Supplies and Services,312011,Newspapers Books and Periodicals,12-Aug-2016,5170140827,Amazon UK Marketplace,5942,Books-school library,7.24,0.00,7.24
Neighbourhood Services,Direct Services,010367,C&G - South Grounds Maintenance,Supplies and Services,304259,Equipment and Materials,12-Aug-2016,5170140835,MKM PETERLEE,5211,Equipment-purchase and rental,131.74,21.96,109.78
Neighbourhood Services,Direct Services,010367,C&G - South Grounds Maintenance,Supplies and Services,312011,Newspapers Books and Periodicals,12-Aug-2016,5170140837,WWW.GUSTHARTS.CO.UK,5251,Books-school library,268.44,44.74,223.70
Neighbourhood Services,Direct Services,010301,C&G - North Grounds Maintenance,Supplies and Services,304403,Equipment and Materials,12-Aug-2016,5170140841,BESCOL,5231,Other consumables,23.89,0.00,23.89
Neighbourhood Services,Culture & Sport,011060,Hardwick Park Catering,Supplies and Services,324117,Provisions,12-Aug-2016,5170140845,JR HOLLAND FOODSERVICE,5422,Catering costs - provisions,28.04,0.00,28.04
Neighbourhood Services,Culture & Sport,011060,Hardwick Park Catering,Supplies and Services,324117,Provisions,12-Aug-2016,5170140847,JR HOLLAND FOODSERVICE,5422,Catering costs - provisions,0.93,0.00,0.93
Neighbourhood Services,Culture & Sport,011060,Hardwick Park Catering,Supplies and Services,324117,Provisions,12-Aug-2016,5170140849,BRAKE BROS LTD,5811,Catering costs - provisions,443.58,73.93,369.65
Neighbourhood Services,Culture & Sport,011060,Hardwick Park Catering,Supplies and Services,324117,Provisions,12-Aug-2016,5170140849 - 1,BRAKE BROS LTD,5811,Catering costs - provisions,58.80,,58.80
Neighbourhood Services,Culture & Sport,011060,Hardwick Park Catering,Supplies and Services,324117,Provisions,12-Aug-2016,5170140851,BRAKE BROS LTD,5811,Catering costs - provisions,212.40,35.40,177.00
Neighbourhood Services,Culture & Sport,011060,Hardwick Park Catering,Supplies and Services,324117,Provisions,12-Aug-2016,5170140851 - 1,BRAKE BROS LTD,5811,Catering costs - provisions,266.55,,266.55
Regeneration & Economic Development,Economic Development and Housing,030762,Organisational Training & Development,Employees,040149,Recruitment Instruction and Training,12-Aug-2016,5170140855,CITB,8220,Training-all costs,30.00,5.00,25.00
Neighbourhood Services,Direct Services,021234,Catering - Locomotion,Supplies and Services,324117,Provisions,12-Aug-2016,5170140867,BRAKE BROS LTD,5811,Catering costs - provisions,73.80,12.30,61.50
Neighbourhood Services,Direct Services,021234,Catering - Locomotion,Supplies and Services,324117,Provisions,12-Aug-2016,5170140867 - 1,BRAKE BROS LTD,5811,Catering costs - provisions,51.00,,51.00
Neighbourhood Services,Direct Services,021234,Catering - Locomotion,Supplies and Services,324117,Provisions,12-Aug-2016,5170140869,BRAKE BROS LTD,5811,Catering costs - provisions,64.14,10.69,53.45
Neighbourhood Services,Direct Services,021234,Catering - Locomotion,Supplies and Services,324117,Provisions,12-Aug-2016,5170140869 - 1,BRAKE BROS LTD,5811,Catering costs - provisions,51.44,,51.44
Neighbourhood Services,Direct Services,010525,Catering - Green Lane,Supplies and Services,324117,Provisions,12-Aug-2016,5170140873,BRAMBLES FOODS LTD,5499,Catering costs - provisions,78.57,0.00,78.57
Neighbourhood Services,Direct Services,010525,Catering - Green Lane,Supplies and Services,324117,Provisions,12-Aug-2016,5170140875,JR HOLLAND FOODSERVICE,5422,Catering costs - provisions,37.84,0.00,37.84
Neighbourhood Services,Direct Services,019100,Fleet - Strategic Fleet,Supplies and Services,312009,Newspapers Books and Periodicals,12-Aug-2016,5170140893,SMMT LTD,8675,Newspapers books and periodicals,63.20,0.00,63.20
Resources,Financial Services,065127,Support and Development,Supplies and Services,372009,Subscriptions,12-Aug-2016,5170140911,WP-INSTANTSSL CERTIFIC,7399,Subscriptions,15.54,0.00,15.54
Children and Adult Services,Childrens Services,071370,Peterlee and Seaham Locality,Supplies and Services,304403,Equipment and Materials,12-Aug-2016,5170140921,TESCO - Seller_IST_1_2,5999,Other consumables,206.99,0.00,206.99
Neighbourhood Services,Culture & Sport,054235,Bp Auckland Town Hall Cafe,Supplies and Services,324117,Provisions,12-Aug-2016,5170140923,JR HOLLAND FOODSERVICE,5422,Catering costs - provisions,17.07,0.00,17.07
Regeneration & Economic Development,Transport and Contracted Services,031701,Care Connect All Localities,Supplies and Services,344033,Telephones,12-Aug-2016,5170140925,BT BILL PAYMENT 2,4812,Telephones general-all costs,123.80,20.63,103.17
Regeneration & Economic Development,Transport and Contracted Services,031701,Care Connect All Localities,Supplies and Services,344033,Telephones,12-Aug-2016,5170140927,BT BILL PAYMENT 2,4812,Telephones general-all costs,123.80,20.63,103.17
Regeneration & Economic Development,Transport and Contracted Services,031701,Care Connect All Localities,Supplies and Services,344033,Telephones,12-Aug-2016,5170140929,BT BILL PAYMENT 2,4812,Telephones general-all costs,90.30,15.05,75.25
Regeneration & Economic Development,Transport and Contracted Services,031701,Care Connect All Localities,Supplies and Services,344033,Telephones,12-Aug-2016,5170140929 - 1,BT BILL PAYMENT 2,4812,Telephones general-all costs,0.03,,0.03
Neighbourhood Services,Direct Services,021324,Catering - Meadowfield,Supplies and Services,324117,Provisions,12-Aug-2016,5170140933,BRAMBLES FOODS LTD,5499,Catering costs - provisions,80.40,0.00,80.40
Neighbourhood Services,Direct Services,021324,Catering - Meadowfield,Supplies and Services,324117,Provisions,12-Aug-2016,5170140935,JR HOLLAND FOODSERVICE,5422,Catering costs - provisions,27.11,0.00,27.11
Neighbourhood Services,Direct Services,021324,Catering - Meadowfield,Supplies and Services,324117,Provisions,12-Aug-2016,5170140937,JR HOLLAND FOODSERVICE,5422,Catering costs - provisions,9.87,0.00,9.87
Children and Adult Services,Childrens Services,088073,Barnard Castle 0 - 5,Supplies and Services,304649,Equipment and Materials,12-Aug-2016,5170140943,WILKO.COM,5722,Toys,36.00,0.00,36.00
Children and Adult Services,Childrens Services,085331,New Lea Childrens Home,Supplies and Services,328041,Clothing Uniforms and Laundry,12-Aug-2016,5170140949,OFFICE LONDON INTE,5661,Clothing uniforms and laundry,52.25,0.00,52.25
Regeneration & Economic Development,Spatial Policy Planning Assets & Environment,031217,North Pennines - Cold Blooded & Spineless,Supplies and Services,324117,Provisions,12-Aug-2016,5170140955,TESCO STORES 4358,5411,Catering costs - provisions,17.78,0.00,17.78
Neighbourhood Services,Culture & Sport,010605,Woodhouse Close Leisure Complex,Supplies and Services,324117,Provisions,12-Aug-2016,5170140959,BRAKE BROS LTD,5811,Catering costs - provisions,82.92,0.00,82.92
Dedicated Schools Grant,Dedicated Schools Grant,079052,Part Sighted-Belmont Comp,Supplies and Services,304259,Equipment and Materials,13-Aug-2016,5170140761,Kindle Unlimited,5735,Equipment-purchase and rental,7.99,0.00,7.99
Children and Adult Services,Childrens Services,071449,Ferryhill One Point Hub,Supplies and Services,324117,Provisions,13-Aug-2016,5170140763,ASDA SUPERSTORE 4987,5411,Catering costs - provisions,30.00,0.00,30.00
Children and Adult Services,Childrens Services,085957,Secure Management,Supplies and Services,304403,Equipment and Materials,13-Aug-2016,5170140771,AMAZON UK RETAIL AMAZO,5999,Other consumables,5.00,0.00,5.00
Children and Adult Services,Childrens Services,085342,9 Cedar Drive Aycliffe,Supplies and Services,324117,Provisions,13-Aug-2016,5170140775,TESCO STORES 2916,5411,Catering costs - provisions,19.62,0.00,19.62
Children and Adult Services,Childrens Services,085958,Support Services,Supplies and Services,312011,Newspapers Books and Periodicals,13-Aug-2016,5170140829,Amazon UK Marketplace,5942,Books-school library,95.91,0.00,95.91
Children and Adult Services,Childrens Services,085958,Support Services,Supplies and Services,324117,Provisions,13-Aug-2016,5170140831,TESCO STORES 6329,5411,Catering costs - provisions,97.70,0.00,97.70
Neighbourhood Services,Direct Services,021235,Catering - Wharton Park,Supplies and Services,324117,Provisions,13-Aug-2016,5170140951,BRAKE BROS LTD,5811,Catering costs - provisions,282.56,47.09,235.47
Neighbourhood Services,Direct Services,021235,Catering - Wharton Park,Supplies and Services,324117,Provisions,13-Aug-2016,5170140953,BRAKE BROS LTD,5811,Catering costs - provisions,215.28,35.88,179.40
Neighbourhood Services,Direct Services,021235,Catering - Wharton Park,Supplies and Services,324117,Provisions,13-Aug-2016,5170140953 - 1,BRAKE BROS LTD,5811,Catering costs - provisions,45.06,,45.06
Regeneration & Economic Development,Economic Development and Housing,030699,Business Growth and Innovation General,Supplies and Services,342033,Computers and Communications,14-Aug-2016,5170140777,WATCHFULPAYPAL,7379,Computer hardware,15.47,0.00,15.47
Children and Adult Services,Childrens Services,085958,Support Services,Supplies and Services,312011,Newspapers Books and Periodicals,14-Aug-2016,5170140833,Amazon UK Marketplace,5942,Books-school library,9.77,0.00,9.77
Neighbourhood Services,Culture & Sport,054399,Local Delivery-Libraries,Supplies and Services,304999,Equipment and Materials,14-Aug-2016,5170140915,Amazon Prime,5968,Misc equipment tools and materials,7.99,0.00,7.99
Regeneration & Economic Development,Economic Development and Housing,030699,Business Growth and Innovation General,Supplies and Services,342033,Computers and Communications,15-Aug-2016,5170140779,WATCHFULPAYPAL,7379,Computer hardware,0.43,0.00,0.43
Children and Adult Services,Education,071733,Shildon Childcare,Supplies and Services,324117,Provisions,15-Aug-2016,5176233991,ASDA HOME SHOPPING,5411,Catering costs - provisions,66.76,0.00,66.76
Children and Adult Services,Education,071733,Shildon Childcare,Supplies and Services,324117,Provisions,15-Aug-2016,5176233993,ASDA HOME SHOPPING,5411,Catering costs - provisions,-0.25,0.00,-0.25
Children and Adult Services,Childrens Services,085957,Secure Management,Supplies and Services,384999,Miscellaneous Expenses,15-Aug-2016,5176234005,ARTHOUSE DIRECT,5970,Other expenses,28.98,0.00,28.98
Children and Adult Services,Childrens Services,085957,Secure Management,Supplies and Services,308011,Furniture,15-Aug-2016,5176234009,DUNELM ONLINE ORDER,5714,Furniture repair and replacement,31.19,0.00,31.19
Neighbourhood Services,Direct Services,010367,C&G - South Grounds Maintenance,Supplies and Services,304259,Equipment and Materials,15-Aug-2016,5176234027,SCREWFIX,5211,Equipment-purchase and rental,5.98,1.00,4.98
Neighbourhood Services,Direct Services,021242,Catering - County Hall,Supplies and Services,324117,Provisions,15-Aug-2016,5176234041,BRAMBLES FOODS LTD,5499,Catering costs - provisions,522.79,0.00,522.79
Neighbourhood Services,Direct Services,021242,Catering - County Hall,Supplies and Services,324117,Provisions,15-Aug-2016,5176234049,JR HOLLAND FOODSERVICE,5422,Catering costs - provisions,13.52,0.00,13.52
Neighbourhood Services,Direct Services,021242,Catering - County Hall,Supplies and Services,324117,Provisions,15-Aug-2016,5176234053,BRAKE BROS LTD,5811,Catering costs - provisions,298.50,0.00,298.50
Resources,I.C.T. Services,065464,Domains,Supplies and Services,372009,Subscriptions,15-Aug-2016,5176234059,WEB NETWORKSOLUTIONS,5968,Subscriptions,81.13,0.00,81.13
Children and Adult Services,Childrens Services,085958,Support Services,Supplies and Services,312011,Newspapers Books and Periodicals,15-Aug-2016,5176234093,Amazon UK Marketplace,5942,Books-school library,55.11,0.00,55.11
Children and Adult Services,Childrens Services,085958,Support Services,Supplies and Services,312011,Newspapers Books and Periodicals,15-Aug-2016,5176234095,Amazon UK Marketplace,5942,Books-school library,8.92,0.00,8.92
Children and Adult Services,Childrens Services,085958,Support Services,Supplies and Services,312011,Newspapers Books and Periodicals,15-Aug-2016,5176234097,Amazon UK Marketplace,5942,Books-school library,8.98,0.00,8.98
Neighbourhood Services,Culture & Sport,011060,Hardwick Park Catering,Supplies and Services,324117,Provisions,15-Aug-2016,5176234101,JR HOLLAND FOODSERVICE,5422,Catering costs - provisions,42.12,0.00,42.12
Neighbourhood Services,Culture & Sport,011060,Hardwick Park Catering,Supplies and Services,324117,Provisions,15-Aug-2016,5176234105,JR HOLLAND FOODSERVICE,5422,Catering costs - provisions,7.44,0.00,7.44
Neighbourhood Services,Culture & Sport,011060,Hardwick Park Catering,Supplies and Services,324117,Provisions,15-Aug-2016,5176234107,BRAKE BROS LTD,5811,Catering costs - provisions,172.02,28.67,143.35
Neighbourhood Services,Culture & Sport,011060,Hardwick Park Catering,Supplies and Services,324117,Provisions,15-Aug-2016,5176234107 - 1,BRAKE BROS LTD,5811,Catering costs - provisions,156.07,,156.07
Neighbourhood Services,Culture & Sport,011060,Hardwick Park Catering,Supplies and Services,324117,Provisions,15-Aug-2016,5176234111,BRAKE BROS LTD,5811,Catering costs - provisions,208.62,34.77,173.85
Neighbourhood Services,Culture & Sport,011060,Hardwick Park Catering,Supplies and Services,324117,Provisions,15-Aug-2016,5176234111 - 1,BRAKE BROS LTD,5811,Catering costs - provisions,40.77,,40.77
Neighbourhood Services,Direct Services,010525,Catering - Green Lane,Supplies and Services,324117,Provisions,15-Aug-2016,5176234119,BRAMBLES FOODS LTD,5499,Catering costs - provisions,84.56,0.00,84.56
Neighbourhood Services,Direct Services,010525,Catering - Green Lane,Supplies and Services,324117,Provisions,15-Aug-2016,5176234123,BRAKE BROS LTD,5811,Catering costs - provisions,101.05,0.00,101.05
Children and Adult Services,Childrens Services,085352,Tow Law CU,Supplies and Services,324117,Provisions,15-Aug-2016,5176234127,TESCO STORES 2371,5411,Catering costs - provisions,227.78,0.00,227.78
Neighbourhood Services,Direct Services,020073,Bldg Serv - R&M Div 73 - Gas Servicing,Supplies and Services,304221,Equipment and Materials,15-Aug-2016,5176234143,WWW.CORGI-DIRECT.COM,5211,Direct materials,216.00,36.00,180.00
Neighbourhood Services,Culture & Sport,011191,Wellbeing4Life,Supplies and Services,328041,Clothing Uniforms and Laundry,15-Aug-2016,5176234147,ARGOS LTD,5310,Clothing uniforms and laundry,9.78,0.00,9.78
Assistant Chief Executive,Policy & Communications Division,060270,Corporate News,Supplies and Services,352001,Conference Expenses,15-Aug-2016,5176234151,GLOBAL INSIGHT CONFERE,7399,Conferencesseminars fees etc,508.80,84.80,424.00
Neighbourhood Services,Culture & Sport,054235,Bp Auckland Town Hall Cafe,Supplies and Services,324117,Provisions,15-Aug-2016,5176234159,BRAKE BROS LTD,5811,Catering costs - provisions,113.64,0.00,113.64
Neighbourhood Services,Direct Services,021324,Catering - Meadowfield,Supplies and Services,324117,Provisions,15-Aug-2016,5176234163,BRAMBLES FOODS LTD,5499,Catering costs - provisions,80.87,0.00,80.87
Neighbourhood Services,Culture & Sport,011191,Wellbeing4Life,Supplies and Services,324117,Provisions,15-Aug-2016,5176234167,SAINSBURYS SACAT 0776,5411,Catering costs - provisions,63.22,0.00,63.22
Neighbourhood Services,Culture & Sport,011191,Wellbeing4Life,Supplies and Services,304259,Equipment and Materials,15-Aug-2016,5176234169,WILKO DURHAM 426,5722,Equipment-purchase and rental,5.35,0.00,5.35
Neighbourhood Services,Culture & Sport,010605,Woodhouse Close Leisure Complex,Supplies and Services,324117,Provisions,15-Aug-2016,5176234177,JR HOLLAND FOODSERVICE,5422,Catering costs - provisions,21.63,0.00,21.63
Children and Adult Services,Childrens Services,085957,Secure Management,Supplies and Services,384999,Miscellaneous Expenses,16-Aug-2016,5176234003,Amazon UK Marketplace,5942,Other expenses,69.60,0.00,69.60
Resources,I.C.T. Services,065464,Domains,Supplies and Services,372009,Subscriptions,16-Aug-2016,5176234061,WEB NETWORKSOLUTIONS,5968,Subscriptions,2.23,0.00,2.23
Children and Adult Services,Childrens Services,071380,Bishop Auckland and Barnard Castle Locality,Supplies and Services,324117,Provisions,16-Aug-2016,5178971989,ASDA 4387,5411,Catering costs - provisions,81.95,0.00,81.95
Children and Adult Services,Childrens Services,071380,Bishop Auckland and Barnard Castle Locality,Supplies and Services,304403,Equipment and Materials,16-Aug-2016,5178971991,TESCO - Seller_IST_1_2,5999,Other consumables,71.25,0.00,71.25
Children and Adult Services,Childrens Services,071380,Bishop Auckland and Barnard Castle Locality,Supplies and Services,304403,Equipment and Materials,16-Aug-2016,5178971993,TESCO - Tescopay,5999,Other consumables,60.00,0.00,60.00
Children and Adult Services,Childrens Services,071380,Bishop Auckland and Barnard Castle Locality,Supplies and Services,304403,Equipment and Materials,16-Aug-2016,5178971995,TESCO-Seller_IST_1_240,5999,Other consumables,59.99,0.00,59.99
Children and Adult Services,Childrens Services,071449,Ferryhill One Point Hub,Supplies and Services,324117,Provisions,16-Aug-2016,5178971997,ASDA SUPERSTORE 4987,5411,Catering costs - provisions,10.68,0.00,10.68
Neighbourhood Services,Direct Services,021242,Catering - County Hall,Supplies and Services,324117,Provisions,16-Aug-2016,5178972015,JR HOLLAND FOODSERVICE,5422,Catering costs - provisions,26.97,0.00,26.97
Neighbourhood Services,Direct Services,021242,Catering - County Hall,Supplies and Services,324117,Provisions,16-Aug-2016,5178972017,BRAKE BROS LTD,5811,Catering costs - provisions,-9.44,0.00,-9.44
Neighbourhood Services,Culture & Sport,054812,Gala Theatre - Catering etc,Supplies and Services,324117,Provisions,16-Aug-2016,5178972019,JR HOLLAND FOODSERVICE,5422,Catering costs - provisions,38.23,0.00,38.23
Neighbourhood Services,Culture & Sport,054812,Gala Theatre - Catering etc,Supplies and Services,324117,Provisions,16-Aug-2016,5178972021,BRAKE BROS LTD,5811,Catering costs - provisions,24.42,4.07,20.35
Neighbourhood Services,Culture & Sport,054812,Gala Theatre - Catering etc,Supplies and Services,324117,Provisions,16-Aug-2016,5178972021 - 1,BRAKE BROS LTD,5811,Catering costs - provisions,97.28,,97.28
Children and Adult Services,Childrens Services,071370,Peterlee and Seaham Locality,Supplies and Services,312011,Newspapers Books and Periodicals,16-Aug-2016,5178972031,Amazon UK Marketplace,5942,Books-school library,41.85,0.00,41.85
Children and Adult Services,Childrens Services,071370,Peterlee and Seaham Locality,Supplies and Services,324117,Provisions,16-Aug-2016,5178972033,ASDA STORES LTD,5411,Catering costs - provisions,31.00,0.00,31.00
Neighbourhood Services,Culture & Sport,011219,Office Services,Supplies and Services,344033,Telephones,16-Aug-2016,5178972035,TEXTANYWHERE LTD,4814,Telephones general-all costs,291.00,48.50,242.50
Children and Adult Services,Childrens Services,085332,Middlestone Moor CU,Supplies and Services,312011,Newspapers Books and Periodicals,16-Aug-2016,5178972047,Amazon UK Marketplace,5942,Books-school library,2.02,0.00,2.02
Children and Adult Services,Childrens Services,085958,Support Services,Supplies and Services,312011,Newspapers Books and Periodicals,16-Aug-2016,5178972057,"Amazon Svcs Europe,SAR",5942,Books-school library,6.90,0.00,6.90
Children and Adult Services,Childrens Services,085958,Support Services,Supplies and Services,312011,Newspapers Books and Periodicals,16-Aug-2016,5178972059,Amazon UK Marketplace,5942,Books-school library,11.58,0.00,11.58
Children and Adult Services,Childrens Services,085958,Support Services,Supplies and Services,312011,Newspapers Books and Periodicals,16-Aug-2016,5178972061,Amazon UK Marketplace,5942,Books-school library,8.90,0.00,8.90
Children and Adult Services,Childrens Services,085958,Support Services,Supplies and Services,312011,Newspapers Books and Periodicals,16-Aug-2016,5178972063,Amazon EU,5969,Books-school library,10.99,0.00,10.99
Children and Adult Services,Childrens Services,085958,Support Services,Supplies and Services,312011,Newspapers Books and Periodicals,16-Aug-2016,5178972065,Amazon EU,5969,Books-school library,10.99,0.00,10.99
Children and Adult Services,Childrens Services,085958,Support Services,Supplies and Services,312011,Newspapers Books and Periodicals,16-Aug-2016,5178972067,Amazon UK Marketplace,5942,Books-school library,67.77,0.00,67.77
Children and Adult Services,Childrens Services,085958,Support Services,Supplies and Services,312011,Newspapers Books and Periodicals,16-Aug-2016,5178972069,Amazon EU,5969,Books-school library,9.00,0.00,9.00
Children and Adult Services,Childrens Services,085958,Support Services,Supplies and Services,328041,Clothing Uniforms and Laundry,16-Aug-2016,5178972071,MAINLINE MENSWEAR,5611,Clothing uniforms and laundry,64.95,0.00,64.95
Children and Adult Services,Childrens Services,085958,Support Services,Supplies and Services,328041,Clothing Uniforms and Laundry,16-Aug-2016,5178972073,NEW LOOK INTERNET,5621,Clothing uniforms and laundry,45.98,0.00,45.98
Children and Adult Services,Childrens Services,085958,Support Services,Supplies and Services,328041,Clothing Uniforms and Laundry,16-Aug-2016,5178972075,NEXT DIRECTORY,5651,Clothing uniforms and laundry,63.99,0.00,63.99
Children and Adult Services,Childrens Services,085958,Support Services,Supplies and Services,342033,Computers and Communications,16-Aug-2016,5178972077,VERY.CO.UK,5964,Computer hardware,60.00,0.00,60.00
Children and Adult Services,Childrens Services,085958,Support Services,Supplies and Services,342033,Computers and Communications,16-Aug-2016,5178972079,VERY.CO.UK,5964,Computer hardware,45.00,0.00,45.00
Children and Adult Services,Childrens Services,085958,Support Services,Supplies and Services,342033,Computers and Communications,16-Aug-2016,5178972081,VERY.CO.UK,5964,Computer hardware,30.00,0.00,30.00
Children and Adult Services,Childrens Services,085958,Support Services,Supplies and Services,342033,Computers and Communications,16-Aug-2016,5178972083,VERY.CO.UK,5964,Computer hardware,27.00,0.00,27.00
Children and Adult Services,Childrens Services,085958,Support Services,Supplies and Services,342033,Computers and Communications,16-Aug-2016,5178972085,VERY.CO.UK,5964,Computer hardware,24.00,0.00,24.00
Children and Adult Services,Childrens Services,085958,Support Services,Supplies and Services,342033,Computers and Communications,16-Aug-2016,5178972087,VERY.CO.UK,5964,Computer hardware,22.00,0.00,22.00
Children and Adult Services,Childrens Services,085958,Support Services,Supplies and Services,342033,Computers and Communications,16-Aug-2016,5178972089,VERY.CO.UK,5964,Computer hardware,17.50,0.00,17.50
Children and Adult Services,Childrens Services,085958,Support Services,Supplies and Services,342033,Computers and Communications,16-Aug-2016,5178972091,VERY.CO.UK,5964,Computer hardware,15.00,0.00,15.00
Children and Adult Services,Childrens Services,085958,Support Services,Supplies and Services,342033,Computers and Communications,16-Aug-2016,5178972093,VERY.CO.UK,5964,Computer hardware,9.60,0.00,9.60
Children and Adult Services,Childrens Services,085958,Support Services,Supplies and Services,342033,Computers and Communications,16-Aug-2016,5178972095,VERY.CO.UK,5964,Computer hardware,3.99,0.00,3.99
Children and Adult Services,Childrens Services,085958,Support Services,Supplies and Services,304403,Equipment and Materials,16-Aug-2016,5178972097,AMAZON UK RETAIL AMAZO,5999,Other consumables,10.99,0.00,10.99
Children and Adult Services,Childrens Services,085958,Support Services,Supplies and Services,304403,Equipment and Materials,16-Aug-2016,5178972099,AMAZON UK RETAIL AMAZO,5999,Other consumables,10.99,0.00,10.99
Neighbourhood Services,Culture & Sport,011060,Hardwick Park Catering,Supplies and Services,324117,Provisions,16-Aug-2016,5178972107,JR HOLLAND FOODSERVICE,5422,Catering costs - provisions,105.85,0.00,105.85
Neighbourhood Services,Culture & Sport,011060,Hardwick Park Catering,Supplies and Services,324117,Provisions,16-Aug-2016,5178972109,JR HOLLAND FOODSERVICE,5422,Catering costs - provisions,13.02,0.00,13.02
Neighbourhood Services,Culture & Sport,011060,Hardwick Park Catering,Supplies and Services,324117,Provisions,16-Aug-2016,5178972111,JR HOLLAND FOODSERVICE,5422,Catering costs - provisions,8.17,0.00,8.17
Neighbourhood Services,Culture & Sport,011060,Hardwick Park Catering,Supplies and Services,324117,Provisions,16-Aug-2016,5178972113,JR HOLLAND FOODSERVICE,5422,Catering costs - provisions,5.83,0.00,5.83
Neighbourhood Services,Culture & Sport,011060,Hardwick Park Catering,Supplies and Services,324117,Provisions,16-Aug-2016,5178972115,BRAKE BROS LTD,5811,Catering costs - provisions,580.62,96.77,483.85
Neighbourhood Services,Culture & Sport,011060,Hardwick Park Catering,Supplies and Services,324117,Provisions,16-Aug-2016,5178972115 - 1,BRAKE BROS LTD,5811,Catering costs - provisions,74.80,,74.80
Regeneration & Economic Development,Economic Development and Housing,030762,Organisational Training & Development,Employees,040149,Recruitment Instruction and Training,16-Aug-2016,5178972119,CITB,8220,Training-all costs,30.00,5.00,25.00
Neighbourhood Services,Culture & Sport,011210,Parks & Countryside,Supplies and Services,304259,Equipment and Materials,16-Aug-2016,5178972121,WILKO.COM,5722,Equipment-purchase and rental,46.00,0.00,46.00
Neighbourhood Services,Direct Services,021234,Catering - Locomotion,Supplies and Services,324117,Provisions,16-Aug-2016,5178972123,BRAKE BROS LTD,5811,Catering costs - provisions,276.18,46.03,230.15
Neighbourhood Services,Direct Services,021234,Catering - Locomotion,Supplies and Services,324117,Provisions,16-Aug-2016,5178972123 - 1,BRAKE BROS LTD,5811,Catering costs - provisions,59.45,,59.45
Children and Adult Services,Education,070264,EDC Premises,Premises,115125,Repairs to Grounds,16-Aug-2016,5178972127,HOMEBASE LTD 822,5211,General maintenance,65.37,10.90,54.47
Assistant Chief Executive,Planning & Performance Division,060134,WW1 In County Durham,Third Party Payments,430100,Rendered by Private Contractors,16-Aug-2016,5178972129,EB VOICES OF THE HOME,7399,Payments to sub-contractors,120.00,0.00,120.00
Neighbourhood Services,Direct Services,010525,Catering - Green Lane,Supplies and Services,324117,Provisions,16-Aug-2016,5178972131,BRAKE BROS LTD,5811,Catering costs - provisions,15.66,2.61,13.05
Neighbourhood Services,Direct Services,010525,Catering - Green Lane,Supplies and Services,324117,Provisions,16-Aug-2016,5178972131 - 1,BRAKE BROS LTD,5811,Catering costs - provisions,67.28,,67.28
Children and Adult Services,Childrens Services,085332,Middlestone Moor CU,Employees,040149,Recruitment Instruction and Training,16-Aug-2016,5178972165,PAYPAL N R PICKEN,8931,Training-all costs,48.50,0.00,48.50
Regeneration & Economic Development,Economic Development and Housing,030749,Employability - Youth Contract,Supplies and Services,338064,Services,16-Aug-2016,5178972167,DISCLOSURE SCOT,9399,Disclosure & Barring (DBS) Fees,25.00,0.00,25.00
Children and Adult Services,Childrens Services,071360,Consett and Stanley Locality,Supplies and Services,304403,Equipment and Materials,16-Aug-2016,5178972169,BEAMISH MUSEUM LTD,5947,Other consumables,333.00,0.00,333.00
Children and Adult Services,Childrens Services,071360,Consett and Stanley Locality,Supplies and Services,324117,Provisions,16-Aug-2016,5178972171,ASDA SUPERSTORE,5411,Catering costs - provisions,67.76,0.00,67.76
Regeneration & Economic Development,Spatial Policy Planning Assets & Environment,036000,Asset Management,Employees,040149,Recruitment Instruction and Training,16-Aug-2016,5178972173,RICS SUBS UK CYBS,8699,Training-all costs,275.00,0.00,275.00
Neighbourhood Services,Culture & Sport,054235,Bp Auckland Town Hall Cafe,Supplies and Services,324117,Provisions,16-Aug-2016,5178972183,JR HOLLAND FOODSERVICE,5422,Catering costs - provisions,16.07,0.00,16.07
Neighbourhood Services,Direct Services,021324,Catering - Meadowfield,Supplies and Services,324117,Provisions,16-Aug-2016,5178972185,BRAKE BROS LTD,5811,Catering costs - provisions,62.61,0.00,62.61
Children and Adult Services,Childrens Services,085333,Coxhoe Satelite Home,Supplies and Services,312011,Newspapers Books and Periodicals,16-Aug-2016,5178972187,Amazon UK Marketplace,5942,Books-school library,23.95,0.00,23.95
Children and Adult Services,Childrens Services,088073,Barnard Castle 0 - 5,Supplies and Services,304649,Equipment and Materials,16-Aug-2016,5178972189,WILKO.COM,5722,Toys,20.00,0.00,20.00
Regeneration & Economic Development,Economic Development and Housing,030737,Durham Works Flexible Fund,Supplies and Services,304403,Equipment and Materials,16-Aug-2016,5178972191,TESCO DIRECT,5999,Other consumables,15.99,2.67,13.32
Neighbourhood Services,Direct Services,021235,Catering - Wharton Park,Supplies and Services,324117,Provisions,16-Aug-2016,5178972197,JR HOLLAND FOODSERVICE,5422,Catering costs - provisions,32.54,0.00,32.54
Neighbourhood Services,Direct Services,021235,Catering - Wharton Park,Supplies and Services,324117,Provisions,16-Aug-2016,5178972199,BRAKE BROS LTD,5811,Catering costs - provisions,266.76,44.46,222.30
Children and Adult Services,Childrens Services,085632,Families First Seaham,Supplies and Services,338064,Services,16-Aug-2016,5178972201,DISCLOSURE SCOT,9399,Disclosure & Barring (DBS) Fees,25.00,0.00,25.00
Children and Adult Services,Childrens Services,071380,Bishop Auckland and Barnard Castle Locality,Supplies and Services,324117,Provisions,16-Aug-2016,5182685503,TESCO STORES 6329,5411,Catering costs - provisions,25.91,0.00,25.91
Children and Adult Services,Childrens Services,085341,High Etherley Satelite Home,Supplies and Services,324117,Provisions,16-Aug-2016,5182685603,TESCO STORES 6329,5411,Catering costs - provisions,161.33,0.00,161.33
Regeneration & Economic Development,Economic Development and Housing,030554,International Relations,Transport,235057,Public Transport,16-Aug-2016,5182685605,BRITISH A,3005,Staff travelling,496.90,0.00,496.90
Children and Adult Services,Childrens Services,085958,Support Services,Supplies and Services,304259,Equipment and Materials,16-Aug-2016,5182685609,SPORTSDIRECT.COM,5941,Equipment-purchase and rental,38.47,6.41,32.06
Children and Adult Services,Childrens Services,085958,Support Services,Supplies and Services,304403,Equipment and Materials,16-Aug-2016,5182685615,AMAZON UK RETAIL AMAZO,5999,Other consumables,9.98,0.00,9.98
Children and Adult Services,Childrens Services,085958,Support Services,Supplies and Services,304403,Equipment and Materials,16-Aug-2016,5182685617,AMAZON UK RETAIL AMAZO,5999,Other consumables,23.98,0.00,23.98
Regeneration & Economic Development,Strategy Programmes and Performance,030053,Building Capacity Exchange,Supplies and Services,384926,Miscellaneous Expenses,16-Aug-2016,5182685647,ROYAL DUTCH AIRLINES (KLM),3010,International visits,43.41,0.00,43.41
Regeneration & Economic Development,Strategy Programmes and Performance,030053,Building Capacity Exchange,Supplies and Services,384926,Miscellaneous Expenses,16-Aug-2016,5182685649,ROYAL DUTCH AIRLINES (KLM),3010,International visits,43.41,0.00,43.41
Regeneration & Economic Development,Strategy Programmes and Performance,030053,Building Capacity Exchange,Supplies and Services,384926,Miscellaneous Expenses,16-Aug-2016,5182685651,ROYAL DUTCH AIRLINES (KLM),3010,International visits,43.41,0.00,43.41
Regeneration & Economic Development,Strategy Programmes and Performance,030053,Building Capacity Exchange,Supplies and Services,384926,Miscellaneous Expenses,16-Aug-2016,5182685653,ROYAL DUTCH AIRLINES (KLM),3010,International visits,43.41,0.00,43.41
Regeneration & Economic Development,Strategy Programmes and Performance,030053,Building Capacity Exchange,Supplies and Services,384926,Miscellaneous Expenses,16-Aug-2016,5182685655,ROYAL DUTCH AIRLINES (KLM),3010,International visits,43.41,0.00,43.41
Regeneration & Economic Development,Strategy Programmes and Performance,030053,Building Capacity Exchange,Supplies and Services,384926,Miscellaneous Expenses,16-Aug-2016,5182685657,ROYAL DUTCH AIRLINES (KLM),3010,International visits,43.41,0.00,43.41
Regeneration & Economic Development,Economic Development and Housing,031576,B& B - Temp Accom,Supplies and Services,364320,Grants to Voluntary Organisations,16-Aug-2016,5182685675,PREMIER INN,3811,Accommodation assistance,95.00,15.83,79.17
Resources,I.C.T. Services,065335,Operations - System & Repairs Trading,Supplies and Services,342033,Computers and Communications,17-Aug-2016,5178972117,Amazon UK Marketplace,5942,Computer hardware,19.89,0.00,19.89
Children and Adult Services,Head of Adults,052764,Safeguarding Adults and Pract. Dev.,Supplies and Services,312009,Newspapers Books and Periodicals,17-Aug-2016,5178972135,SAGE PUBLICATIONS UK,5994,Newspapers books and periodicals,19.99,0.00,19.99
Children and Adult Services,Childrens Services,088093,Newton Aycliffe 0 - 5,Supplies and Services,304259,Equipment and Materials,17-Aug-2016,5182685505,ARGOS RETAIL GROUP,5310,Equipment-purchase and rental,51.83,0.00,51.83
Children and Adult Services,Education,071903,EYDCP-Sustainability EDS,Supplies and Services,332048,Printing Stationery and Gen Off Exps,17-Aug-2016,5182685507,Amazon EU,5969,Administrative stationery etc,31.58,0.00,31.58
Children and Adult Services,Education,071903,EYDCP-Sustainability EDS,Supplies and Services,332048,Printing Stationery and Gen Off Exps,17-Aug-2016,5182685509,Amazon EU,5969,Administrative stationery etc,33.43,0.00,33.43
Children and Adult Services,Education,071903,EYDCP-Sustainability EDS,Supplies and Services,332048,Printing Stationery and Gen Off Exps,17-Aug-2016,5182685511,AMAZON UK RETAIL AMAZO,5999,Administrative stationery etc,30.87,0.00,30.87
Children and Adult Services,Childrens Services,085957,Secure Management,Supplies and Services,328041,Clothing Uniforms and Laundry,17-Aug-2016,5182685513,WWW.FOOTASYLUM.COM,5941,Clothing uniforms and laundry,-62.49,0.00,-62.49
Regeneration & Economic Development,Economic Development and Housing,030699,Business Growth and Innovation General,Supplies and Services,304999,Equipment and Materials,17-Aug-2016,5182685519,PatentInspirationEU,5817,Misc equipment tools and materials,85.35,0.00,85.35
Resources,Financial Services,052865,SF-Financial Services Team,Supplies and Services,304259,Equipment and Materials,17-Aug-2016,5182685535,WILKO.COM,5722,Equipment-purchase and rental,143.00,0.00,143.00
Neighbourhood Services,Direct Services,021242,Catering - County Hall,Supplies and Services,324117,Provisions,17-Aug-2016,5182685563,JR HOLLAND FOODSERVICE,5422,Catering costs - provisions,185.26,0.00,185.26
Neighbourhood Services,Direct Services,021242,Catering - County Hall,Supplies and Services,324117,Provisions,17-Aug-2016,5182685567,JR HOLLAND FOODSERVICE,5422,Catering costs - provisions,107.39,0.00,107.39
Neighbourhood Services,Direct Services,021242,Catering - County Hall,Supplies and Services,324117,Provisions,17-Aug-2016,5182685569,JR HOLLAND FOODSERVICE,5422,Catering costs - provisions,46.15,0.00,46.15
Neighbourhood Services,Direct Services,021242,Catering - County Hall,Supplies and Services,324117,Provisions,17-Aug-2016,5182685571,JR HOLLAND FOODSERVICE,5422,Catering costs - provisions,31.35,0.00,31.35
Neighbourhood Services,Direct Services,021242,Catering - County Hall,Supplies and Services,324117,Provisions,17-Aug-2016,5182685573,BRAKE BROS LTD,5811,Catering costs - provisions,175.23,0.00,175.23
Children and Adult Services,Childrens Services,085351,Framwellgate Moor CU,Supplies and Services,312011,Newspapers Books and Periodicals,17-Aug-2016,5182685587,Amazon UK Marketplace,5942,Books-school library,127.93,0.00,127.93
Children and Adult Services,Childrens Services,071370,Peterlee and Seaham Locality,Supplies and Services,384237,Miscellaneous Expenses,17-Aug-2016,5182685589,ADVENTURE VALLEY,7999,Recreational exps outings parties,366.00,0.00,366.00
Neighbourhood Services,Direct Services,010551,Fleet - Chilton Fleet,Transport,215013,Running Costs of Vehicles,17-Aug-2016,5182685593,DVLA VEHICLE TAX,9399,Vehicle Excise Duty (VED),232.50,0.00,232.50
Children and Adult Services,Childrens Services,085958,Support Services,Supplies and Services,304259,Equipment and Materials,17-Aug-2016,5182685611,WWW.FOOTASYLUM.COM,5941,Equipment-purchase and rental,114.99,0.00,114.99
Children and Adult Services,Childrens Services,085958,Support Services,Supplies and Services,324117,Provisions,17-Aug-2016,5182685613,TESCO STORES 6329,5411,Catering costs - provisions,131.76,0.00,131.76
Neighbourhood Services,Direct Services,010301,C&G - North Grounds Maintenance,Supplies and Services,304259,Equipment and Materials,17-Aug-2016,5182685619,WWW.JTDOVE.CO.UK,5211,Equipment-purchase and rental,477.10,0.00,477.10
Neighbourhood Services,Culture & Sport,011060,Hardwick Park Catering,Supplies and Services,324117,Provisions,17-Aug-2016,5182685621,JR HOLLAND FOODSERVICE,5422,Catering costs - provisions,60.85,0.00,60.85
Neighbourhood Services,Culture & Sport,011060,Hardwick Park Catering,Supplies and Services,324117,Provisions,17-Aug-2016,5182685623,JR HOLLAND FOODSERVICE,5422,Catering costs - provisions,44.10,0.00,44.10
Neighbourhood Services,Culture & Sport,011060,Hardwick Park Catering,Supplies and Services,324117,Provisions,17-Aug-2016,5182685625,JR HOLLAND FOODSERVICE,5422,Catering costs - provisions,33.15,0.00,33.15
Neighbourhood Services,Culture & Sport,011060,Hardwick Park Catering,Supplies and Services,324117,Provisions,17-Aug-2016,5182685627,JR HOLLAND FOODSERVICE,5422,Catering costs - provisions,29.12,0.00,29.12
Neighbourhood Services,Culture & Sport,011060,Hardwick Park Catering,Supplies and Services,324117,Provisions,17-Aug-2016,5182685629,BRAKE BROS LTD,5811,Catering costs - provisions,762.54,127.09,635.45
Neighbourhood Services,Culture & Sport,011060,Hardwick Park Catering,Supplies and Services,324117,Provisions,17-Aug-2016,5182685629 - 1,BRAKE BROS LTD,5811,Catering costs - provisions,47.60,,47.60
Neighbourhood Services,Culture & Sport,011060,Hardwick Park Catering,Supplies and Services,324117,Provisions,17-Aug-2016,5182685635,BRAKE BROS LTD,5811,Catering costs - provisions,435.54,72.59,362.95
Neighbourhood Services,Culture & Sport,011060,Hardwick Park Catering,Supplies and Services,324117,Provisions,17-Aug-2016,5182685635 - 1,BRAKE BROS LTD,5811,Catering costs - provisions,320.59,,320.59
Resources,I.C.T. Services,065335,Operations - System & Repairs Trading,Supplies and Services,342033,Computers and Communications,17-Aug-2016,5182685639,THE REPLACE BASE LTD,5999,Computer hardware,160.44,0.00,160.44
Regeneration & Economic Development,Economic Development and Housing,030762,Organisational Training & Development,Employees,040149,Recruitment Instruction and Training,17-Aug-2016,5182685643,CITB,8220,Training-all costs,30.00,5.00,25.00
Neighbourhood Services,Direct Services,021234,Catering - Locomotion,Supplies and Services,324117,Provisions,17-Aug-2016,5182685645,BRAKE BROS LTD,5811,Catering costs - provisions,172.06,0.00,172.06
Resources,Financial Services,069805,Purchasing,Income,720005,Fees and Charges,17-Aug-2016,5182685671,WALKERGATE CAR PAR,7523,Vehicle servicing,1.80,0.30,1.50
Neighbourhood Services,Direct Services,010525,Catering - Green Lane,Supplies and Services,324117,Provisions,17-Aug-2016,5182685677,JR HOLLAND FOODSERVICE,5422,Catering costs - provisions,34.26,0.00,34.26
Children and Adult Services,Childrens Services,088063,Bishop Auckland 0 - 5,Supplies and Services,324117,Provisions,17-Aug-2016,5182685679,ASDA STORES,5411,Catering costs - provisions,5.37,0.00,5.37
Neighbourhood Services,Culture & Sport,011191,Wellbeing4Life,Supplies and Services,324117,Provisions,17-Aug-2016,5182685693,TESCO STORES 6329,5411,Catering costs - provisions,21.00,0.00,21.00
Children and Adult Services,Head of Adults,052765,Deprivation of Liberty,Supplies and Services,344033,Telephones,17-Aug-2016,5182685697,Amazon UK Marketplace,5942,Telephones general-all costs,3.67,0.00,3.67
Neighbourhood Services,Culture & Sport,054399,Local Delivery-Libraries,Supplies and Services,312011,Newspapers Books and Periodicals,17-Aug-2016,5182685701,Amazon EU,5969,Books-school library,11.08,0.00,11.08
Resources,Financial Services,065180,Collections,Supplies and Services,338048,Services,17-Aug-2016,5182685723,HMCOURT-SERVICES.G,9222,Court Costs,110.00,0.00,110.00
Neighbourhood Services,Culture & Sport,011206,Sports,Employees,040149,Recruitment Instruction and Training,17-Aug-2016,5182685725,TYNE AND WEAR SPORT,8299,Training-all costs,210.00,0.00,210.00
Neighbourhood Services,Culture & Sport,054235,Bp Auckland Town Hall Cafe,Supplies and Services,324117,Provisions,17-Aug-2016,5182685729,JR HOLLAND FOODSERVICE,5422,Catering costs - provisions,22.92,0.00,22.92
Neighbourhood Services,Direct Services,021324,Catering - Meadowfield,Supplies and Services,324117,Provisions,17-Aug-2016,5182685731,JR HOLLAND FOODSERVICE,5422,Catering costs - provisions,32.84,0.00,32.84
Neighbourhood Services,Direct Services,021324,Catering - Meadowfield,Supplies and Services,324117,Provisions,17-Aug-2016,5182685733,JR HOLLAND FOODSERVICE,5422,Catering costs - provisions,13.45,0.00,13.45
Neighbourhood Services,Direct Services,021324,Catering - Meadowfield,Supplies and Services,324117,Provisions,17-Aug-2016,5182685735,BRAKE BROS LTD,5811,Catering costs - provisions,75.42,12.57,62.85
Neighbourhood Services,Direct Services,021324,Catering - Meadowfield,Supplies and Services,324117,Provisions,17-Aug-2016,5182685735 - 1,BRAKE BROS LTD,5811,Catering costs - provisions,87.92,,87.92
Neighbourhood Services,Culture & Sport,011086,Positive Futures,Supplies and Services,324117,Provisions,17-Aug-2016,5182685737,W M MORRISONS,5411,Catering costs - provisions,23.02,0.00,23.02
Neighbourhood Services,Direct Services,021235,Catering - Wharton Park,Supplies and Services,324117,Provisions,17-Aug-2016,5182685761,BRAKE BROS LTD,5811,Catering costs - provisions,228.96,38.16,190.80
Neighbourhood Services,Direct Services,021235,Catering - Wharton Park,Supplies and Services,324117,Provisions,17-Aug-2016,5182685761 - 1,BRAKE BROS LTD,5811,Catering costs - provisions,92.00,,92.00
Neighbourhood Services,Culture & Sport,010605,Woodhouse Close Leisure Complex,Supplies and Services,324117,Provisions,17-Aug-2016,5182685771,JR HOLLAND FOODSERVICE,5422,Catering costs - provisions,26.52,0.00,26.52
Neighbourhood Services,Culture & Sport,010605,Woodhouse Close Leisure Complex,Supplies and Services,324117,Provisions,17-Aug-2016,5182685773,BRAKE BROS LTD,5811,Catering costs - provisions,102.60,0.00,102.60
Neighbourhood Services,EnvironmentHealth & Consumer Protection,011035,Consumer Protection,Supplies and Services,384199,Miscellaneous Expenses,17-Aug-2016,5182685775,TRINITY CHAMBERS,8111,Other hired and contracted services,540.00,90.00,450.00
Neighbourhood Services,Culture & Sport,054235,Bp Auckland Town Hall Cafe,Supplies and Services,384956,Miscellaneous Expenses,17-Aug-2016,5186784665,TVLICENSING.CO.UK,7392,Licences,145.50,0.00,145.50
Children and Adult Services,Education,070140,School Admissions and Transport,Supplies and Services,340001,Postages,17-Aug-2016,5186784667,POST OFFICE SHOP,9402,Postages,3.00,0.50,2.50
Children and Adult Services,Education,070140,School Admissions and Transport,Supplies and Services,340001,Postages,17-Aug-2016,5186784667 - 1,POST OFFICE SHOP,9402,Postages,237.99,,237.99
Regeneration & Economic Development,Economic Development and Housing,030699,Business Growth and Innovation General,Supplies and Services,304999,Equipment and Materials,18-Aug-2016,5182685521,PatentInspirationEU,5817,Misc equipment tools and materials,2.35,0.00,2.35
Regeneration & Economic Development,Strategy Programmes and Performance,030053,Building Capacity Exchange,Supplies and Services,384926,Miscellaneous Expenses,18-Aug-2016,5182685659,ROYAL DUTCH AIRLINES (KLM),3010,International visits,1.19,0.00,1.19
Regeneration & Economic Development,Strategy Programmes and Performance,030053,Building Capacity Exchange,Supplies and Services,384926,Miscellaneous Expenses,18-Aug-2016,5182685661,ROYAL DUTCH AIRLINES (KLM),3010,International visits,1.19,0.00,1.19
Regeneration & Economic Development,Strategy Programmes and Performance,030053,Building Capacity Exchange,Supplies and Services,384926,Miscellaneous Expenses,18-Aug-2016,5182685663,ROYAL DUTCH AIRLINES (KLM),3010,International visits,1.19,0.00,1.19
Regeneration & Economic Development,Strategy Programmes and Performance,030053,Building Capacity Exchange,Supplies and Services,384926,Miscellaneous Expenses,18-Aug-2016,5182685665,ROYAL DUTCH AIRLINES (KLM),3010,International visits,1.19,0.00,1.19
Regeneration & Economic Development,Strategy Programmes and Performance,030053,Building Capacity Exchange,Supplies and Services,384926,Miscellaneous Expenses,18-Aug-2016,5182685667,ROYAL DUTCH AIRLINES (KLM),3010,International visits,1.19,0.00,1.19
Regeneration & Economic Development,Strategy Programmes and Performance,030053,Building Capacity Exchange,Supplies and Services,384926,Miscellaneous Expenses,18-Aug-2016,5182685669,ROYAL DUTCH AIRLINES (KLM),3010,International visits,1.19,0.00,1.19
Neighbourhood Services,Direct Services,021100,Catering - General,Supplies and Services,324117,Provisions,18-Aug-2016,5186784623,SAINSBURYS LOC (4320),5411,Catering costs - provisions,2.70,0.00,2.70
Children and Adult Services,Childrens Services,085957,Secure Management,Supplies and Services,304999,Equipment and Materials,18-Aug-2016,5186784637,Amazon Prime,5968,Misc equipment tools and materials,79.00,0.00,79.00
Resources,Financial Services,065180,Collections,Income,720130,Fees and Charges,18-Aug-2016,5186784643,COUNTY COURT,9222,Fees-legal,50.00,0.00,50.00
Neighbourhood Services,Direct Services,021242,Catering - County Hall,Supplies and Services,324117,Provisions,18-Aug-2016,5186784671,JR HOLLAND FOODSERVICE,5422,Catering costs - provisions,85.01,0.00,85.01
Neighbourhood Services,Direct Services,021242,Catering - County Hall,Supplies and Services,324117,Provisions,18-Aug-2016,5186784673,JR HOLLAND FOODSERVICE,5422,Catering costs - provisions,18.62,0.00,18.62
Neighbourhood Services,Direct Services,021242,Catering - County Hall,Supplies and Services,324117,Provisions,18-Aug-2016,5186784677,JR HOLLAND FOODSERVICE,5422,Catering costs - provisions,13.16,0.00,13.16
Neighbourhood Services,Culture & Sport,054812,Gala Theatre - Catering etc,Supplies and Services,324117,Provisions,18-Aug-2016,5186784681,JR HOLLAND FOODSERVICE,5422,Catering costs - provisions,64.28,0.00,64.28
Regeneration & Economic Development,Spatial Policy Planning Assets & Environment,031200,North Pennines Core,Supplies and Services,304403,Equipment and Materials,18-Aug-2016,5186784695,Something Different,5999,Other consumables,80.56,0.00,80.56
Neighbourhood Services,Direct Services,010551,Fleet - Chilton Fleet,Transport,215013,Running Costs of Vehicles,18-Aug-2016,5186784699,DVLA VEHICLE TAX,9399,Vehicle Excise Duty (VED),232.50,0.00,232.50
Children and Adult Services,Childrens Services,085341,High Etherley Satelite Home,Supplies and Services,324117,Provisions,18-Aug-2016,5186784711,TESCO STORES 6329,5411,Catering costs - provisions,16.50,0.00,16.50
Children and Adult Services,Childrens Services,085341,High Etherley Satelite Home,Supplies and Services,304403,Equipment and Materials,18-Aug-2016,5186784713,CARD FACTORY,5947,Other consumables,7.92,0.00,7.92
Children and Adult Services,Head of Adults,053811,Harbour Lodge Extra Care,Supplies and Services,304259,Equipment and Materials,18-Aug-2016,5186784719,ARGOS RETAIL GROUP,5310,Equipment-purchase and rental,119.98,0.00,119.98
Regeneration & Economic Development,Economic Development and Housing,030553,Europe Direct Scheme,Supplies and Services,332047,Printing Stationery and Gen Off Exps,18-Aug-2016,5186784723,WWW.HOTLINE.CO.UK,5943,Stationery,188.34,31.39,156.95
Neighbourhood Services,Direct Services,010301,C&G - North Grounds Maintenance,Supplies and Services,304999,Equipment and Materials,18-Aug-2016,5186784727,NEW ROW FARM NURSERIES,5193,Misc equipment tools and materials,499.20,83.20,416.00
Children and Adult Services,Childrens Services,071390,Ferryhill and Newton Aycliffe Locality,Supplies and Services,304259,Equipment and Materials,18-Aug-2016,5186784731,GRO HM PASSPORT OFFICE,9399,Equipment-purchase and rental,9.25,0.00,9.25
Children and Adult Services,Childrens Services,085958,Support Services,Supplies and Services,312011,Newspapers Books and Periodicals,18-Aug-2016,5186784735,Amazon UK Marketplace,5942,Books-school library,13.31,0.00,13.31
Children and Adult Services,Childrens Services,085958,Support Services,Supplies and Services,324117,Provisions,18-Aug-2016,5186784739,TESCO STORES 6329,5411,Catering costs - provisions,68.05,0.00,68.05
Neighbourhood Services,Culture & Sport,011060,Hardwick Park Catering,Supplies and Services,324117,Provisions,18-Aug-2016,5186784741,JR HOLLAND FOODSERVICE,5422,Catering costs - provisions,26.84,0.00,26.84
Resources,I.C.T. Services,065335,Operations - System & Repairs Trading,Supplies and Services,342033,Computers and Communications,18-Aug-2016,5186784749,Amazon UK Marketplace,5942,Computer hardware,3.82,0.00,3.82
Neighbourhood Services,Culture & Sport,011210,Parks & Countryside,Supplies and Services,304259,Equipment and Materials,18-Aug-2016,5186784761,WILKO.COM,5722,Equipment-purchase and rental,-6.00,-1.00,-5.00
Children and Adult Services,Education,070264,EDC Premises,Premises,115125,Repairs to Grounds,18-Aug-2016,5186784781,HOMEBASE LTD 219,5211,General maintenance,53.76,8.96,44.80
Children and Adult Services,Education,070264,EDC Premises,Premises,115125,Repairs to Grounds,18-Aug-2016,5186784785,IKEA SACAT,5719,General maintenance,87.45,14.58,72.87
Neighbourhood Services,Direct Services,010525,Catering - Green Lane,Supplies and Services,324117,Provisions,18-Aug-2016,5186784789,BRAKE BROS LTD,5811,Catering costs - provisions,-2.93,0.00,-2.93
Neighbourhood Services,Direct Services,010367,C&G - South Grounds Maintenance,Supplies and Services,324117,Provisions,18-Aug-2016,5186784805,SAINSBURYS 2199,5411,Catering costs - provisions,54.41,0.00,54.41
Neighbourhood Services,Direct Services,010367,C&G - South Grounds Maintenance,Supplies and Services,324117,Provisions,18-Aug-2016,5186784809,SCOTMID CO-OP ST JOHNS,5411,Catering costs - provisions,2.00,0.00,2.00
Children and Adult Services,Childrens Services,071370,Peterlee and Seaham Locality,Supplies and Services,304259,Equipment and Materials,18-Aug-2016,5186784827,WILKO.COM,5722,Equipment-purchase and rental,127.95,0.00,127.95
Children and Adult Services,Childrens Services,071370,Peterlee and Seaham Locality,Supplies and Services,324117,Provisions,18-Aug-2016,5186784831,ASDA 4387,5411,Catering costs - provisions,88.92,14.82,74.10
Children and Adult Services,Childrens Services,071370,Peterlee and Seaham Locality,Supplies and Services,324117,Provisions,18-Aug-2016,5186784831 - 1,ASDA 4387,5411,Catering costs - provisions,0.03,,0.03
Neighbourhood Services,Culture & Sport,054235,Bp Auckland Town Hall Cafe,Supplies and Services,324117,Provisions,18-Aug-2016,5186784833,JR HOLLAND FOODSERVICE,5422,Catering costs - provisions,8.89,0.00,8.89
Neighbourhood Services,Culture & Sport,011086,Positive Futures,Supplies and Services,324117,Provisions,18-Aug-2016,5186784841,W M MORRISONS,5411,Catering costs - provisions,11.29,0.00,11.29
Children and Adult Services,Childrens Services,088073,Barnard Castle 0 - 5,Supplies and Services,304403,Equipment and Materials,18-Aug-2016,5186784847,Amazon EU,5969,Other consumables,112.38,0.00,112.38
Children and Adult Services,Childrens Services,071360,Consett and Stanley Locality,Supplies and Services,304403,Equipment and Materials,18-Aug-2016,5186784855,TESCO - EDPA,5999,Other consumables,14.57,0.00,14.57
Children and Adult Services,Childrens Services,071360,Consett and Stanley Locality,Supplies and Services,304403,Equipment and Materials,18-Aug-2016,5186784859,TESCO - Hughes,5999,Other consumables,54.99,0.00,54.99
Children and Adult Services,Childrens Services,071360,Consett and Stanley Locality,Supplies and Services,304403,Equipment and Materials,18-Aug-2016,5186784863,TESCO - PLO,5999,Other consumables,22.90,0.00,22.90
Children and Adult Services,Childrens Services,071360,Consett and Stanley Locality,Supplies and Services,304403,Equipment and Materials,18-Aug-2016,5186784865,TESCO DIRECT,5999,Other consumables,42.00,0.00,42.00
Neighbourhood Services,Direct Services,021235,Catering - Wharton Park,Supplies and Services,324117,Provisions,18-Aug-2016,5186784869,JR HOLLAND FOODSERVICE,5422,Catering costs - provisions,15.45,0.00,15.45
Neighbourhood Services,Direct Services,021235,Catering - Wharton Park,Supplies and Services,324117,Provisions,18-Aug-2016,5186784873,JR HOLLAND FOODSERVICE,5422,Catering costs - provisions,-1.04,0.00,-1.04
Neighbourhood Services,Culture & Sport,010605,Woodhouse Close Leisure Complex,Supplies and Services,324117,Provisions,18-Aug-2016,5186784881,BRAKE BROS LTD,5811,Catering costs - provisions,75.90,12.65,63.25
Neighbourhood Services,Culture & Sport,010605,Woodhouse Close Leisure Complex,Supplies and Services,324117,Provisions,18-Aug-2016,5186784881 - 1,BRAKE BROS LTD,5811,Catering costs - provisions,64.43,,64.43
Neighbourhood Services,Culture & Sport,011225,Locality 2 Team Management,Supplies and Services,312011,Newspapers Books and Periodicals,18-Aug-2016,5186784895,CHARLES DICKENS (SPENN,5251,Books-school library,9.98,0.00,9.98
Regeneration & Economic Development,Economic Development and Housing,030737,Durham Works Flexible Fund,Supplies and Services,328041,Clothing Uniforms and Laundry,18-Aug-2016,5186784899,MATALAN,5691,Clothing uniforms and laundry,40.05,0.00,40.05
Neighbourhood Services,Direct Services,011001,Green Lane Council Offices Spennymoor,Supplies and Services,384956,Miscellaneous Expenses,18-Aug-2016,5191441243,TVLICENSING.CO.UK,7392,Licences,145.50,0.00,145.50
Children and Adult Services,Childrens Services,085958,Support Services,Supplies and Services,328041,Clothing Uniforms and Laundry,18-Aug-2016,5191441281,NEW LOOK INTERNET,5621,Clothing uniforms and laundry,-8.99,0.00,-8.99
Neighbourhood Services,EnvironmentHealth & Consumer Protection,011035,Consumer Protection,Supplies and Services,384199,Miscellaneous Expenses,19-Aug-2016,5186784887,TRINITY CHAMBERS,8111,Other hired and contracted services,0.74,0.00,0.74
Neighbourhood Services,Direct Services,021242,Catering - County Hall,Supplies and Services,324117,Provisions,19-Aug-2016,5191441245,JR HOLLAND FOODSERVICE,5422,Catering costs - provisions,39.94,0.00,39.94
Neighbourhood Services,Direct Services,021242,Catering - County Hall,Supplies and Services,324117,Provisions,19-Aug-2016,5191441247,JR HOLLAND FOODSERVICE,5422,Catering costs - provisions,27.46,0.00,27.46
Neighbourhood Services,Direct Services,021242,Catering - County Hall,Supplies and Services,324117,Provisions,19-Aug-2016,5191441249,JR HOLLAND FOODSERVICE,5422,Catering costs - provisions,13.16,0.00,13.16
Neighbourhood Services,Direct Services,021242,Catering - County Hall,Supplies and Services,324117,Provisions,19-Aug-2016,5191441251,BRAKE BROS LTD,5811,Catering costs - provisions,173.64,28.94,144.70
Neighbourhood Services,Direct Services,021242,Catering - County Hall,Supplies and Services,324117,Provisions,19-Aug-2016,5191441251 - 1,BRAKE BROS LTD,5811,Catering costs - provisions,293.48,,293.48
Children and Adult Services,Childrens Services,085351,Framwellgate Moor CU,Supplies and Services,312011,Newspapers Books and Periodicals,19-Aug-2016,5191441255,Amazon UK Marketplace,5942,Books-school library,5.12,0.00,5.12
Neighbourhood Services,Direct Services,010561,Fleet - Morrison Busty Fleet,Transport,215013,Running Costs of Vehicles,19-Aug-2016,5191441261,WWW.DVLA.GOV.UK,9399,Vehicle Excise Duty (VED),232.50,0.00,232.50
Neighbourhood Services,Culture & Sport,011221,Locality 1 Team Management,Transport,215995,Running Costs of Vehicles,19-Aug-2016,5191441265,SNOWBALLS (RAILWAY,5533,Vehicle running expenses,16.90,2.82,14.08
Regeneration & Economic Development,Economic Development and Housing,030553,Europe Direct Scheme,Supplies and Services,332047,Printing Stationery and Gen Off Exps,19-Aug-2016,5191441269,RYMAN,5943,Stationery,18.64,3.11,15.53
Children and Adult Services,Childrens Services,085958,Support Services,Supplies and Services,312011,Newspapers Books and Periodicals,19-Aug-2016,5191441277,Amazon UK Marketplace,5942,Books-school library,2.50,0.00,2.50
Children and Adult Services,Childrens Services,085958,Support Services,Supplies and Services,324117,Provisions,19-Aug-2016,5191441279,TESCO STORES 6329,5411,Catering costs - provisions,106.25,0.00,106.25
Neighbourhood Services,Culture & Sport,011060,Hardwick Park Catering,Supplies and Services,324117,Provisions,19-Aug-2016,5191441289,JR HOLLAND FOODSERVICE,5422,Catering costs - provisions,58.26,0.00,58.26
Neighbourhood Services,Culture & Sport,011060,Hardwick Park Catering,Supplies and Services,324117,Provisions,19-Aug-2016,5191441291,BRAKE BROS LTD,5811,Catering costs - provisions,378.06,63.01,315.05
Neighbourhood Services,Culture & Sport,011060,Hardwick Park Catering,Supplies and Services,324117,Provisions,19-Aug-2016,5191441291 - 1,BRAKE BROS LTD,5811,Catering costs - provisions,334.34,,334.34
Neighbourhood Services,Culture & Sport,054819,Gala Theatre - Theatre,Supplies and Services,312011,Newspapers Books and Periodicals,19-Aug-2016,5191441293,Amazon UK Marketplace,5942,Books-school library,55.46,0.00,55.46
Regeneration & Economic Development,Economic Development and Housing,030762,Organisational Training & Development,Employees,040149,Recruitment Instruction and Training,19-Aug-2016,5191441297,NCS VUE CITB HS&E REV,8299,Training-all costs,487.50,0.00,487.50
Neighbourhood Services,Direct Services,021234,Catering - Locomotion,Supplies and Services,324117,Provisions,19-Aug-2016,5191441299,BRAKE BROS LTD,5811,Catering costs - provisions,24.60,4.10,20.50
Neighbourhood Services,Direct Services,021234,Catering - Locomotion,Supplies and Services,324117,Provisions,19-Aug-2016,5191441299 - 1,BRAKE BROS LTD,5811,Catering costs - provisions,113.12,,113.12
Neighbourhood Services,Direct Services,021234,Catering - Locomotion,Supplies and Services,324117,Provisions,19-Aug-2016,5191441301,BRAKE BROS LTD,5811,Catering costs - provisions,72.66,12.11,60.55
Neighbourhood Services,Direct Services,021234,Catering - Locomotion,Supplies and Services,324117,Provisions,19-Aug-2016,5191441301 - 1,BRAKE BROS LTD,5811,Catering costs - provisions,58.36,,58.36
Neighbourhood Services,Direct Services,021234,Catering - Locomotion,Supplies and Services,324117,Provisions,19-Aug-2016,5191441303,BRAKE BROS LTD,5811,Catering costs - provisions,-5.79,0.00,-5.79
Neighbourhood Services,Direct Services,010525,Catering - Green Lane,Supplies and Services,324117,Provisions,19-Aug-2016,5191441309,JR HOLLAND FOODSERVICE,5422,Catering costs - provisions,34.40,0.00,34.40
Children and Adult Services,Childrens Services,071360,Consett and Stanley Locality,Supplies and Services,384237,Miscellaneous Expenses,19-Aug-2016,5191441317,ADVENTURE VALLEY,7999,Recreational exps outings parties,198.00,0.00,198.00
Children and Adult Services,Childrens Services,071360,Consett and Stanley Locality,Supplies and Services,384237,Miscellaneous Expenses,19-Aug-2016,5191441329,ADVENTURE VALLEY,7999,Recreational exps outings parties,377.20,62.87,314.33
Children and Adult Services,Childrens Services,071370,Peterlee and Seaham Locality,Supplies and Services,308011,Furniture,19-Aug-2016,5191441343,IKEA ONLINE,5719,Furniture repair and replacement,52.50,0.00,52.50
Neighbourhood Services,Culture & Sport,011206,Sports,Employees,040149,Recruitment Instruction and Training,19-Aug-2016,5191441353,TYNE AND WEAR SPORT,8299,Training-all costs,30.00,0.00,30.00
Neighbourhood Services,Culture & Sport,011206,Sports,Employees,040149,Recruitment Instruction and Training,19-Aug-2016,5191441355,TYNE AND WEAR SPORT,8299,Training-all costs,35.00,0.00,35.00
Neighbourhood Services,Direct Services,021324,Catering - Meadowfield,Supplies and Services,324117,Provisions,19-Aug-2016,5191441357,JR HOLLAND FOODSERVICE,5422,Catering costs - provisions,26.19,0.00,26.19
Neighbourhood Services,Direct Services,021324,Catering - Meadowfield,Supplies and Services,324117,Provisions,19-Aug-2016,5191441359,JR HOLLAND FOODSERVICE,5422,Catering costs - provisions,9.87,0.00,9.87
Neighbourhood Services,Technical Services,010984,Training and Development,Employees,040149,Recruitment Instruction and Training,19-Aug-2016,5191441369,JIB,8999,Training-all costs,200.66,0.00,200.66
Children and Adult Services,Childrens Services,085331,New Lea Childrens Home,Supplies and Services,324117,Provisions,19-Aug-2016,5191441377,ASDA HOME SHOPPING,5411,Catering costs - provisions,196.70,0.00,196.70
Children and Adult Services,Childrens Services,085331,New Lea Childrens Home,Supplies and Services,324117,Provisions,19-Aug-2016,5191441379,ASDA HOME SHOPPING,5411,Catering costs - provisions,-2.13,0.00,-2.13
Regeneration & Economic Development,Economic Development and Housing,030737,Durham Works Flexible Fund,Employees,040149,Recruitment Instruction and Training,19-Aug-2016,5191441381,WWW.CAMBRIDGEASSES,8220,Training-all costs,21.50,0.00,21.50
Children and Adult Services,Childrens Services,085957,Secure Management,Supplies and Services,304999,Equipment and Materials,19-Aug-2016,5191441387,WWW.LUMINATI.CO.UK,8244,Misc equipment tools and materials,458.74,76.46,382.28
Neighbourhood Services,Culture & Sport,011060,Hardwick Park Catering,Supplies and Services,324117,Provisions,19-Aug-2016,5222140619,BRAKE BROS LTD,5811,Catering costs - provisions,"1,323.60",220.60,1103.00
Neighbourhood Services,Culture & Sport,011060,Hardwick Park Catering,Supplies and Services,324117,Provisions,19-Aug-2016,5222140619 - 1,BRAKE BROS LTD,5811,Catering costs - provisions,200.65,,200.65
Children and Adult Services,Childrens Services,085958,Support Services,Supplies and Services,324117,Provisions,20-Aug-2016,5191441283,TESCO STORES 6329,5411,Catering costs - provisions,96.30,0.00,96.30
Assistant Chief Executive,Policy & Communications Division,060270,Corporate News,Supplies and Services,372009,Subscriptions,20-Aug-2016,5191441331,HOOTSUITE MEDIA INC.,7399,Subscriptions,5.52,0.00,5.52
Neighbourhood Services,Culture & Sport,011191,Wellbeing4Life,Supplies and Services,324117,Provisions,20-Aug-2016,5191441371,SAINSBURYS SACAT 0776,5411,Catering costs - provisions,39.60,0.00,39.60
Neighbourhood Services,Culture & Sport,011191,Wellbeing4Life,Supplies and Services,324117,Provisions,20-Aug-2016,5191441373,SAINSBURYS 0776,5411,Catering costs - provisions,38.50,0.00,38.50
Neighbourhood Services,Culture & Sport,011191,Wellbeing4Life,Supplies and Services,304259,Equipment and Materials,20-Aug-2016,5191441375,WILKO DURHAM 426,5722,Equipment-purchase and rental,4.20,0.00,4.20
Neighbourhood Services,Direct Services,021235,Catering - Wharton Park,Supplies and Services,324117,Provisions,20-Aug-2016,5191441383,BRAKE BROS LTD,5811,Catering costs - provisions,484.14,80.69,403.45
Neighbourhood Services,Direct Services,021235,Catering - Wharton Park,Supplies and Services,324117,Provisions,20-Aug-2016,5191441383 - 1,BRAKE BROS LTD,5811,Catering costs - provisions,49.12,,49.12
Neighbourhood Services,Direct Services,021235,Catering - Wharton Park,Supplies and Services,324117,Provisions,20-Aug-2016,5191441385,BRAKE BROS LTD,5811,Catering costs - provisions,354.48,59.08,295.40
Neighbourhood Services,Direct Services,021235,Catering - Wharton Park,Supplies and Services,324117,Provisions,20-Aug-2016,5191441385 - 1,BRAKE BROS LTD,5811,Catering costs - provisions,25.45,,25.45
Neighbourhood Services,Culture & Sport,011219,Office Services,Supplies and Services,342053,Computers and Communications,20-Aug-2016,5197473387,CREATESEND/COM,5045,Computer software,288.00,0.00,288.00
Children and Adult Services,Childrens Services,085342,9 Cedar Drive Aycliffe,Supplies and Services,324117,Provisions,21-Aug-2016,5191441223,TESCO STORES 2916,5411,Catering costs - provisions,123.62,0.00,123.62
Children and Adult Services,Childrens Services,085958,Support Services,Supplies and Services,312011,Newspapers Books and Periodicals,21-Aug-2016,5191441285,Amazon UK Marketplace,5942,Books-school library,9.98,0.00,9.98
Regeneration & Economic Development,Economic Development and Housing,030749,Employability - Youth Contract,Transport,230031,Contract Hire,21-Aug-2016,5191441325,WWW.SIMPLYGO.COM,4131,Pupils-transport to play fields etc,24.40,0.00,24.40
Resources,Resources Management,069000,Resources Management,Supplies and Services,324117,Provisions,21-Aug-2016,5191441327,CO-OP GROUP 010830,5411,Catering costs - provisions,9.99,0.00,9.99
Neighbourhood Services,Culture & Sport,011086,Positive Futures,Supplies and Services,324117,Provisions,21-Aug-2016,5191441367,W M MORRISONS,5411,Catering costs - provisions,24.87,0.00,24.87
Children and Adult Services,Planning & Service Strategy,054630,Comm Marketing and Information,Supplies and Services,304999,Equipment and Materials,21-Aug-2016,5191441389,GOOGLE ADWS8172786379,5968,Misc equipment tools and materials,46.98,0.00,46.98
Assistant Chief Executive,Policy & Communications Division,060270,Corporate News,Supplies and Services,372009,Subscriptions,22-Aug-2016,5191441333,HOOTSUITE MEDIA INC.,7399,Subscriptions,0.15,0.00,0.15
Children and Adult Services,Education,071801,Selby Cottage Childcare Centre,Supplies and Services,324117,Provisions,22-Aug-2016,5197473295,ONE STOP 3026,5411,Catering costs - provisions,4.00,0.00,4.00
Children and Adult Services,Education,071801,Selby Cottage Childcare Centre,Supplies and Services,324117,Provisions,22-Aug-2016,5197473297,TESCO STORES 2278,5411,Catering costs - provisions,89.80,0.00,89.80
Children and Adult Services,Education,071733,Shildon Childcare,Supplies and Services,304649,Equipment and Materials,22-Aug-2016,5197473303,B & M RETAIL,5310,Toys,3.99,0.00,3.99
Regeneration & Economic Development,Economic Development and Housing,031576,B& B - Temp Accom,Supplies and Services,364320,Grants to Voluntary Organisations,22-Aug-2016,5197473307,TRAVELODGE,3615,Accommodation assistance,46.00,7.67,38.33
Neighbourhood Services,Direct Services,010383,C&G - South Street Cleansing,Supplies and Services,304403,Equipment and Materials,22-Aug-2016,5197473311,FRED WILLIAMSON,5231,Other consumables,62.53,10.42,52.11
Children and Adult Services,Childrens Services,085957,Secure Management,Supplies and Services,328041,Clothing Uniforms and Laundry,22-Aug-2016,5197473317,ARGOS RETAIL GROUP,5310,Clothing uniforms and laundry,89.91,0.00,89.91
Children and Adult Services,Childrens Services,085957,Secure Management,Supplies and Services,328041,Clothing Uniforms and Laundry,22-Aug-2016,5197473319,VERY.CO.UK,5964,Clothing uniforms and laundry,60.00,0.00,60.00
Children and Adult Services,Childrens Services,085957,Secure Management,Supplies and Services,328041,Clothing Uniforms and Laundry,22-Aug-2016,5197473323,VERY.CO.UK,5964,Clothing uniforms and laundry,3.99,0.00,3.99
Neighbourhood Services,Direct Services,010367,C&G - South Grounds Maintenance,Supplies and Services,304259,Equipment and Materials,22-Aug-2016,5197473335,MKM PETERLEE,5211,Equipment-purchase and rental,60.00,10.00,50.00
Neighbourhood Services,Direct Services,010367,C&G - South Grounds Maintenance,Supplies and Services,304259,Equipment and Materials,22-Aug-2016,5197473339,SCREWFIX,5211,Equipment-purchase and rental,29.99,5.00,24.99
Neighbourhood Services,Direct Services,010367,C&G - South Grounds Maintenance,Supplies and Services,304259,Equipment and Materials,22-Aug-2016,5197473341,SCREWFIX,5211,Equipment-purchase and rental,44.96,7.49,37.47
Children and Adult Services,Childrens Services,071380,Bishop Auckland and Barnard Castle Locality,Supplies and Services,324117,Provisions,22-Aug-2016,5197473351,CO-OP GROUP 310015,5411,Catering costs - provisions,5.88,0.00,5.88
Neighbourhood Services,Direct Services,021242,Catering - County Hall,Supplies and Services,324117,Provisions,22-Aug-2016,5197473355,BRAMBLES FOODS LTD,5499,Catering costs - provisions,459.28,0.00,459.28
Neighbourhood Services,Direct Services,021242,Catering - County Hall,Supplies and Services,324117,Provisions,22-Aug-2016,5197473357,JR HOLLAND FOODSERVICE,5422,Catering costs - provisions,130.91,0.00,130.91
Neighbourhood Services,Direct Services,021242,Catering - County Hall,Supplies and Services,324117,Provisions,22-Aug-2016,5197473363,JR HOLLAND FOODSERVICE,5422,Catering costs - provisions,13.52,0.00,13.52
Neighbourhood Services,Direct Services,021242,Catering - County Hall,Supplies and Services,324117,Provisions,22-Aug-2016,5197473367,BRAKE BROS LTD,5811,Catering costs - provisions,243.91,0.00,243.91
Children and Adult Services,Childrens Services,088063,Bishop Auckland 0 - 5,Supplies and Services,324117,Provisions,22-Aug-2016,5197473397,TESCO STORES 6329,5411,Catering costs - provisions,22.94,0.00,22.94
Neighbourhood Services,Direct Services,010301,C&G - North Grounds Maintenance,Transport,215995,Running Costs of Vehicles,22-Aug-2016,5197473413,ANNFIELD PLAIN SVS,5541,Vehicle running expenses,266.85,0.00,266.85
Children and Adult Services,Childrens Services,085958,Support Services,Supplies and Services,312011,Newspapers Books and Periodicals,22-Aug-2016,5197473429,Amazon UK Marketplace,5942,Books-school library,4.43,0.00,4.43
Children and Adult Services,Childrens Services,085958,Support Services,Supplies and Services,312011,Newspapers Books and Periodicals,22-Aug-2016,5197473433,Amazon UK Marketplace,5942,Books-school library,14.15,0.00,14.15
Children and Adult Services,Childrens Services,085958,Support Services,Supplies and Services,304403,Equipment and Materials,22-Aug-2016,5197473435,Amazon UK Marketplace,5999,Other consumables,-87.92,0.00,-87.92
Neighbourhood Services,Culture & Sport,011060,Hardwick Park Catering,Supplies and Services,324117,Provisions,22-Aug-2016,5197473447,JR HOLLAND FOODSERVICE,5422,Catering costs - provisions,49.88,0.00,49.88
Neighbourhood Services,Culture & Sport,054819,Gala Theatre - Theatre,Supplies and Services,332047,Printing Stationery and Gen Off Exps,22-Aug-2016,5197473453,WWW.VIKING-DIRECT.CO.U,5111,Stationery,314.20,52.37,261.83
Neighbourhood Services,Direct Services,010525,Catering - Green Lane,Supplies and Services,324117,Provisions,22-Aug-2016,5197473463,BRAMBLES FOODS LTD,5499,Catering costs - provisions,84.56,0.00,84.56
Neighbourhood Services,Direct Services,010525,Catering - Green Lane,Supplies and Services,324117,Provisions,22-Aug-2016,5197473465,BRAKE BROS LTD,5811,Catering costs - provisions,68.58,0.00,68.58
Children and Adult Services,Childrens Services,071360,Consett and Stanley Locality,Supplies and Services,384237,Miscellaneous Expenses,22-Aug-2016,5197473495,ADVENTURE VALLEY,7999,Recreational exps outings parties,144.00,24.00,120.00
Children and Adult Services,Childrens Services,071360,Consett and Stanley Locality,Supplies and Services,384199,Miscellaneous Expenses,22-Aug-2016,5197473499,INFINITE AIR EXTREME T,7941,Other hired and contracted services,11.95,0.00,11.95
Regeneration & Economic Development,Spatial Policy Planning Assets & Environment,031217,North Pennines - Cold Blooded & Spineless,Supplies and Services,384871,Miscellaneous Expenses,22-Aug-2016,5197473505,Amazon EU,5969,Training-other activities,16.20,0.00,16.20
Neighbourhood Services,Direct Services,010367,C&G - South Grounds Maintenance,Supplies and Services,324117,Provisions,22-Aug-2016,5197473511,TESCO STORES 2916,5411,Catering costs - provisions,16.05,0.00,16.05
Neighbourhood Services,Direct Services,010900,Fleet - Meadowfield Fleet,Supplies and Services,384999,Miscellaneous Expenses,22-Aug-2016,5197473515,DVSA MOT COMP 2,9399,Other expenses,410.00,0.00,410.00
Resources,I.C.T. Services,065487,ICT Telephony Recharges,Supplies and Services,344033,Telephones,22-Aug-2016,5197473517,Amazon UK Marketplace,5942,Telephones general-all costs,162.50,0.00,162.50
Neighbourhood Services,Culture & Sport,054235,Bp Auckland Town Hall Cafe,Supplies and Services,324117,Provisions,22-Aug-2016,5197473545,JR HOLLAND FOODSERVICE,5422,Catering costs - provisions,30.18,0.00,30.18
Neighbourhood Services,Culture & Sport,054235,Bp Auckland Town Hall Cafe,Supplies and Services,324117,Provisions,22-Aug-2016,5197473549,BRAKE BROS LTD,5811,Catering costs - provisions,73.98,0.00,73.98
Neighbourhood Services,Culture & Sport,054235,Bp Auckland Town Hall Cafe,Supplies and Services,324117,Provisions,22-Aug-2016,5197473551,BRAKE BROS LTD,5811,Catering costs - provisions,2.76,0.46,2.30
Neighbourhood Services,Culture & Sport,054235,Bp Auckland Town Hall Cafe,Supplies and Services,324117,Provisions,22-Aug-2016,5197473551 - 1,BRAKE BROS LTD,5811,Catering costs - provisions,47.58,,47.58
Neighbourhood Services,Direct Services,021324,Catering - Meadowfield,Supplies and Services,324117,Provisions,22-Aug-2016,5197473555,BRAMBLES FOODS LTD,5499,Catering costs - provisions,80.40,0.00,80.40
Neighbourhood Services,Direct Services,010301,C&G - North Grounds Maintenance,Supplies and Services,304403,Equipment and Materials,22-Aug-2016,5197473561,FRED WILLIAMSON,5231,Other consumables,83.38,13.90,69.48
Neighbourhood Services,Direct Services,010301,C&G - North Grounds Maintenance,Supplies and Services,304999,Equipment and Materials,22-Aug-2016,5197473565,GUSTHARTS CHAINSAW CTR,7699,Misc equipment tools and materials,20.95,3.49,17.46
Children and Adult Services,Childrens Services,088083,Ferryhill 0 - 5,Supplies and Services,324117,Provisions,22-Aug-2016,5197473569,ASDA SUPERSTORE 4987,5411,Catering costs - provisions,11.94,0.00,11.94
Children and Adult Services,Childrens Services,071404,Laurel Avenue Childrens Centre,Supplies and Services,324117,Provisions,22-Aug-2016,5197473587,ICELAND,5411,Catering costs - provisions,9.05,0.00,9.05
Children and Adult Services,Childrens Services,071404,Laurel Avenue Childrens Centre,Supplies and Services,324117,Provisions,22-Aug-2016,5197473591,ICELAND,5411,Catering costs - provisions,3.00,0.00,3.00
Neighbourhood Services,Direct Services,021235,Catering - Wharton Park,Supplies and Services,324117,Provisions,22-Aug-2016,5197473597,BRAKE BROS LTD,5811,Catering costs - provisions,17.70,2.95,14.75
Neighbourhood Services,Culture & Sport,026591,Hardwick Hall Country Park,Supplies and Services,384999,Miscellaneous Expenses,22-Aug-2016,5197473601,WWW.ANGELWHOLESALE.CO.,5641,Other expenses,84.29,14.05,70.24
Neighbourhood Services,Culture & Sport,010605,Woodhouse Close Leisure Complex,Supplies and Services,324117,Provisions,22-Aug-2016,5197473607,JR HOLLAND FOODSERVICE,5422,Catering costs - provisions,38.71,0.00,38.71
Neighbourhood Services,Culture & Sport,010605,Woodhouse Close Leisure Complex,Supplies and Services,324117,Provisions,22-Aug-2016,5197473611,BRAKE BROS LTD,5811,Catering costs - provisions,76.87,0.00,76.87
Regeneration & Economic Development,Economic Development and Housing,030737,Durham Works Flexible Fund,Supplies and Services,328041,Clothing Uniforms and Laundry,22-Aug-2016,5197473613,WWW.UNIFORMCOLLECTION.,5137,Clothing uniforms and laundry,46.00,0.00,46.00
Regeneration & Economic Development,Economic Development and Housing,030737,Durham Works Flexible Fund,Supplies and Services,384999,Miscellaneous Expenses,22-Aug-2016,5197473617,WWW.SALON-SERVICES.COM,7230,Other expenses,75.60,0.00,75.60
Regeneration & Economic Development,Spatial Policy Planning Assets & Environment,031200,North Pennines Core,Supplies and Services,324117,Provisions,22-Aug-2016,5197473623,STANHOPE PAPER SHOP,5399,Catering costs - provisions,6.75,0.00,6.75
Children and Adult Services,Education,071801,Selby Cottage Childcare Centre,Supplies and Services,324117,Provisions,23-Aug-2016,5200381711,TESCO STORES 2278,5411,Catering costs - provisions,2.96,0.00,2.96
Children and Adult Services,Childrens Services,071380,Bishop Auckland and Barnard Castle Locality,Supplies and Services,324117,Provisions,23-Aug-2016,5200381717,TESCO STORES 6329,5411,Catering costs - provisions,18.67,0.00,18.67
Children and Adult Services,Childrens Services,071380,Bishop Auckland and Barnard Castle Locality,Supplies and Services,324117,Provisions,23-Aug-2016,5200381721,TESCO STORES 6329,5411,Catering costs - provisions,7.68,0.00,7.68
Children and Adult Services,Education,071733,Shildon Childcare,Supplies and Services,304649,Equipment and Materials,23-Aug-2016,5200381723,WILKO RETAIL LIMIT,5722,Toys,14.00,0.00,14.00
Children and Adult Services,Childrens Services,071746,Newton Aycliffe Childrens Centre,Premises,145009,Cleaning and Domestic Supplies,23-Aug-2016,5200381727,TESCO STORES 2916,5411,Other cleaning and domestic costs,11.45,0.00,11.45
